{"text_format":"1","workbook":"xlsx","n_sheets":33,"sheets":["Introduction","Boundary Questions","Summary","Stationary Combustion","Mobile Sources","Refrigeration and AC","Fire Suppression","Purchased Gases","Electricity","Steam","Business Travel","Commuting","Upstream Trans and Dist","Waste","Offsets","Unit Conversions","Heat Content","Emission Factors","DropDown","Help - Data Management","Help - Stationary Combustion","Help - Mobile Sources","Help - Refrigeration and AC","Help - Fire Suppression","Help - Purchased Gases","Help - Electricity","Help - Market-Based Method","Help - Steam","Help - Business Travel","Help - Commuting","Help - Upstream Trans and Dist","Help - Waste","Help - Offsets"],"not_rendered":{"charts":0,"images":119,"macros":1,"external_links":1,"defined_names":166,"comments":2,"pivot_tables":0},"unopened":[],"bounds":{"document_bytes":16777216,"sheet_cells":100000,"rows_first":2000,"rows_last":500,"rows_between":2000,"halvings":0,"cell_chars":16384,"cell_head_chars":4096},"cells_cut":0,"cells_raw":0,"read":"whole","date_system":"1900"}

{"sheet":"Introduction","index":0,"n_rows":39,"n_cols":18,"rows_kept":39,"cut":false,"hidden":false,"merged":[[3,0,3,10],[9,1,9,10],[10,2,10,10],[20,0,20,10],[35,0,35,10],[5,0,5,10],[38,0,38,10],[37,1,37,10],[8,0,8,10],[6,3,6,10],[40,0,41,10],[36,0,36,10],[19,0,19,10],[24,4,24,5],[22,4,22,8],[11,1,11,10],[14,1,14,10],[17,0,17,10],[18,0,18,10]]}
[]
[]
["EPA Simplified GHG Emissions Calculator (SGEC)",null,null,null,null,null,"Version 8","August 2022"]
["The EPA Simplified GHG Emissions Calculator (\"the Calculator\") is designed as a simplified calculation tool to help organizations estimate and inventory their annual greenhouse gas (GHG) emissions for US-based operations. All methodologies and default values provided are based on the most current Center for Corporate Climate Leadership Greenhouse Gas Inventory Guidance Documents and the Emission Factors Hub. The Calculator will quantify the direct and indirect emissions from sources at an organization when activity data are entered into the various sections of the workbook for one annual period."]
[]
["Before entering data, please: 1) Enable Macros and 2) Familiarize yourself with the Simplified Guide to GHG Management for Organizations. \n"]
[null,"Access the guide: ",null,"https://www.epa.gov/climateleadership/ghg-inventory-guidance-low-emitters"]
[]
["There are three primary steps in completing a GHG inventory.  Each emissions source also has these three steps."]
[null,"(1) DEFINE: The first step in completing a GHG inventory is to determine the boundaries and emissions sources included within those boundaries. After you have defined your organizational and operational boundaries, you can use the questions on the \"Boundary Questions\" worksheet to help you determine which emissions sources are relevant to your business.  "]
[null,null,"Go to Boundary Questions"]
[null,"(2) COLLECT: The second step is to collect data for the defined annual period. This step is typically the most time consuming, since the data can be difficult to gather. This Calculator has help sheets with suggestions and guidance for each emissions source and a general help sheet for data management. Click the drop down menu boxes below to navigate to these sheets. "]
[]
[null,null,null,"Help - Data Management",null,null,null,null,null,null,null,null," "," "," "," "," "," "]
[null,"(3) QUANTIFY: The third step is to calculate emissions. This Calculator is designed to complete the emissions quantification step for you. Once the user enters data in this MS Excel spreadsheet, the emissions will be calculated and totaled on the \"Summary\" sheet. ",null,null,null,null,null,null,null,null,null," "," "]
[]
["Calculator Guidance - Important Information"]
["  (A) Navigate to the data entry sheets using the drop down menu in the dark grey cell below and then clicking on the \"Go To Data Entry Sheet\" \n         button. On the data entry sheets enter data in ORANGE cells only.  "]
["  (B) This Calculator has several \"Tool Sheets\" with useful reference data such as unit conversions, heat contents, and emission factors.  \n         Click on the buttons below to go to the appropriate Tool Sheet."]
["  (C) Data must be entered in the units specified on the data entry sheets. Use the \"Unit Conversions\" or \"Heat Content\" sheets if unit \n         conversion is necessary prior to entering data into the Calculator."]
["  (D) If more guidance is needed, you can reference the emission factor data sources found on the \"Emission Factors\" sheet."]
[]
[null,null,null,"Tool Sheets","Quick Data Entry Navigation"]
[]
[null,null,null,null,"Upstream Trans and Dist"]
[]
[]
[]
[]
[]
[]
[]
[]
[]
["Calculator Notes"]
["Emission sources of all seven major GHGs are accounted for in the inventory and in this Calculator: carbon dioxide (CO2), methane (CH4), nitrous oxide (N2O), hydroﬂuorocarbons (HFCs), perﬂuorocarbons (PFCs), sulfur hexaﬂuoride (SF6), and nitrogen trifluoride (NF3). The Calculator allows the user to estimate GHG emissions from scope 1 (direct), scope 2 (indirect), and some scope 3 (other indirect) sources.   "]
["The Calculator uses U.S.-specific cross-sector emission factors from the Emission Factors Hub. Many industrial sectors also have process-related emissions sources that are specific to their sector. EPA’s Greenhouse Gas Reporting Program provides guidance and tools that can aid in the calculation and reporting of these emissions:"]
[null,"https://www.epa.gov/ghgreporting"]
["The GHG Protocol also provides guidance on calculating emissions from industrial processes.  "]

{"sheet":"Boundary Questions","index":1,"n_rows":43,"n_cols":5,"rows_kept":43,"cut":false,"hidden":false,"merged":[[40,0,40,3],[36,0,36,3],[38,0,38,3],[8,0,8,5],[5,0,5,5],[32,0,32,5],[14,0,14,7],[34,0,34,3],[32,6,32,7],[30,0,30,3],[16,0,16,3],[18,0,18,3],[20,0,20,3],[22,0,22,3],[13,0,13,5],[24,0,24,3]]}
[]
[]
["Operational Boundary Questions - Emissions Sources to Include"]
[]
["Guidance"]
["Use the questions below to help you determine which emissions sources should be included in the inventory."]
[]
["Emissions Source Questions"]
["A typical office-based organization will likely have the following (scope 1 and scope 2) emissions sources:"]
[null,"- Stationary Combustion"]
[null,"- Refrigeration and AC"]
[null,"- Electricity"]
[]
["If you answer \"yes\" to a question below, that emissions source should be included in your inventory. For each facility within the defined organizational boundary, collect the necessary data for the selected time period. Use the corresponding Excel sheet to quantify these emissions."]
["Tip: you may need to ask your landlord about heating sources, steam purchased and refrigerants"]
["Stationary Combustion",null,null,null,"Yes or No?"]
["Do you have facilities that burn fuels on-site (e.g., natural gas, propane, coal, fuel oil for heating, diesel fuel for backup generators, biomass fuels)?",null,null,null,"?"]
["Mobile Sources"]
["Do any vehicles fall within your organizational boundary?  This can include cars, trucks, propane forklifts, aircraft, boats.  Only vehicles owned or leased by your organization should be included here.",null,null,null,"?"]
["Refrigeration and Air Conditioning"]
["Do your facilities use refrigeration or air conditioning equipment?",null,null,null,"?"]
["Fire Suppression"]
["Do your facilities use chemical fire suppressants?",null,null,null,"?"]
["Purchased Gases"]
["Do you purchase any industrial gases for use in your business?  These gases may be purchased for use in manufacturing, testing, or laboratories.",null,null,null,"?"]
["Electricity"]
["Does your inventory include facilities that use electricity?",null,null,null,"?"]
["Steam"]
["Do you purchase steam for heating or cooling in your facilities?",null,null,null,"?"]
["Market-Based Emission Factors (entered on Electricity and or Steam tabs)"]
["Do you purchase renewable energy certificates (RECs) or green power products? Do you purchase electricity through a power purchase agreement (PPA)? Do you have supplier-specific emission factors? ",null,null,null,"?"]
[]
["The questions below refer to scope 3 emissions sources and offsets.  If you answer \"yes\" you may choose whether or not to include these emissions sources in your inventory. Use the corresponding sheet to enter data."]
["Business Travel",null,null,null,"Yes or No?"]
["Do your employees travel for business using transportation other than owned or leased vehicles (e.g., commercial airline flights, rental cars, trains)?",null,null,null,"?"]
["Employee Commuting"]
["Do your employees commute to work in personal vehicles or use public transportation?",null,null,null,"?"]
["Upstream Transportation and Distribution"]
["Do you hire another company to transport products or other materials to or from your facilities? ",null,null,null,"?"]
["Waste Generated in Operations"]
["Do you generate waste that is disposed of in a facility owned by another organization? ",null,null,null,"?"]
["Offsets"]
["Do you purchase greenhouse gas offsets?",null,null,null,"?"]

{"sheet":"Summary","index":2,"n_rows":65,"n_cols":8,"rows_kept":65,"cut":false,"hidden":false,"merged":[[5,0,5,8],[13,0,13,8],[27,4,27,8],[18,4,18,8],[20,4,20,8],[17,4,17,8],[19,4,19,8],[22,4,22,8],[25,4,25,8],[26,4,26,8],[23,7,23,8],[7,0,8,8],[9,0,11,8],[6,0,6,8]]}
[]
[]
["Emissions Summary"]
[]
["Guidance"]
["The total GHG emissions from each source category are provided below. You may also use this summary sheet to fill out the Annual GHG Inventory Summary and Goal Tracking Form (.xls) as this calculator only quantifies one year of emissions at a time. "]
["https://www.epa.gov/climateleadership/target-setting"]
["By entering the data below into the appropriate cell of the Annual GHG Inventory Summary and Goal Tracking Form, you will be able to compare multiple years of data."]
[]
["If you have multiple Calculator files covering sub-sets of your inventory for a particular reporting period, sum each of the emission categories (e.g. Stationary Combustion) to an organizational total, which then can be entered into the Annual GHG Inventory Summary and Goal Tracking Form."]
[]
[]
[]
["    (A) Enter organization information into the orange cells. Other cells on this sheet will be automatically calculated from the data entered in the sheets in this workbook. Blue cells indicate required emission sources if applicable. Green cells indicate scope 3 emission sources and offsets, which organizations may optionally include in its inventory."]
["    (B) The \"Go To Sheet\" buttons can be used to navigate to the data entry sheets. "]
[]
["Organizational Information:"]
[null,"Organization Name:"]
[]
[null,"Organization Address:"]
[]
[]
[null,"Inventory Reporting Period:",null,null,"e.g., Calendar Year 2021, Fiscal Year 2021"]
[null,null,null,null,"Start: ","MM/DD/YY","End:","MM/DD/YY"]
[]
[null,"Name of Preparer:"]
[null,"Phone Number of Preparer:"]
[null,"Date Prepared:"]
[]
["Summary of Organization's Emissions:"]
[]
[null,"Scope 1 Emissions"]
[null,"Stationary Combustion",null,null,null,null,{"$f":"'Stationary Combustion'!E95","v":0},"CO2-e (metric tons)"]
[null,"Mobile Sources",null,null,null,null,{"$f":"'Mobile Sources'!E257","v":0},"CO2-e (metric tons)"]
[null,"Refrigeration / AC Equipment Use",null,null,null,null,{"$f":"'Refrigeration and AC'!F130","v":0},"CO2-e (metric tons)"]
[null,"Fire Suppression",null,null,null,null,{"$f":"'Fire Suppression'!F109","v":0},"CO2-e (metric tons)"]
[null,"Purchased Gases",null,null,null,null,{"$f":"'Purchased Gases'!E30","v":0},"CO2-e (metric tons)"]
[]
[null,"Location-Based Scope 2 Emissions"]
[null,"Purchased and Consumed Electricity",null,null,null,null,{"$f":"Electricity!E63","v":0},"CO2-e (metric tons)"]
[null,"Purchased and Consumed Steam",null,null,null,null,{"$f":"Steam!F87","v":0},"CO2-e (metric tons)"]
[]
[null,"Market-Based Scope 2 Emissions"]
[null,"Purchased and Consumed Electricity",null,null,null,null,{"$f":"Electricity!E64","v":0},"CO2-e (metric tons)"]
[null,"Purchased and Consumed Steam",null,null,null,null,{"$f":"Steam!F88","v":0},"CO2-e (metric tons)"]
[]
[null,"Total organization Emissions"]
[null,"Total Scope 1 & Location-Based Scope 2",null,null,null,null,{"$f":"SUM(G33:G37,G40:G41)","v":0},"CO2-e (metric tons)"]
[null,"Total Scope 1 & Market-Based Scope 2 ",null,null,null,null,{"$f":"SUM(G33:G37,G44:G45)","v":0},"CO2-e (metric tons)"]
[]
[null,"Reductions"]
[null,"Offsets",null,null,null,null,{"$f":"Offsets!C25","v":0},"CO2-e (metric tons)"]
[]
[null,"Net Scope 1 and 2 Location-Based Emissions",null,null,null,null,{"$f":"IF(G48-G52<0,0,G48-G52)","v":0},"CO2-e (metric tons)"]
[null,"Net Scope 1 and 2 Market-Based Emissions",null,null,null,null,{"$f":"IF(G49-G52<0,0,G49-G52)","v":0},"CO2-e (metric tons)"]
[]
[null,"Scope 3 Emissions"]
[null,"Employee Business Travel",null,null,null,null,{"$f":"'Business Travel'!D165","v":0},"CO2-e (metric tons)"]
[null,"Employee Commuting",null,null,null,null,{"$f":"Commuting!D123","v":0},"CO2-e (metric tons)"]
[null,"Upstream Transportation and Distribution",null,null,null,null,{"$f":"'Upstream Trans and Dist'!D111","v":0},"CO2-e (metric tons)"]
[null,"Waste",null,null,null,null,{"$f":"Waste!D99","v":0},"CO2-e (metric tons)"]
[]
[null,"Required Supplemental Information"]
[null,"Biomass CO2 Emissions from Stationary Sources",null,null,null,null,{"$f":"'Stationary Combustion'!E97","v":0},"CO2-e (metric tons)"]
[null,"Biomass CO2 Emissions from Mobile Sources",null,null,null,null,{"$f":"'Mobile Sources'!E259","v":0},"CO2-e (metric tons)"]

{"sheet":"Stationary Combustion","index":3,"n_rows":97,"n_cols":21,"rows_kept":97,"cut":false,"hidden":false,"merged":[[12,5,13,5],[8,0,8,6],[77,0,77,1],[7,0,7,4],[5,0,5,4],[62,0,63,1],[62,3,63,3]]}
[]
[]
["Scope 1 Emissions from Stationary Combustion Sources"]
[]
["Guidance"]
["   (A) Enter annual data for each combustion unit, facility, or site (by fuel type) in ORANGE cells on Table 1.  Example \n         entry is shown in first row (GREEN Italics)."]
["- Select \"Fuel Combusted\" from drop down box."]
["- Enter \"Quantity Combusted\" and choose the appropriate units from the drop down box in the unit column.  If it's necessary to convert units, common heat contents can be found on the \"Heat Content\" sheet and unit conversions on the \"Unit Conversion\" sheet. "]
["   (B) If fuel is consumed in a facility but stationary fuel consumption data are not available, an estimate should be made \n         for completeness.  See the \"Items to Note\" section of the Help sheet for suggested estimation approaches. "]
["(C) Biomass CO2 emissions are not reported in the total emissions, but are reported separately at the bottom of the sheet."]
[]
["Table 1.  Stationary Source Fuel Combustion"]
["Source","Source","Source","Fuel","Quantity","Units"]
["ID","Description","Area (sq ft)","Combusted","Combusted"]
["BLR-012","East Power Plant",12517,"Natural Gas",10000,"MMBtu",null,null,null,null,null,null,null,null,null,null,null,null,null,null,{"$f":"IF(D15=\"\",\"\",VLOOKUP(D15,DropDown!$R$2:$S$12,2,FALSE))","v":"Gas"}]
[null,null,null,null,null,null,null,null,null,null,null,null,null,null,null,null,null,null,null,null,{"$f":"IF(D16=\"\",\"\",VLOOKUP(D16,DropDown!$R$2:$S$12,2,FALSE))","v":""}]
[null,null,null,null,null,null,null,null,null,null,null,null,null,null,null,null,null,null,null,null,{"$f":"IF(D17=\"\",\"\",VLOOKUP(D17,DropDown!$R$2:$S$12,2,FALSE))","v":""}]
[null,null,null,null,null,null,null,null,null,null,null,null,null,null,null,null,null,null,null,null,{"$f":"IF(D18=\"\",\"\",VLOOKUP(D18,DropDown!$R$2:$S$12,2,FALSE))","v":""}]
[null,null,null,null,null,null,null,null,null,null,null,null,null,null,null,null,null,null,null,null,{"$f":"IF(D19=\"\",\"\",VLOOKUP(D19,DropDown!$R$2:$S$12,2,FALSE))","v":""}]
[null,null,null,null,null,null,null,null,null,null,null,null,null,null,null,null,null,null,null,null,{"$f":"IF(D20=\"\",\"\",VLOOKUP(D20,DropDown!$R$2:$S$12,2,FALSE))","v":""}]
[null,null,null,null,null,null,null,null,null,null,null,null,null,null,null,null,null,null,null,null,{"$f":"IF(D21=\"\",\"\",VLOOKUP(D21,DropDown!$R$2:$S$12,2,FALSE))","v":""}]
[null,null,null,null,null,null,null,null,null,null,null,null,null,null,null,null,null,null,null,null,{"$f":"IF(D22=\"\",\"\",VLOOKUP(D22,DropDown!$R$2:$S$12,2,FALSE))","v":""}]
[null,null,null,null,null,null,null,null,null,null,null,null,null,null,null,null,null,null,null,null,{"$f":"IF(D23=\"\",\"\",VLOOKUP(D23,DropDown!$R$2:$S$12,2,FALSE))","v":""}]
[null,null,null,null,null,null,null,null,null,null,null,null,null,null,null,null,null,null,null,null,{"$f":"IF(D24=\"\",\"\",VLOOKUP(D24,DropDown!$R$2:$S$12,2,FALSE))","v":""}]
[null,null,null,null,null,null,null,null,null,null,null,null,null,null,null,null,null,null,null,null,{"$f":"IF(D25=\"\",\"\",VLOOKUP(D25,DropDown!$R$2:$S$12,2,FALSE))","v":""}]
[null,null,null,null,null,null,null,null,null,null,null,null,null,null,null,null,null,null,null,null,{"$f":"IF(D26=\"\",\"\",VLOOKUP(D26,DropDown!$R$2:$S$12,2,FALSE))","v":""}]
[null,null,null,null,null,null,null,null,null,null,null,null,null,null,null,null,null,null,null,null,{"$f":"IF(D27=\"\",\"\",VLOOKUP(D27,DropDown!$R$2:$S$12,2,FALSE))","v":""}]
[null,null,null,null,null,null,null,null,null,null,null,null,null,null,null,null,null,null,null,null,{"$f":"IF(D28=\"\",\"\",VLOOKUP(D28,DropDown!$R$2:$S$12,2,FALSE))","v":""}]
[null,null,null,null,null,null,null,null,null,null,null,null,null,null,null,null,null,null,null,null,{"$f":"IF(D29=\"\",\"\",VLOOKUP(D29,DropDown!$R$2:$S$12,2,FALSE))","v":""}]
[null,null,null,null,null,null,null,null,null,null,null,null,null,null,null,null,null,null,null,null,{"$f":"IF(D30=\"\",\"\",VLOOKUP(D30,DropDown!$R$2:$S$12,2,FALSE))","v":""}]
[null,null,null,null,null,null,null,null,null,null,null,null,null,null,null,null,null,null,null,null,{"$f":"IF(D31=\"\",\"\",VLOOKUP(D31,DropDown!$R$2:$S$12,2,FALSE))","v":""}]
[null,null,null,null,null,null,null,null,null,null,null,null,null,null,null,null,null,null,null,null,{"$f":"IF(D32=\"\",\"\",VLOOKUP(D32,DropDown!$R$2:$S$12,2,FALSE))","v":""}]
[null,null,null,null,null,null,null,null,null,null,null,null,null,null,null,null,null,null,null,null,{"$f":"IF(D33=\"\",\"\",VLOOKUP(D33,DropDown!$R$2:$S$12,2,FALSE))","v":""}]
[null,null,null,null,null,null,null,null,null,null,null,null,null,null,null,null,null,null,null,null,{"$f":"IF(D34=\"\",\"\",VLOOKUP(D34,DropDown!$R$2:$S$12,2,FALSE))","v":""}]
[null,null,null,null,null,null,null,null,null,null,null,null,null,null,null,null,null,null,null,null,{"$f":"IF(D35=\"\",\"\",VLOOKUP(D35,DropDown!$R$2:$S$12,2,FALSE))","v":""}]
[null,null,null,null,null,null,null,null,null,null,null,null,null,null,null,null,null,null,null,null,{"$f":"IF(D36=\"\",\"\",VLOOKUP(D36,DropDown!$R$2:$S$12,2,FALSE))","v":""}]
[null,null,null,null,null,null,null,null,null,null,null,null,null,null,null,null,null,null,null,null,{"$f":"IF(D37=\"\",\"\",VLOOKUP(D37,DropDown!$R$2:$S$12,2,FALSE))","v":""}]
[null,null,null,null,null,null,null,null,null,null,null,null,null,null,null,null,null,null,null,null,{"$f":"IF(D38=\"\",\"\",VLOOKUP(D38,DropDown!$R$2:$S$12,2,FALSE))","v":""}]
[null,null,null,null,null,null,null,null,null,null,null,null,null,null,null,null,null,null,null,null,{"$f":"IF(D39=\"\",\"\",VLOOKUP(D39,DropDown!$R$2:$S$12,2,FALSE))","v":""}]
[null,null,null,null,null,null,null,null,null,null,null,null,null,null,null,null,null,null,null,null,{"$f":"IF(D40=\"\",\"\",VLOOKUP(D40,DropDown!$R$2:$S$12,2,FALSE))","v":""}]
[null,null,null,null,null,null,null,null,null,null,null,null,null,null,null,null,null,null,null,null,{"$f":"IF(D41=\"\",\"\",VLOOKUP(D41,DropDown!$R$2:$S$12,2,FALSE))","v":""}]
[null,null,null,null,null,null,null,null,null,null,null,null,null,null,null,null,null,null,null,null,{"$f":"IF(D42=\"\",\"\",VLOOKUP(D42,DropDown!$R$2:$S$12,2,FALSE))","v":""}]
[null,null,null,null,null,null,null,null,null,null,null,null,null,null,null,null,null,null,null,null,{"$f":"IF(D43=\"\",\"\",VLOOKUP(D43,DropDown!$R$2:$S$12,2,FALSE))","v":""}]
[null,null,null,null,null,null,null,null,null,null,null,null,null,null,null,null,null,null,null,null,{"$f":"IF(D44=\"\",\"\",VLOOKUP(D44,DropDown!$R$2:$S$12,2,FALSE))","v":""}]
[null,null,null,null,null,null,null,null,null,null,null,null,null,null,null,null,null,null,null,null,{"$f":"IF(D45=\"\",\"\",VLOOKUP(D45,DropDown!$R$2:$S$12,2,FALSE))","v":""}]
[null,null,null,null,null,null,null,null,null,null,null,null,null,null,null,null,null,null,null,null,{"$f":"IF(D46=\"\",\"\",VLOOKUP(D46,DropDown!$R$2:$S$12,2,FALSE))","v":""}]
[null,null,null,null,null,null,null,null,null,null,null,null,null,null,null,null,null,null,null,null,{"$f":"IF(D47=\"\",\"\",VLOOKUP(D47,DropDown!$R$2:$S$12,2,FALSE))","v":""}]
[null,null,null,null,null,null,null,null,null,null,null,null,null,null,null,null,null,null,null,null,{"$f":"IF(D48=\"\",\"\",VLOOKUP(D48,DropDown!$R$2:$S$12,2,FALSE))","v":""}]
[null,null,null,null,null,null,null,null,null,null,null,null,null,null,null,null,null,null,null,null,{"$f":"IF(D49=\"\",\"\",VLOOKUP(D49,DropDown!$R$2:$S$12,2,FALSE))","v":""}]
[null,null,null,null,null,null,null,null,null,null,null,null,null,null,null,null,null,null,null,null,{"$f":"IF(D50=\"\",\"\",VLOOKUP(D50,DropDown!$R$2:$S$12,2,FALSE))","v":""}]
[null,null,null,null,null,null,null,null,null,null,null,null,null,null,null,null,null,null,null,null,{"$f":"IF(D51=\"\",\"\",VLOOKUP(D51,DropDown!$R$2:$S$12,2,FALSE))","v":""}]
[null,null,null,null,null,null,null,null,null,null,null,null,null,null,null,null,null,null,null,null,{"$f":"IF(D52=\"\",\"\",VLOOKUP(D52,DropDown!$R$2:$S$12,2,FALSE))","v":""}]
[null,null,null,null,null,null,null,null,null,null,null,null,null,null,null,null,null,null,null,null,{"$f":"IF(D53=\"\",\"\",VLOOKUP(D53,DropDown!$R$2:$S$12,2,FALSE))","v":""}]
[null,null,null,null,null,null,null,null,null,null,null,null,null,null,null,null,null,null,null,null,{"$f":"IF(D54=\"\",\"\",VLOOKUP(D54,DropDown!$R$2:$S$12,2,FALSE))","v":""}]
[null,null,null,null,null,null,null,null,null,null,null,null,null,null,null,null,null,null,null,null,{"$f":"IF(D55=\"\",\"\",VLOOKUP(D55,DropDown!$R$2:$S$12,2,FALSE))","v":""}]
[null,null,null,null,null,null,null,null,null,null,null,null,null,null,null,null,null,null,null,null,{"$f":"IF(D56=\"\",\"\",VLOOKUP(D56,DropDown!$R$2:$S$12,2,FALSE))","v":""}]
[null,null,null,null,null,null,null,null,null,null,null,null,null,null,null,null,null,null,null,null,{"$f":"IF(D57=\"\",\"\",VLOOKUP(D57,DropDown!$R$2:$S$12,2,FALSE))","v":""}]
[null,null,null,null,null,null,null,null,null,null,null,null,null,null,null,null,null,null,null,null,{"$f":"IF(D58=\"\",\"\",VLOOKUP(D58,DropDown!$R$2:$S$12,2,FALSE))","v":""}]
[]
["GHG Emissions"]
[]
["Total Organization-Wide Stationary Source Combustion by Fuel Type"]
["Fuel Type",null,"Quantity","Units"]
[null,null,"Combusted"]
["Anthracite Coal",null,{"$f":"SUMIFS($E$16:$E$58,$D$16:$D$58,$A65,$F$16:$F$58,\"short ton\")+(SUMIFS($E$16:$E$58,$D$16:$D$58,$A65,$F$16:$F$58,\"MMBtu\")*'Heat Content'!$D$14)","v":0},"short tons"]
["Bituminous Coal",null,{"$f":"SUMIFS($E$16:$E$58,$D$16:$D$58,$A66,$F$16:$F$58,\"short ton\")+(SUMIFS($E$16:$E$58,$D$16:$D$58,$A66,$F$16:$F$58,\"MMBtu\")*'Heat Content'!$D$15)","v":0},"short tons"]
["Sub-bituminous Coal",null,{"$f":"SUMIFS($E$16:$E$58,$D$16:$D$58,$A67,$F$16:$F$58,\"short ton\")+(SUMIFS($E$16:$E$58,$D$16:$D$58,$A67,$F$16:$F$58,\"MMBtu\")*'Heat Content'!$D$16)","v":0},"short tons"]
["Lignite Coal",null,{"$f":"SUMIFS($E$16:$E$58,$D$16:$D$58,$A68,$F$16:$F$58,\"short ton\")+(SUMIFS($E$16:$E$58,$D$16:$D$58,$A68,$F$16:$F$58,\"MMBtu\")*'Heat Content'!$D$18)","v":0},"short tons"]
["Natural Gas",null,{"$f":"SUMIFS($E$16:$E$58,$D$16:$D$58,$A69,$F$16:$F$58,\"scf\")+(SUMIFS($E$16:$E$58,$D$16:$D$58,$A69,$F$16:$F$58,\"MMBtu\")*'Heat Content'!$D$7)+(SUMIFS($E$16:$E$58,$D$16:$D$58,$A69,$F$16:$F$58,\"Therm\")*'Heat Content'!$D$9)","v":0},"scf"]
["Distillate Fuel Oil No. 2",null,{"$f":"SUMIFS($E$16:$E$58,$D$16:$D$58,$A70,$F$16:$F$58,\"gallons\")+(SUMIFS($E$16:$E$58,$D$16:$D$58,$A70,$F$16:$F$58,\"MMBtu\")*'Heat Content'!$D$21)","v":0},"gallons"]
["Residual Fuel Oil No. 6",null,{"$f":"SUMIFS($E$16:$E$58,$D$16:$D$58,$A71,$F$16:$F$58,\"gallons\")+(SUMIFS($E$16:$E$58,$D$16:$D$58,$A71,$F$16:$F$58,\"MMBtu\")*'Heat Content'!$D$22)","v":0},"gallons"]
["Kerosene",null,{"$f":"SUMIFS($E$16:$E$58,$D$16:$D$58,$A72,$F$16:$F$58,\"gallons\")+(SUMIFS($E$16:$E$58,$D$16:$D$58,$A72,$F$16:$F$58,\"MMBtu\")*'Heat Content'!$D$23)","v":0},"gallons"]
["Liquefied Petroleum Gases (LPG)",null,{"$f":"SUMIFS($E$16:$E$58,$D$16:$D$58,$A73,$F$16:$F$58,\"gallons\")+(SUMIFS($E$16:$E$58,$D$16:$D$58,$A73,$F$16:$F$58,\"MMBtu\")*'Heat Content'!$D$24)","v":0},"gallons"]
["Wood and Wood Residuals",null,{"$f":"SUMIFS($E$16:$E$58,$D$16:$D$58,$A74,$F$16:$F$58,\"short ton\")+(SUMIFS($E$16:$E$58,$D$16:$D$58,$A74,$F$16:$F$58,\"MMBtu\")*'Heat Content'!$D$20)","v":0},"short tons"]
["Landfill Gas",null,{"$f":"SUMIFS($E$16:$E$58,$D$16:$D$58,$A75,$F$16:$F$58,\"scf\")+(SUMIFS($E$16:$E$58,$D$16:$D$58,$A75,$F$16:$F$58,\"MMBtu\")*'Heat Content'!$D$25)+(SUMIFS($E$16:$E$58,$D$16:$D$58,$A75,$F$16:$F$58,\"Therm\")*'Heat Content'!$D$25/10)","v":0},"scf"]
[]
["Total Organization-Wide CO2, CH4 and N2O Emissions from Stationary Source Fuel Combustion"]
["Fuel Type",null,"CO2 (kg)","CH4 (g)","N2O (g)"]
["Anthracite Coal",null,{"$f":"$C65*VLOOKUP($A79,Stationary_Fuel_Fctrs_unit,5,FALSE)","v":0},{"$f":"$C65*VLOOKUP($A79,Stationary_Fuel_Fctrs_unit,6,FALSE)","v":0},{"$f":"$C65*VLOOKUP($A79,Stationary_Fuel_Fctrs_unit,7,FALSE)","v":0}]
["Bituminous Coal",null,{"$f":"$C66*VLOOKUP($A80,Stationary_Fuel_Fctrs_unit,5,FALSE)","v":0},0,0]
["Sub-bituminous Coal",null,0,0,0]
["Lignite Coal",null,0,0,0]
["Natural Gas",null,0,0,0]
["Distillate Fuel Oil No. 2",null,0,0,0]
["Residual Fuel Oil No. 6",null,0,{"$f":"$C71*VLOOKUP($A85,Stationary_Fuel_Fctrs_unit,6,FALSE)","v":0},{"$f":"$C71*VLOOKUP($A85,Stationary_Fuel_Fctrs_unit,7,FALSE)","v":0}]
["Kerosene",null,0,0,0]
["Liquefied Petroleum Gases (LPG)",null,0,0,0]
["Total Fossil Fuel Emissions",null,{"$f":"SUM(C79:C87)","v":0},{"$f":"SUM(D79:D87)","v":0},{"$f":"SUM(E79:E87)","v":0}]
["Wood and Wood Residuals",null,{"$f":"$C74*VLOOKUP($A89,Stationary_Fuel_Fctrs_unit,5,FALSE)","v":0},{"$f":"$C74*VLOOKUP($A89,Stationary_Fuel_Fctrs_unit,6,FALSE)","v":0},{"$f":"$C74*VLOOKUP($A89,Stationary_Fuel_Fctrs_unit,7,FALSE)","v":0}]
["Landfill Gas",null,{"$f":"$C75*VLOOKUP(A90,Stationary_Fuel_Fctrs_unit,5,FALSE)","v":0},{"$f":"$C75*VLOOKUP($A90,Stationary_Fuel_Fctrs_unit,6,FALSE)","v":0},{"$f":"$C75*VLOOKUP($A90,Stationary_Fuel_Fctrs_unit,7,FALSE)","v":0}]
["Total Non-Fossil Fuel Emissions",null,{"$f":"SUM(C89:C90)","v":0},{"$f":"SUM(D89:D90)","v":0},{"$f":"SUM(E89:E90)","v":0}]
["Total Emissions for all Fuels",null,{"$f":"C88+C91","v":0},{"$f":"D88+D91","v":0},{"$f":"E88+E91","v":0}]
[]
[]
["Total CO2 Equivalent Emissions  (metric tons) - Stationary Combustion",null,null,null,{"$f":"(C88+(D88/1000*CH4_GWP)+(E88/1000*N2O_GWP)+(D91/1000*CH4_GWP)+(E91/1000*N2O_GWP))/1000","v":0}]
[]
["Total Biomass CO2 Equivalent Emissions  (metric tons)  - Stationary Combustion",null,null,null,{"$f":"(C91/1000)","v":0}]

{"sheet":"Mobile Sources","index":4,"n_rows":262,"n_cols":8,"rows_kept":262,"cut":false,"hidden":false,"merged":[[213,0,216,0],[218,0,219,0],[220,0,223,0],[18,2,19,2],[198,0,203,0],[204,0,209,0],[184,0,188,0],[189,0,193,0],[194,0,197,0],[63,3,63,4],[88,0,88,1],[74,0,75,2],[63,0,63,2],[182,0,183,0],[182,1,183,1],[74,3,75,3],[74,4,75,4],[176,0,178,0],[176,1,178,1],[179,0,181,0],[179,1,181,1],[8,0,8,8],[15,0,15,6],[11,0,11,6],[5,0,5,6],[7,0,7,8],[6,0,6,8],[239,0,242,0],[243,0,245,0],[246,0,248,0],[249,0,252,0],[224,0,225,0],[226,0,229,0],[230,0,231,0],[232,0,235,0],[236,0,238,0]]}
[]
[]
["Scope 1 Emissions from Mobile Sources"]
[]
["Guidance"]
["(A) Enter annual data for each vehicle or group of vehicles (grouped by vehicle type, vehicle year, and fuel type) in ORANGE cells in \n     Table 1.  Example entry is shown in first row (GREEN Italics).  Only enter vehicles owned or leased by your organization on \n     this sheet.  All other vehicle use such as employee commuting or business travel is considered a scope 3 emissions source \n     and should be reported in the corresponding scope 3 sheets. "]
["                  - Select \"On-Road\" or \"Non-Road\" from drop down box to determine the Vehicle Types available.  Must select before picking vehicle type. "]
["                  - Select \"Vehicle Type\" from drop down box (closest type available).  "]
["                  - Enter \"Fuel Usage\" in appropriate units (units appear when vehicle type is selected)."]
["                     "," - If mileage or fuel usage is unknown, estimate using approximate fuel economy values (see Reference Table below)."]
["                     "," - Vehicle year and Miles traveled are not necessary for non-road equiment."]
["(B) When using biofuels, typically the biofuel (biodiesel or ethanol) is mixed with a petroleum fuel (diesel or gasoline) for use in \n      vehicles.   Enter the biodiesel and ethanol percentages of the fuel if known, or leave default values."]
[]
[null,null,"Biodiesel Percent:",20,"%"]
[null,null,"Ethanol Percent:",80,"%"]
["(C) Biomass CO2 emissions from biodiesel and ethanol are not reported in the total emissions, but are reported separately at the bottom of the sheet."]
[]
["Table 1.  Mobile Source Fuel Combustion and Miles Traveled"]
["Source","Source","On-Road or Non-Road?","Vehicle","Vehicle","Fuel","Units","Miles"]
["ID","Description",null,"Type","Year","Usage",null,"Traveled"]
["Fleet-012","HQ Fleet","OnRoad","Passenger Cars - Gasoline",2019,500,{"$f":"IF($D21=\"\",\"\",IF($D21=\"CNG Buses\", \"scf\", IF($D21=\"CNG Heavy-Duty Vehicles\", \"scf\", IF($D21=\"CNG Light-Duty Vehicles\",\"scf\",\"gal\"))))","v":"gal"},{"$f":"E65*F21","v":12065}]
[null,null,null,null,null,null,{"$f":"IF($D22=\"\",\"\",IF(OR($D22=\"Light-Duty Cars - CNG\",$D22=\"Light-Duty Trucks - CNG\",$D22=\"Medium-Duty Trucks - CNG\",$D22=\"Heavy-Duty Trucks - CNG\",$D22=\"Buses - CNG\"),\"scf\",\"gal\"))","v":""}]
[null,null,null,null,null,null,""]
[null,null,null,null,null,null,""]
[null,null,null,null,null,null,""]
[null,null,null,null,null,null,""]
[null,null,null,null,null,null,""]
[null,null,null,null,null,null,{"$f":"IF($D28=\"\",\"\",IF(OR($D28=\"Light-Duty Cars - CNG\",$D28=\"Light-Duty Trucks - CNG\",$D28=\"Medium-Duty Trucks - CNG\",$D28=\"Heavy-Duty Trucks - CNG\",$D28=\"Buses - CNG\"),\"scf\",\"gal\"))","v":""}]
[null,null,null,null,null,null,""]
[null,null,null,null,null,null,""]
[null,null,null,null,null,null,""]
[null,null,null,null,null,null,""]
[null,null,null,null,null,null,""]
[null,null,null,null,null,null,""]
[null,null,null,null,null,null,""]
[null,null,null,null,null,null,""]
[null,null,null,null,null,null,""]
[null,null,null,null,null,null,""]
[null,null,null,null,null,null,""]
[null,null,null,null,null,null,""]
[null,null,null,null,null,null,""]
[null,null,null,null,null,null,""]
[null,null,null,null,null,null,""]
[null,null,null,null,null,null,""]
[null,null,null,null,null,null,""]
[null,null,null,null,null,null,""]
[null,null,null,null,null,null,""]
[null,null,null,null,null,null,""]
[null,null,null,null,null,null,""]
[null,null,null,null,null,null,""]
[null,null,null,null,null,null,""]
[null,null,null,null,null,null,""]
[null,null,null,null,null,null,""]
[null,null,null,null,null,null,{"$f":"IF($D54=\"\",\"\",IF(OR($D54=\"Light-Duty Cars - CNG\",$D54=\"Light-Duty Trucks - CNG\",$D54=\"Medium-Duty Trucks - CNG\",$D54=\"Heavy-Duty Trucks - CNG\",$D54=\"Buses - CNG\"),\"scf\",\"gal\"))","v":""}]
[null,null,null,null,null,null,""]
[null,null,null,null,null,null,""]
[null,null,null,null,null,null,""]
[null,null,null,null,null,null,""]
[null,null,null,null,null,null,""]
[null,null,null,null,null,null,""]
[null,null,null,null,null,null,""]
[]
["Reference Table: Average Fuel Economy by Vehicle Type"]
["Vehicle Type",null,null,"Average Fuel Economy (mpg)"]
["Passenger Cars",null,null,null,24.13]
["Motorcycles",null,null,null,43.96]
["Diesel Buses (Diesel Heavy-Duty Vehicles)",null,null,null,7.34]
["Other 2-axle, 4-Tire Vehicles",null,null,null,17.61]
["Single unit 2-Axle 6-Tire or More Trucks",null,null,null,7.49]
["Combination Trucks",null,null,null,6]
[]
["GHG Emissions"]
[]
["Total Organization-Wide Mobile Source Fuel Usage and CO2 Emissions (On-Road and Off-Road Vehicles)"]
["Fuel Type",null,null,"Fuel Usage","Units","CO2"]
[null,null,null,null,null,"(kg)"]
["Motor Gasoline",null,null,{"$f":"SUMIF($D$22:$D$61,\"*- Gasoline*\",$F$22:$F$61)","v":0},"gallons",{"$f":"IF($D77=\"\",\"\",Mobile_gas_CO2fctr*$D77)","v":0}]
["Diesel Fuel",null,null,{"$f":"SUMIF($D$22:$D$61,\"*- Diesel\",$F$22:$F$61)","v":0},"gallons",{"$f":"IF($D78=\"\",\"\",Mobile_diesel_CO2fctr*$D78)","v":0}]
["Residual Fuel Oil",null,null,{"$f":"SUMIF($D$22:$D$61,\"*Residual*\",$F$22:$F$61)","v":0},"gallons",{"$f":"IF($D79=\"\",\"\",Mobile_FuelOil_CO2fctr*$D79)","v":0}]
["Aviation Gasoline ",null,null,{"$f":"SUMIF($D$22:$D$61,\"*Aviation Gasoline*\",$F$22:$F$61)","v":0},"gallons",{"$f":"IF($D80=\"\",\"\",Mobile_Avgas_CO2fctr*$D80)","v":0}]
["Kerosene-Type Jet Fuel",null,null,{"$f":"SUMIF($D$22:$D$61,\"*Jet*\",$F$22:$F$61)","v":0},"gallons",{"$f":"IF($D81=\"\",\"\",Mobile_Jet_Fuel_CO2fctr*$D81)","v":0}]
["Liquefied Petroleum Gas (LPG)",null,null,{"$f":"SUMIF($D$22:$D$61,\"*LPG*\",$F$22:$F$61)","v":0},"gallons",{"$f":"IF($D82=\"\",\"\",Mobile_LPG_CO2fctr*$D82)","v":0}]
["Ethanol",null,null,{"$f":"SUMIF($D$22:$D$61,\"*Ethanol*\",$F$22:$F$61)","v":0},"gallons",{"$f":"IF(D83=\"\",\"\",Mobile_gas_CO2fctr*(100-$D$15)/100*$D83)","v":0},"Note: emissions here are only for the gasoline portion of the fuel, biogenic CO2 emissions are reported below"]
["Biodiesel",null,null,{"$f":"SUMIF($D$22:$D$61,\"*- Biodiesel\",$F$22:$F$61)","v":0},"gallons",{"$f":"IF(D84=\"\",\"\",Mobile_diesel_CO2fctr*(100-$D$14)/100*$D84)","v":0},"Note: emissions here are only for the diesel portion of the fuel, biogenic CO2 emissions are reported below"]
["Liquefied Natural Gas (LNG)",null,null,{"$f":"SUMIF($D$22:$D$61,\"*LNG*\",$F$22:$F$61)","v":0},"gallons",{"$f":"IF($D85=\"\",\"\",Mobile_LNG_CO2fctr*$D85)","v":0}]
["Compressed Natural Gas (CNG)",null,null,{"$f":"SUMIF($D$22:$D$61,\"*CNG*\",$F$22:$F$61)","v":0},"scf",{"$f":"IF($D86=\"\",\"\",Mobile_CNG_CO2fctr*$D86)","v":0}]
[]
["Total Organization-Wide On-Road Gasoline Mobile Source Mileage and CH4/N2O Emissions"]
["Vehicle Type",null,"Vehicle Year","Mileage (miles)","CH4 (g)","N2O (g)"]
["Passenger Cars - Gasoline",null,"1984-93",{"$f":"SUMPRODUCT(--($D$22:$D$61=$A$90),--($E$22:$E$61<=1993),--($H$22:$H$61))","v":0},{"$f":"VLOOKUP(C90,Gas_Pass_Car_CH4_N2O, 2,FALSE)*D90","v":0},{"$f":"VLOOKUP(C90,Gas_Pass_Car_CH4_N2O, 3,FALSE)*D90","v":0}]
[null,null,1994,{"$f":"SUMPRODUCT(--($D$22:$D$61=$A$90),--($E$22:$E$61=$C91),--($H$22:$H$61))","v":0},{"$f":"VLOOKUP(C91,Gas_Pass_Car_CH4_N2O, 2,FALSE)*D91","v":0},0]
[null,null,1995,{"$f":"SUMPRODUCT(--($D$22:$D$61=$A$90),--($E$22:$E$61=$C92),--($H$22:$H$61))","v":0},0,0]
[null,null,1996,{"$f":"SUMPRODUCT(--($D$22:$D$61=$A$90),--($E$22:$E$61=$C93),--($H$22:$H$61))","v":0},0,0]
[null,null,1997,0,0,0]
[null,null,1998,0,0,0]
[null,null,1999,0,0,0]
[null,null,2000,0,0,0]
[null,null,2001,0,0,0]
[null,null,2002,0,0,0]
[null,null,2003,0,0,0]
[null,null,2004,0,0,0]
[null,null,2005,0,{"$f":"VLOOKUP(C102,Gas_Pass_Car_CH4_N2O, 2,FALSE)*D102","v":0},{"$f":"VLOOKUP(C102,Gas_Pass_Car_CH4_N2O, 3,FALSE)*D102","v":0}]
[null,null,2006,0,0,0]
[null,null,2007,0,0,0]
[null,null,2008,0,0,0]
[null,null,2009,0,0,0]
[null,null,2010,0,0,0]
[null,null,2011,0,0,0]
[null,null,2012,0,0,0]
[null,null,2013,0,0,0]
[null,null,2014,0,0,0]
[null,null,2015,0,0,0]
[null,null,2016,0,0,0]
[null,null,2017,{"$f":"SUMPRODUCT(--($D$22:$D$61=$A$90),--($E$22:$E$61=$C114),--($H$22:$H$61))","v":0},0,0]
[null,null,2018,{"$f":"SUMPRODUCT(--($D$22:$D$61=$A$90),--($E$22:$E$61=$C115),--($H$22:$H$61))","v":0},{"$f":"VLOOKUP(C115,Gas_Pass_Car_CH4_N2O, 2,FALSE)*D115","v":0},{"$f":"VLOOKUP(C115,Gas_Pass_Car_CH4_N2O, 3,FALSE)*D115","v":0}]
[null,null,2019,{"$f":"SUMPRODUCT(--($D$22:$D$61=$A$90),--($E$22:$E$61=$C116),--($H$22:$H$61))","v":0},0,0]
["Light-Duty Trucks - Gasoline",null,"1987-93",{"$f":"SUMPRODUCT(--($D$22:$D$61=$A$117),--($E$22:$E$61<=1993),--($H$22:$H$61))","v":0},{"$f":"VLOOKUP(C117,Gas_Lt_Duty_Trucks_CH4_N2O, 2,FALSE)*D117","v":0},{"$f":"VLOOKUP(C117,Gas_Lt_Duty_Trucks_CH4_N2O, 3,FALSE)*D117","v":0}]
["(Vans, Pickup Trucks, SUVs)",null,1994,{"$f":"SUMPRODUCT(--($D$22:$D$61=$A$117),--($E$22:$E$61=$C118),--($H$22:$H$61))","v":0},0,0]
[null,null,1995,0,0,0]
[null,null,1996,0,0,0]
[null,null,1997,0,0,0]
[null,null,1998,0,0,0]
[null,null,1999,0,0,0]
[null,null,2000,0,0,0]
[null,null,2001,0,0,0]
[null,null,2002,0,0,0]
[null,null,2003,0,0,0]
[null,null,2004,0,0,0]
[null,null,2005,0,{"$f":"VLOOKUP(C129,Gas_Lt_Duty_Trucks_CH4_N2O, 2,FALSE)*D129","v":0},{"$f":"VLOOKUP(C129,Gas_Lt_Duty_Trucks_CH4_N2O, 3,FALSE)*D129","v":0}]
[null,null,2006,0,0,0]
[null,null,2007,0,0,0]
[null,null,2008,0,0,0]
[null,null,2009,0,0,0]
[null,null,2010,0,0,0]
[null,null,2011,0,0,0]
[null,null,2012,0,0,0]
[null,null,2013,0,0,0]
[null,null,2014,0,0,0]
[null,null,2015,0,0,0]
[null,null,2016,0,{"$f":"VLOOKUP(C140,Gas_Lt_Duty_Trucks_CH4_N2O, 2,FALSE)*D140","v":0},{"$f":"VLOOKUP(C140,Gas_Lt_Duty_Trucks_CH4_N2O, 3,FALSE)*D140","v":0}]
[null,null,2017,0,0,0]
[null,null,2018,0,0,0]
[null,null,2019,0,0,0]
["Heavy-Duty Vehicles - Gasoline",null,"1985-86",{"$f":"SUMPRODUCT(--($D$22:$D$61=$A$144),--($E$22:$E$61<=1986),--($H$22:$H$61))","v":0},{"$f":"VLOOKUP(C144,Gas_Heavy_Duty_CH4_N2O, 2,FALSE)*D144","v":0},{"$f":"VLOOKUP(C144,Gas_Heavy_Duty_CH4_N2O, 3,FALSE)*D144","v":0}]
[null,null,1987,{"$f":"SUMPRODUCT(--($D$22:$D$61=$A$144),--($E$22:$E$61=$C145),--($H$22:$H$61))","v":0},{"$f":"VLOOKUP(C145,Gas_Heavy_Duty_CH4_N2O, 2,FALSE)*D145","v":0},0]
[null,null,"1988-1989",{"$f":"SUMPRODUCT(--($D$22:$D$61=$A$144),--($E$22:$E$61>=1988),--($E$22:$E$61<=1989),--($H$22:$H$61))","v":0},{"$f":"VLOOKUP(C146,Gas_Heavy_Duty_CH4_N2O, 2,FALSE)*D146","v":0},0]
[null,null,"1990-1995",{"$f":"SUMPRODUCT(--($D$22:$D$61=$A$144),--($E$22:$E$61>=1990),--($E$22:$E$61<=1995),--($H$22:$H$61))","v":0},0,0]
[null,null,1996,{"$f":"SUMPRODUCT(--($D$22:$D$61=$A$144),--($E$22:$E$61=$C148),--($H$22:$H$61))","v":0},0,0]
[null,null,1997,0,0,0]
[null,null,1998,0,0,0]
[null,null,1999,0,0,0]
[null,null,2000,0,0,0]
[null,null,2001,0,0,0]
[null,null,2002,0,0,0]
[null,null,2003,0,0,0]
[null,null,2004,0,0,0]
[null,null,2005,0,{"$f":"VLOOKUP(C157,Gas_Heavy_Duty_CH4_N2O, 2,FALSE)*D157","v":0},{"$f":"VLOOKUP(C157,Gas_Heavy_Duty_CH4_N2O, 3,FALSE)*D157","v":0}]
[null,null,2006,0,0,0]
[null,null,2007,0,0,0]
[null,null,2008,0,0,0]
[null,null,2009,0,0,0]
[null,null,2010,0,0,0]
[null,null,2011,0,0,0]
[null,null,2012,0,0,0]
[null,null,2013,0,0,0]
[null,null,2014,0,0,0]
[null,null,2015,0,0,0]
[null,null,2016,0,0,0]
[null,null,2017,0,0,0]
[null,null,2018,0,{"$f":"VLOOKUP(C170,Gas_Heavy_Duty_CH4_N2O, 2,FALSE)*D170","v":0},{"$f":"VLOOKUP(C170,Gas_Heavy_Duty_CH4_N2O, 3,FALSE)*D170","v":0}]
[null,null,2019,0,0,0]
["Motorcycles - Gasoline",null,"1960-1995",{"$f":"SUMPRODUCT(--($D$22:$D$61=$A$172),--($E$22:$E$61<=1995),--($H$22:$H$61))","v":0},{"$f":"VLOOKUP(C172,Gas_Motorcycle_CH4_N2O, 2,FALSE)*D172","v":0},{"$f":"VLOOKUP(C172,Gas_Motorcycle_CH4_N2O, 3,FALSE)*D172","v":0}]
[null,null,"1996-2019",{"$f":"SUMPRODUCT(--($D$22:$D$61=$A$172),--($E$22:$E$61>=1996),--($H$22:$H$61))","v":0},{"$f":"VLOOKUP(C173,Gas_Motorcycle_CH4_N2O, 2,FALSE)*D173","v":0},{"$f":"VLOOKUP(C173,Gas_Motorcycle_CH4_N2O, 3,FALSE)*D173","v":0}]
[]
["Total Organization-Wide On-Road Non-Gasoline Mobile Source Mileage and CH4/N2O Emissions"]
["Vehicle Type","Fuel Type","Vehicle Year","Mileage (miles)","CH4 (g)","N2O (g)"]
["Passenger Cars - Diesel","Diesel","1960-1982",{"$f":"SUMPRODUCT(--($D$22:$D$61=$A$177),--($E$22:$E$61<=1982),--($H$22:$H$61))","v":0},{"$f":"VLOOKUP($C177,Diesel_pass_CH4_N2O, 2,FALSE)*$D177","v":0},{"$f":"VLOOKUP($C177,Diesel_pass_CH4_N2O, 3,FALSE)*$D177","v":0}]
[null,null,"1983-2006",{"$f":"SUMPRODUCT(--($D$22:$D$61=$A$177),--($E$22:$E$61>=1983),--($E$22:$E$61<=2006),--($H$22:$H$61))","v":0},{"$f":"VLOOKUP($C178,Diesel_pass_CH4_N2O, 2,FALSE)*$D178","v":0},{"$f":"VLOOKUP($C178,Diesel_pass_CH4_N2O, 3,FALSE)*$D178","v":0}]
[null,null,"2007-2019",{"$f":"SUMPRODUCT(--($D$22:$D$61=$A$177),--($E$22:$E$61>=2007),--($H$22:$H$61))","v":0},{"$f":"VLOOKUP($C179,Diesel_pass_CH4_N2O, 2,FALSE)*$D179","v":0},{"$f":"VLOOKUP($C179,Diesel_pass_CH4_N2O, 3,FALSE)*$D179","v":0}]
["Light-Duty Trucks - Diesel","Diesel","1960-1982",{"$f":"SUMPRODUCT(--($D$22:$D$61=$A$180),--($E$22:$E$61<=1982),--($H$22:$H$61))","v":0},{"$f":"VLOOKUP($C180,Diesel_Lt_Trucks_CH4_N2O, 2,FALSE)*$D180","v":0},{"$f":"VLOOKUP($C180,Diesel_Lt_Trucks_CH4_N2O, 3,FALSE)*$D180","v":0}]
[null,null,"1983-2006",{"$f":"SUMPRODUCT(--($D$22:$D$61=$A$180),--($E$22:$E$61>=1983),--($E$22:$E$61<=2006),--($H$22:$H$61))","v":0},{"$f":"VLOOKUP($C181,Diesel_Lt_Trucks_CH4_N2O, 2,FALSE)*$D181","v":0},{"$f":"VLOOKUP($C181,Diesel_Lt_Trucks_CH4_N2O, 3,FALSE)*$D181","v":0}]
[null,null,"2007-2019",{"$f":"SUMPRODUCT(--($D$22:$D$61=$A$180),--($E$22:$E$61>=2007),--($H$22:$H$61))","v":0},{"$f":"VLOOKUP($C182,Diesel_Lt_Trucks_CH4_N2O, 2,FALSE)*$D182","v":0},{"$f":"VLOOKUP($C182,Diesel_Lt_Trucks_CH4_N2O, 3,FALSE)*$D182","v":0}]
["Medium- and Heavy-Duty Vehicles - Diesel","Diesel","1960-2006",{"$f":"SUMPRODUCT(--($D$22:$D$61=$A$183),--($E$22:$E$61<=2006),--($H$22:$H$61))","v":0},{"$f":"VLOOKUP($C183,Diesel_Heavy_Trucks_CH4_N2O, 2,FALSE)*$D183","v":0},{"$f":"VLOOKUP($C183,Diesel_Heavy_Trucks_CH4_N2O, 3,FALSE)*$D183","v":0}]
[null,null,"2007-2019",{"$f":"SUMPRODUCT(--($D$22:$D$61=$A$183),--($E$22:$E$61>=2007),--($H$22:$H$61))","v":0},{"$f":"VLOOKUP($C184,Diesel_Heavy_Trucks_CH4_N2O, 2,FALSE)*$D184","v":0},{"$f":"VLOOKUP($C184,Diesel_Heavy_Trucks_CH4_N2O, 3,FALSE)*$D184","v":0}]
["Light-Duty Cars","Methanol",null,{"$f":"SUMIF($D$22:$D$61,$A$185&\" - \"&B185,$H$22:$H$61)","v":0},{"$f":"'Emission Factors'!D134*D185","v":0},{"$f":"'Emission Factors'!E134*D185","v":0}]
[null,"Ethanol",null,{"$f":"SUMIF($D$22:$D$61,$A$185&\" - \"&B186,$H$22:$H$61)","v":0},{"$f":"'Emission Factors'!D135*D186","v":0},{"$f":"'Emission Factors'!E135*D186","v":0}]
[null,"CNG",null,{"$f":"SUMIF($D$22:$D$61,$A$185&\" - \"&B187,$H$22:$H$61)","v":0},{"$f":"'Emission Factors'!D136*D187","v":0},{"$f":"'Emission Factors'!E136*D187","v":0}]
[null,"LPG",null,{"$f":"SUMIF($D$22:$D$61,$A$185&\" - \"&B188,$H$22:$H$61)","v":0},{"$f":"'Emission Factors'!D137*D188","v":0},{"$f":"'Emission Factors'!E137*D188","v":0}]
[null,"Biodiesel",null,{"$f":"SUMIF($D$22:$D$61,$A$185&\" - \"&B189,$H$22:$H$61)","v":0},{"$f":"'Emission Factors'!D138*D189","v":0},{"$f":"'Emission Factors'!E138*D189","v":0}]
["Light-Duty Trucks","Ethanol",null,{"$f":"SUMIF($D$22:$D$61,$A$190&\" - \"&B190,$H$22:$H$61)","v":0},{"$f":"'Emission Factors'!D139*D190","v":0},{"$f":"'Emission Factors'!E139*D190","v":0}]
[null,"CNG",null,{"$f":"SUMIF($D$22:$D$61,$A$190&\" - \"&B191,$H$22:$H$61)","v":0},{"$f":"'Emission Factors'!D140*D191","v":0},{"$f":"'Emission Factors'!E140*D191","v":0}]
[null,"LPG",null,{"$f":"SUMIF($D$22:$D$61,$A$190&\" - \"&B192,$H$22:$H$61)","v":0},{"$f":"'Emission Factors'!D141*D192","v":0},{"$f":"'Emission Factors'!E141*D192","v":0}]
[null,"LNG",null,{"$f":"SUMIF($D$22:$D$61,$A$190&\" - \"&B193,$H$22:$H$61)","v":0},{"$f":"'Emission Factors'!D142*D193","v":0},{"$f":"'Emission Factors'!E142*D193","v":0}]
[null,"Biodiesel",null,{"$f":"SUMIF($D$22:$D$61,$A$190&\" - \"&B194,$H$22:$H$61)","v":0},{"$f":"'Emission Factors'!D143*D194","v":0},{"$f":"'Emission Factors'!E143*D194","v":0}]
["Medium-Duty Trucks","CNG",null,{"$f":"SUMIF($D$22:$D$61,$A$195&\" - \"&B195,$H$22:$H$61)","v":0},{"$f":"'Emission Factors'!D144*D195","v":0},{"$f":"'Emission Factors'!E144*D195","v":0}]
[null,"LPG",null,{"$f":"SUMIF($D$22:$D$61,$A$195&\" - \"&B196,$H$22:$H$61)","v":0},{"$f":"'Emission Factors'!D145*D196","v":0},{"$f":"'Emission Factors'!E145*D196","v":0}]
[null,"LNG",null,{"$f":"SUMIF($D$22:$D$61,$A$195&\" - \"&B197,$H$22:$H$61)","v":0},{"$f":"'Emission Factors'!D146*D197","v":0},{"$f":"'Emission Factors'!E146*D197","v":0}]
[null,"Biodiesel",null,{"$f":"SUMIF($D$22:$D$61,$A$195&\" - \"&B198,$H$22:$H$61)","v":0},{"$f":"'Emission Factors'!D147*D198","v":0},{"$f":"'Emission Factors'!E147*D198","v":0}]
["Heavy-Duty Trucks","Methanol",null,{"$f":"SUMIF($D$22:$D$61,$A$199&\" - \"&B199,$H$22:$H$61)","v":0},{"$f":"'Emission Factors'!D148*D199","v":0},{"$f":"'Emission Factors'!E148*D199","v":0}]
[null,"Ethanol",null,0,{"$f":"'Emission Factors'!D149*D200","v":0},{"$f":"'Emission Factors'!E149*D200","v":0}]
[null,"CNG",null,0,{"$f":"'Emission Factors'!D150*D201","v":0},{"$f":"'Emission Factors'!E150*D201","v":0}]
[null,"LPG",null,0,{"$f":"'Emission Factors'!D151*D202","v":0},{"$f":"'Emission Factors'!E151*D202","v":0}]
[null,"LNG",null,0,{"$f":"'Emission Factors'!D152*D203","v":0},{"$f":"'Emission Factors'!E152*D203","v":0}]
[null,"Biodiesel",null,0,{"$f":"'Emission Factors'!D153*D204","v":0},{"$f":"'Emission Factors'!E153*D204","v":0}]
["Buses","Methanol",null,{"$f":"SUMIF($D$22:$D$61,$A$205&\" - \"&B205,$H$22:$H$61)","v":0},{"$f":"'Emission Factors'!D154*D205","v":0},{"$f":"'Emission Factors'!E154*D205","v":0}]
[null,"Ethanol",null,0,{"$f":"'Emission Factors'!D155*D206","v":0},{"$f":"'Emission Factors'!E155*D206","v":0}]
[null,"CNG",null,0,{"$f":"'Emission Factors'!D156*D207","v":0},{"$f":"'Emission Factors'!E156*D207","v":0}]
[null,"LPG",null,0,{"$f":"'Emission Factors'!D157*D208","v":0},{"$f":"'Emission Factors'!E157*D208","v":0}]
[null,"LNG",null,0,{"$f":"'Emission Factors'!D158*D209","v":0},{"$f":"'Emission Factors'!E158*D209","v":0}]
[null,"Biodiesel",null,0,{"$f":"'Emission Factors'!D159*D210","v":0},{"$f":"'Emission Factors'!E159*D210","v":0}]
[]
["Total Organization-Wide Non-Road Mobile Source Fuel Usage and CH4/N2O Emissions"]
["Vehicle Type","Fuel Type","Fuel Usage (gallons)","CH4 (g) ","N2O (g)"]
["Ships and Boats","Residual Fuel Oil",{"$f":"SUMIF($D$22:$D$61,$A$214&\" - \"&B214,$F$22:$F$61)","v":0},{"$f":"'Emission Factors'!C163*C214","v":0},{"$f":"'Emission Factors'!D163*C214","v":0}]
[null,"Gasoline (2 stroke)",{"$f":"SUMIF($D$22:$D$61,$A$214&\" - \"&B215,$F$22:$F$61)","v":0},{"$f":"'Emission Factors'!C164*C215","v":0},{"$f":"'Emission Factors'!D164*C215","v":0}]
[null,"Gasoline (4 stroke)",{"$f":"SUMIF($D$22:$D$61,$A$214&\" - \"&B216,$F$22:$F$61)","v":0},{"$f":"'Emission Factors'!C165*C216","v":0},{"$f":"'Emission Factors'!D165*C216","v":0}]
[null,"Diesel",{"$f":"SUMIF($D$22:$D$61,$A$214&\" - \"&B217,$F$22:$F$61)","v":0},{"$f":"'Emission Factors'!C166*C217","v":0},{"$f":"'Emission Factors'!D166*C217","v":0}]
["Locomotives","Diesel",{"$f":"SUMIF($D$22:$D$61,$A$218&\" - \"&B218,$F$22:$F$61)","v":0},{"$f":"'Emission Factors'!C167*C218","v":0},{"$f":"'Emission Factors'!D167*C218","v":0}]
["Aircraft","Jet Fuel",{"$f":"SUMIF($D$22:$D$61,$A$219&\" - \"&B219,$F$22:$F$61)","v":0},{"$f":"'Emission Factors'!C168*C219","v":0},{"$f":"'Emission Factors'!D168*C219","v":0}]
[null,"Aviation Gasoline",{"$f":"SUMIF($D$22:$D$61,$A$219&\" - \"&B220,$F$22:$F$61)","v":0},{"$f":"'Emission Factors'!C169*C220","v":0},{"$f":"'Emission Factors'!D169*C220","v":0}]
["Agricultural Equipment","Gasoline (2 stroke)",{"$f":"SUMIF($D$22:$D$61,$A$221&\" - \"&B221,$F$22:$F$61)","v":0},{"$f":"'Emission Factors'!C170*C221","v":0},{"$f":"'Emission Factors'!D170*C221","v":0}]
[null,"Gasoline (4 stroke)",{"$f":"SUMIF($D$22:$D$61,$A$221&\" - \"&B222,$F$22:$F$61)","v":0},{"$f":"'Emission Factors'!C171*C222","v":0},{"$f":"'Emission Factors'!D171*C222","v":0}]
[null,"Diesel",{"$f":"SUMIF($D$22:$D$61,$A$221&\" - \"&B223,$F$22:$F$61)","v":0},{"$f":"'Emission Factors'!C172*C223","v":0},{"$f":"'Emission Factors'!D172*C223","v":0}]
[null,"LPG",{"$f":"SUMIF($D$22:$D$61,$A$221&\" - \"&B224,$F$22:$F$61)","v":0},{"$f":"'Emission Factors'!C173*C224","v":0},{"$f":"'Emission Factors'!D173*C224","v":0}]
["Agricultural Offroad Trucks","Gasoline",{"$f":"SUMIF($D$22:$D$61,$A$225&\" - \"&B225,$F$22:$F$61)","v":0},{"$f":"'Emission Factors'!C174*C225","v":0},{"$f":"'Emission Factors'!D174*C225","v":0}]
[null,"Diesel",{"$f":"SUMIF($D$22:$D$61,$A$225&\" - \"&B226,$F$22:$F$61)","v":0},{"$f":"'Emission Factors'!C175*C226","v":0},{"$f":"'Emission Factors'!D175*C226","v":0}]
["Construction/Mining Equipment","Gasoline (2 stroke)",{"$f":"SUMIF($D$22:$D$61,$A$227&\" - \"&B227,$F$22:$F$61)","v":0},{"$f":"'Emission Factors'!C176*C227","v":0},{"$f":"'Emission Factors'!D176*C227","v":0}]
[null,"Gasoline (4 stroke)",{"$f":"SUMIF($D$22:$D$61,$A$227&\" - \"&B228,$F$22:$F$61)","v":0},{"$f":"'Emission Factors'!C177*C228","v":0},{"$f":"'Emission Factors'!D177*C228","v":0}]
[null,"Diesel",{"$f":"SUMIF($D$22:$D$61,$A$227&\" - \"&B229,$F$22:$F$61)","v":0},{"$f":"'Emission Factors'!C178*C229","v":0},{"$f":"'Emission Factors'!D178*C229","v":0}]
[null,"LPG",{"$f":"SUMIF($D$22:$D$61,$A$227&\" - \"&B230,$F$22:$F$61)","v":0},{"$f":"'Emission Factors'!C179*C230","v":0},{"$f":"'Emission Factors'!D179*C230","v":0}]
["Construction/Mining Offroad Trucks","Gasoline",{"$f":"SUMIF($D$22:$D$61,$A$231&\" - \"&B231,$F$22:$F$61)","v":0},{"$f":"'Emission Factors'!C180*C231","v":0},{"$f":"'Emission Factors'!D180*C231","v":0}]
[null,"Diesel",{"$f":"SUMIF($D$22:$D$61,$A$231&\" - \"&B232,$F$22:$F$61)","v":0},{"$f":"'Emission Factors'!C181*C232","v":0},{"$f":"'Emission Factors'!D181*C232","v":0}]
["Lawn and Garden Equipment","Gasoline (2 stroke)",{"$f":"SUMIF($D$22:$D$61,$A$233&\" - \"&B233,$F$22:$F$61)","v":0},{"$f":"'Emission Factors'!C182*C233","v":0},{"$f":"'Emission Factors'!D182*C233","v":0}]
[null,"Gasoline (4 stroke)",{"$f":"SUMIF($D$22:$D$61,$A$233&\" - \"&B234,$F$22:$F$61)","v":0},{"$f":"'Emission Factors'!C183*C234","v":0},{"$f":"'Emission Factors'!D183*C234","v":0}]
[null,"Diesel",{"$f":"SUMIF($D$22:$D$61,$A$233&\" - \"&B235,$F$22:$F$61)","v":0},{"$f":"'Emission Factors'!C184*C235","v":0},{"$f":"'Emission Factors'!D184*C235","v":0}]
[null,"LPG",{"$f":"SUMIF($D$22:$D$61,$A$233&\" - \"&B236,$F$22:$F$61)","v":0},{"$f":"'Emission Factors'!C185*C236","v":0},{"$f":"'Emission Factors'!D185*C236","v":0}]
["Airport Equipment","Gasoline",{"$f":"SUMIF($D$22:$D$61,$A$237&\" - \"&B237,$F$22:$F$61)","v":0},{"$f":"'Emission Factors'!C186*C237","v":0},{"$f":"'Emission Factors'!D186*C237","v":0}]
[null,"Diesel",{"$f":"SUMIF($D$22:$D$61,$A$237&\" - \"&B238,$F$22:$F$61)","v":0},{"$f":"'Emission Factors'!C187*C238","v":0},{"$f":"'Emission Factors'!D187*C238","v":0}]
[null,"LPG",{"$f":"SUMIF($D$22:$D$61,$A$237&\" - \"&B239,$F$22:$F$61)","v":0},{"$f":"'Emission Factors'!C188*C239","v":0},{"$f":"'Emission Factors'!D188*C239","v":0}]
["Industrial/Commercial Equipment","Gasoline (2 stroke)",{"$f":"SUMIF($D$22:$D$61,$A$240&\" - \"&B240,$F$22:$F$61)","v":0},{"$f":"'Emission Factors'!C189*C240","v":0},{"$f":"'Emission Factors'!D189*C240","v":0}]
[null,"Gasoline (4 stroke)",{"$f":"SUMIF($D$22:$D$61,$A$240&\" - \"&B241,$F$22:$F$61)","v":0},{"$f":"'Emission Factors'!C190*C241","v":0},{"$f":"'Emission Factors'!D190*C241","v":0}]
[null,"Diesel",{"$f":"SUMIF($D$22:$D$61,$A$240&\" - \"&B242,$F$22:$F$61)","v":0},{"$f":"'Emission Factors'!C191*C242","v":0},{"$f":"'Emission Factors'!D191*C242","v":0}]
[null,"LPG",{"$f":"SUMIF($D$22:$D$61,$A$240&\" - \"&B243,$F$22:$F$61)","v":0},{"$f":"'Emission Factors'!C192*C243","v":0},{"$f":"'Emission Factors'!D192*C243","v":0}]
["Logging Equipment","Gasoline (2 stroke)",{"$f":"SUMIF($D$22:$D$61,$A$244&\" - \"&B244,$F$22:$F$61)","v":0},{"$f":"'Emission Factors'!C193*C244","v":0},{"$f":"'Emission Factors'!D193*C244","v":0}]
[null,"Gasoline (4 stroke)",{"$f":"SUMIF($D$22:$D$61,$A$244&\" - \"&B245,$F$22:$F$61)","v":0},{"$f":"'Emission Factors'!C194*C245","v":0},{"$f":"'Emission Factors'!D194*C245","v":0}]
[null,"Diesel",{"$f":"SUMIF($D$22:$D$61,$A$244&\" - \"&B246,$F$22:$F$61)","v":0},{"$f":"'Emission Factors'!C195*C246","v":0},{"$f":"'Emission Factors'!D195*C246","v":0}]
["Railroad Equipment","Gasoline",{"$f":"SUMIF($D$22:$D$61,$A$247&\" - \"&B247,$F$22:$F$61)","v":0},{"$f":"'Emission Factors'!C196*C247","v":0},{"$f":"'Emission Factors'!D196*C247","v":0}]
[null,"Diesel",{"$f":"SUMIF($D$22:$D$61,$A$247&\" - \"&B248,$F$22:$F$61)","v":0},{"$f":"'Emission Factors'!C197*C248","v":0},{"$f":"'Emission Factors'!D197*C248","v":0}]
[null,"LPG",{"$f":"SUMIF($D$22:$D$61,$A$247&\" - \"&B249,$F$22:$F$61)","v":0},{"$f":"'Emission Factors'!C198*C249","v":0},{"$f":"'Emission Factors'!D198*C249","v":0}]
["Recreational Equipment","Gasoline (2 stroke)",{"$f":"SUMIF($D$22:$D$61,$A$250&\" - \"&B250,$F$22:$F$61)","v":0},{"$f":"'Emission Factors'!C199*C250","v":0},{"$f":"'Emission Factors'!D199*C250","v":0}]
[null,"Gasoline (4 stroke)",{"$f":"SUMIF($D$22:$D$61,$A$250&\" - \"&B251,$F$22:$F$61)","v":0},{"$f":"'Emission Factors'!C200*C251","v":0},{"$f":"'Emission Factors'!D200*C251","v":0}]
[null,"Diesel",{"$f":"SUMIF($D$22:$D$61,$A$250&\" - \"&B252,$F$22:$F$61)","v":0},{"$f":"'Emission Factors'!C201*C252","v":0},{"$f":"'Emission Factors'!D201*C252","v":0}]
[null,"LPG",{"$f":"SUMIF($D$22:$D$61,$A$250&\" - \"&B253,$F$22:$F$61)","v":0},{"$f":"'Emission Factors'!C202*C253","v":0},{"$f":"'Emission Factors'!D202*C253","v":0}]
[]
[]
[]
["Total CO2 Equivalent Emissions  (metric tons)  - Mobile Sources",null,null,null,{"$f":"((SUM($F$77:$F$86))+(SUM($E$90:$E$173)+SUM($E$177:$E$210)+SUM($D$214:$D$253))*CH4_GWP/1000+(SUM($F$90:$F$173)+SUM($F$177:$F$210)+SUM($E$214:$E$253))*N2O_GWP/1000)/1000","v":0}]
[]
["Total Biomass CO2 Equivalent Emissions  (metric tons) - Mobile Sources",null,null,null,{"$f":"((Mobile_Ethanol_CO2fctr*$D$15/100*$D$83)+(Mobile_Biodiesel_CO2fctr*$D$14/100*$D$84))/1000","v":0}]
[]
["Notes:"]
["1.  Average mpg values from the U.S. Department of Transportation, Federal Highway Administration, Highway Statistics 2019 (December 2021), Table VM-1."]

{"sheet":"Refrigeration and AC","index":5,"n_rows":135,"n_cols":25,"rows_kept":135,"cut":false,"hidden":false,"merged":[[5,0,5,7],[6,0,6,7],[128,0,129,4],[46,2,46,3],[46,5,46,6],[71,5,71,6],[65,0,65,7],[67,0,67,7],[71,0,74,0],[71,1,74,1],[71,2,74,2],[71,3,74,3]]}
[]
[]
["Scope 1 Emissions from Refrigeration and Air Conditioning Equipment"]
[]
["Guidance"]
["  (A)  HFC, PFC, CO2, and SF6 refrigerants from facilities and vehicles are required to be included in the GHG inventory.  Ozone depleting \n         substances, such as CFCs and HCFCs, are regulated internationally and are typically excluded from a GHG inventory or reported \n         as a memo item. "]
["  (B) Select ONE of the three options with which to estimate emissions.  Options range from most preferred method \n         (Option 1) to least preferred method (Option 3).  If option 3, screening method, is used and emissions are determined to be \n         significant when compared to other emission sources, then one of the other methods should be applied to calculate emissions more \n         accurately."]
["  (C)  Enter annual data in ORANGE cells as appropriate for the selected option."]
[]
["Option 1.    Material Balance Method:  Enter organization-wide total gases stored and transferred (by gas) in Table 1."]
["                  - Choose the appropriate gas from the Gas drop down menu."]
["                  - Inventory Change = difference of gas stored in inventory from beginning to end of reporting period."]
["                    (Includes only gas stored on-site (i.e. cylinders) and not gas contained within equipment)."]
["                  - Transferred Amount = gas purchased minus gas sold/disposed during reporting period."]
["                      -- Gas purchased includes:  Purchases for inventory, as part of equipment servicing (not from inventory),"]
["                         within purchased equipment, and gas returned to the site after off-site recycling."]
["                      -- Gas sold/disposed includes:  Returns to supplier, sales or disposals (including within equipment), "]
["                         and gas sent off-site for recycling, reclamation, or destruction."]
["                  - Capacity Change = capacity of all units at beginning minus capacity of all units at end of reporting period."]
["                    (can be assumed to be capacity of new units minus capacity of retired units)."]
[]
["Table 1.  Organization-Wide Refrigeration Gas CO2 Equivalent Emissions - Material Balance"]
["Gas","Gas","Inventory","Transferred","Capacity","CO2 Equivalent"]
[null,"GWP","Change","Amount","Change","Emissions"]
[null,null,"(lb)","(lb)","(lb)","(lb)"]
[null,{"$f":"IF(A26=\"\",\"\",VLOOKUP(A26,GWP,2,FALSE))","v":""},null,null,null,{"$f":"IF(B26=\"\", \"\",IF(($C26+$D26+$E26)*$B26<0,0,($C26+$D26+$E26)*$B26))","v":""}]
[null,"",null,null,null,""]
[null,"",null,null,null,""]
[null,"",null,null,null,{"$f":"IF(B29=\"\", \"\",IF(($C29+$D29+$E29)*$B29<0,0,($C29+$D29+$E29)*$B29))","v":""}]
[null,"",null,null,null,""]
[null,"",null,null,null,""]
[null,"",null,null,null,""]
[null,"",null,null,null,""]
[null,"",null,null,null,""]
[null,"",null,null,null,""]
[null,"",null,null,null,""]
[]
["Option 2.     Material Balance Method (Simplified):  Enter organization-wide total gases in units (by gas) in Table 2."]
["                  - Choose the appropriate gas from the drop down menu."]
["                  - New units are those installed during reporting period (do not include any data for new units pre-charged by"]
["                    supplier), disposed units were disposed of during the reporting period, and existing units are all others."]
["                  - Charge/Recharge = gas added to units by organization or a contractor (do not include pre-charge by manufacturer)."]
["                  - Capacity = sum of the full capacity for all units (do not include new units pre-charged by manufacturer). "]
["                  - Amount recovered = total gas recovered from all retired units."]
[]
["Table 2.  Organization-Wide Refrigeration Gas CO2 Equivalent Emissions - Simplified Material Balance"]
["Gas","Gas","New Units",null,"Existing Units","Disposed Units",null,"CO2 Equivalent"]
[null,"GWP","Charge","Capacity","Recharge","Capacity","Recovered","Emissions"]
[null,null,"(lb)","(lb)","(lb)","(lb)","(lb)","(lb)"]
[null,{"$f":"IF(A50=\"\",\"\",VLOOKUP(A50,GWP,2,FALSE))","v":""},null,null,null,null,null,{"$f":"IF(B50=\"\",\"\",IF(($C50-$D50+$E50+$F50-$G50)*$B50<0,0,($C50-$D50+$E50+$F50-$G50)*$B50))","v":""}]
[null,"",null,null,null,null,null,{"$f":"IF(B51=\"\",\"\",IF(($C51-$D51+$E51+$F51-$G51)*$B51<0,0,($C51-$D51+$E51+$F51-$G51)*$B51))","v":""}]
[null,"",null,null,null,null,null,""]
[null,"",null,null,null,null,null,""]
[null,"",null,null,null,null,null,""]
[null,"",null,null,null,null,null,""]
[null,"",null,null,null,null,null,""]
[null,"",null,null,null,null,null,""]
[null,"",null,null,null,null,null,""]
[null,"",null,null,null,null,null,""]
[null,"",null,null,null,null,null,""]
[]
["Option 3.     Screening Method:  Enter refrigerant information for each unit or group of units (by refrigerant) in Table 3."]
["                  - Select the \"Type of Equipment\" (closest available) and \"Gas\" from the drop down box."]
["                  - Enter amount of refrigerant added to new units by the organization (not pre-charged amount from manufacturer)."]
["                  - Enter refrigerant capacity (by equipment type and refrigerant) for all units operating and disposed during reporting period."]
["                      -- For each unit added or removed during reporting period, multiply its capacity by a usage factor (0.0 to 1.0). \n                         For example, if the equipment was installed in June, multiply by 0.5 or (6/12), if it was installed in  \n                         September you would multiply by 0.33 (4/12)."]
["                      -- If data entered for multiple units, sum the capacities or charge quantity for all like units."]
["                      -- If capacity of unit(s) is not known, use upper value of default capacity provided in the Reference Table below."]
["                  - See example entry in first row (GREEN Italics)."]
[]
["Table 3.  Source Level Refrigeration Gas CO2 Equivalent Emissions - Screening Method"]
["Source ID","Type of Equipment","Gas","Gas\nGWP","New Units","Capacity",null,"CO2"]
[null,null,null,null,"Charge","Operating","Disposed","Equivalent"]
[null,null,null,null,"(kg)","Units","Units","Emissions"]
[null,null,null,null,null,"(kg)","(kg)","(kg)",null,null,null,null,null,null,null,null,"Formula Selection for Type of Equipment"]
["Bldg-012","Domestic Refrigeration","HFC-32",{"$f":"IF(ISNA(VLOOKUP($C76,GWP,2,FALSE)),\"\", VLOOKUP($C76,GWP,2,FALSE))","v":675},1000,{"$f":"0.5","v":0.5},0.25,{"$f":"($E76*(1/100)+$F76*(0.5/100)+$G76*(80/100)*(1-70/100))*$D76","v":6792.1875},null,null,null,null,null,null,null,null,"Domestic Refrigeration","Stand-Alone Commercial","Medium/Large Commercial","Transport Refrigeration","Industrial Refrigeration","Chillers","Residential/Commercial A/C","Car A/C Units","Light-Duty Truck A/C Units"]
[null,null,null,"",null,null,null,{"$f":"IF($D77=\"\",\"\",SUM($Q77:$Y77))","v":""},null,null,null,null,null,null,null,null,{"$f":"IF($B77=Q76,(($E77*(1/100)+$F77*(0.5/100)+$G77*(80/100)*(1-70/100))*$D77),0)","v":0},{"$f":"IF($B77=\"Stand-Alone Commercial\",(($E77*(3/100)+$F77*(15/100)+$G77*(80/100)*(1-70/100))*$D77),0)","v":0},{"$f":"IF($B77=\"Medium/Large Commercial\",(($E77*(3/100)+$F77*(35/100)+$G77*(100/100)*(1-70/100))*$D77),0)","v":0},{"$f":"IF($B77=\"Transport Refrigeration\",(($E77*(1/100)+$F77*(50/100)+$G77*(50/100)*(1-70/100))*$D77),0)","v":0},{"$f":"IF($B77=\"Industrial Refrigeration\",(($E77*(3/100)+$F77*(25/100)+$G77*(100/100)*(1-90/100))*$D77),0)","v":0},{"$f":"IF($B77=\"Chillers\",(($E77*(1/100)+$F77*(15/100)+$G77*(100/100)*(1-95/100))*$D77),0)","v":0},{"$f":"IF($B77=\"Residential/Commercial A/C\",(($E77*(1/100)+$F77*(10/100)+$G77*(80/100)*(1-80/100))*$D77),0)","v":0},{"$f":"IF($B77=\"Car A/C Units\",(($E77*(0.5/100)+$F77*(20/100)+$G77*(50/100)*(1-50/100))*$D77),0)","v":0},{"$f":"IF($B77=\"Light-Duty Truck A/C Units\",(($E77*(0.5/100)+$F77*(20/100)+$G77*(50/100)*(1-50/100))*$D77),0)","v":0}]
[null,null,null,"",null,null,null,{"$f":"IF($D78=\"\",\"\",SUM($Q78:$Y78))","v":""},null,null,null,null,null,null,null,null,{"$f":"IF($B78=\"Domestic Refrigeration\",(($E78*(1/100)+$F78*(0.5/100)+$G78*(80/100)*(1-70/100))*$D78),0)","v":0},{"$f":"IF($B78=\"Stand-Alone Commercial\",(($E78*(3/100)+$F78*(15/100)+$G78*(80/100)*(1-70/100))*$D78),0)","v":0},{"$f":"IF($B78=\"Medium/Large Commercial\",(($E78*(3/100)+$F78*(35/100)+$G78*(100/100)*(1-70/100))*$D78),0)","v":0},{"$f":"IF($B78=\"Transport Refrigeration\",(($E78*(1/100)+$F78*(50/100)+$G78*(50/100)*(1-70/100))*$D78),0)","v":0},{"$f":"IF($B78=\"Industrial Refrigeration\",(($E78*(3/100)+$F78*(25/100)+$G78*(100/100)*(1-90/100))*$D78),0)","v":0},{"$f":"IF($B78=\"Chillers\",(($E78*(1/100)+$F78*(15/100)+$G78*(100/100)*(1-95/100))*$D78),0)","v":0},{"$f":"IF($B78=\"Residential/Commercial A/C\",(($E78*(1/100)+$F78*(10/100)+$G78*(80/100)*(1-80/100))*$D78),0)","v":0},{"$f":"IF($B78=\"Car A/C Units\",(($E78*(0.5/100)+$F78*(20/100)+$G78*(50/100)*(1-50/100))*$D78),0)","v":0},{"$f":"IF($B78=\"Light-Duty Truck A/C Units\",(($E78*(0.5/100)+$F78*(20/100)+$G78*(50/100)*(1-50/100))*$D78),0)","v":0}]
[null,null,null,"",null,null,null,"",null,null,null,null,null,null,null,null,0,0,0,0,0,0,0,0,0]
[null,null,null,"",null,null,null,"",null,null,null,null,null,null,null,null,0,0,0,0,0,0,0,0,0]
[null,null,null,"",null,null,null,"",null,null,null,null,null,null,null,null,0,0,0,0,0,0,0,0,0]
[null,null,null,"",null,null,null,"",null,null,null,null,null,null,null,null,0,0,0,0,0,0,0,0,0]
[null,null,null,"",null,null,null,"",null,null,null,null,null,null,null,null,0,0,0,0,0,0,0,0,0]
[null,null,null,"",null,null,null,"",null,null,null,null,null,null,null,null,0,0,0,0,0,0,0,0,0]
[null,null,null,"",null,null,null,"",null,null,null,null,null,null,null,null,0,0,0,0,0,0,0,0,0]
[null,null,null,"",null,null,null,"",null,null,null,null,null,null,null,null,0,0,0,0,0,0,0,0,0]
[null,null,null,"",null,null,null,"",null,null,null,null,null,null,null,null,0,0,0,0,0,0,0,0,0]
[null,null,null,"",null,null,null,"",null,null,null,null,null,null,null,null,0,0,0,0,0,0,0,0,0]
[null,null,null,"",null,null,null,"",null,null,null,null,null,null,null,null,0,0,0,0,0,0,0,0,0]
[null,null,null,"",null,null,null,"",null,null,null,null,null,null,null,null,{"$f":"IF($B90=\"Domestic Refrigeration\",(($E90*(1/100)+$F90*(0.5/100)+$G90*(80/100)*(1-70/100))*$D90),0)","v":0},0,0,0,0,0,0,0,0]
[null,null,null,"",null,null,null,"",null,null,null,null,null,null,null,null,0,0,0,0,0,0,0,0,0]
[null,null,null,"",null,null,null,"",null,null,null,null,null,null,null,null,0,0,0,0,0,0,0,0,0]
[null,null,null,{"$f":"IF(ISNA(VLOOKUP($C93,GWP,2,FALSE)),\"\", VLOOKUP($C93,GWP,2,FALSE))","v":""},null,null,null,"",null,null,null,null,null,null,null,null,0,0,0,0,0,0,0,0,0]
[null,null,null,"",null,null,null,"",null,null,null,null,null,null,null,null,0,0,0,0,0,0,0,0,0]
[null,null,null,"",null,null,null,"",null,null,null,null,null,null,null,null,0,0,0,0,0,0,0,0,0]
[null,null,null,"",null,null,null,"",null,null,null,null,null,null,null,null,0,0,0,0,0,0,0,0,0]
[null,null,null,"",null,null,null,"",null,null,null,null,null,null,null,null,0,0,0,0,0,0,0,0,0]
[null,null,null,"",null,null,null,"",null,null,null,null,null,null,null,null,0,0,0,0,0,0,0,0,0]
[null,null,null,"",null,null,null,"",null,null,null,null,null,null,null,null,0,0,0,0,0,0,0,0,0]
[null,null,null,"",null,null,null,"",null,null,null,null,null,null,null,null,0,0,0,0,0,0,0,0,0]
[null,null,null,"",null,null,null,"",null,null,null,null,null,null,null,null,0,0,0,0,0,0,0,0,0]
[null,null,null,"",null,null,null,"",null,null,null,null,null,null,null,null,0,0,0,0,0,0,0,0,0]
[null,null,null,"",null,null,null,"",null,null,null,null,null,null,null,null,0,0,0,0,0,0,0,0,0]
[null,null,null,"",null,null,null,"",null,null,null,null,null,null,null,null,0,0,0,0,0,0,0,0,0]
[null,null,null,"",null,null,null,"",null,null,null,null,null,null,null,null,0,0,0,0,0,0,0,0,0]
[null,null,null,"",null,null,null,"",null,null,null,null,null,null,null,null,0,0,0,0,0,0,0,0,0]
[null,null,null,"",null,null,null,"",null,null,null,null,null,null,null,null,0,0,0,0,0,0,0,0,0]
[null,null,null,"",null,null,null,"",null,null,null,null,null,null,null,null,0,0,0,0,0,0,0,0,0]
[null,null,null,"",null,null,null,"",null,null,null,null,null,null,null,null,0,0,0,0,0,0,0,0,0]
[null,null,null,"",null,null,null,"",null,null,null,null,null,null,null,null,0,0,0,0,0,0,0,0,0]
[null,null,null,"",null,null,null,"",null,null,null,null,null,null,null,null,0,0,0,0,0,0,0,0,0]
[null,null,null,"",null,null,null,"",null,null,null,null,null,null,null,null,0,0,0,0,0,0,0,0,0]
[null,null,null,"",null,null,null,"",null,null,null,null,null,null,null,null,0,0,0,0,0,0,0,0,0]
[null,null,null,"",null,null,null,"",null,null,null,null,null,null,null,null,0,0,0,0,0,0,0,0,0]
[]
["Reference Table: Type of Equipment and Default Capacity Ranges (Lower to Upper Range) for Table 3"]
["Domestic Refrigeration",null,"Domestic refrigeration units (capacity 0.05 to 0.5 kg)"]
["Stand-Alone Commercial",null,"Stand alone commercial applications (capacity 0.2 to 6 kg)"]
["Medium/Large Commercial",null,"Medium and large commercial refrigeration units (capacity 50 to 2,000 kg)"]
["Transport Refrigeration",null,"Transportation refrigeration units (capacity 3 to 8 kg)"]
["Industrial Refrigeration",null,"Industrial, food processing and cold storage units (capacity 10 to 10,000 kg)"]
["Chillers",null,"Commercial chillers (default capacity 10 to 2,000 kg)"]
["Residential/Commercial A/C",null,"Residential and commercial units, including heat pumps (capacity 0.5 to 100 kg)"]
["Car A/C Units",null,"Passenger car A/C units (capacity 0.5 kg)"]
["Light-Duty Truck A/C Units",null,"Light-duty truck A/C units (capacity 1.5 kg)"]
[]
["GHG Emissions"]
[]
["Total CO2 Equivalent Emissions  (metric tons) - Refrigeration and AC Equipment"]
[null,null,null,null,null,{"$f":"(((SUM($F$26:$F$36)+SUM($H$50:$H$60))*kg_per_lb) +SUM($H$77:$H$114))/1000","v":0}]
[]
["Notes:"]
["1.  CO2 emissions estimated using emission factors provided in Table 3 of the Center for Corporate Climate Leadership Greenhouse Gas Inventory Guidance"]
["    Direct Fugitive Emissions from Refrigeration, Air Conditioning, Fire Suppression and Industrial Gases. (Dec 2020)."]
["2.  GWPs are from Intergovernmental Panel on Climate Change (IPCC) Fourth Assessment Report (2007).  "]

{"sheet":"Fire Suppression","index":6,"n_rows":114,"n_cols":8,"rows_kept":114,"cut":false,"hidden":false,"merged":[[44,2,44,3],[44,5,44,6],[5,0,5,7],[113,0,113,4]]}
[]
[]
["Scope 1 Emissions from Fire Suppression Equipment"]
[]
["Guidance"]
["  (A)  HFC, PFC, and CO2 fire suppressants are required to be included in the GHG inventory.  Other fire suppressants such as \n         Halon compounds, HCFCs, aqueous solutions, or inert gases are typically excluded from a GHG inventory. "]
["  (B)  Select ONE of the three options from which to estimate emissions.  Options range from most preferred method"]
["         (Option 1) to least preferred method (Option 3).  If option 3, screening method, is used and emissions are determined"]
["         to be significant when compared to other emission sources, then one of the other methods should be applied to calculate"]
["         emissions more accurately."]
["  (C)  Enter annual data in ORANGE cells as appropriate for the selected option."]
[]
["Option 1.    Material Balance Method:  Enter organization-wide fire suppression gases stored and transferred (by gas) in Table 1."]
["                  - Inventory Change = difference of gas stored in inventory from beginning to end of reporting period."]
["                    (Includes only gas stored on-site (i.e. cylinders) and not gas contained within equipment)."]
["                  - Transferred Amount = gas purchased minus gas sold/disposed during reporting period."]
["                      -- Gas purchased includes:  Purchases for inventory, as part of equipment servicing (not from inventory)"]
["                         within purchased equipment and gas returned to the site after off-site recycling."]
["                      -- Gas sold/disposed includes:  Returns to supplier, sales or disposals (including within equipment), "]
["                         and gas sent off-site for recycling, reclamation, or destruction."]
["                  - Capacity Change = capacity of all units at beginning minus capacity of all units at end of reporting period."]
["                    (can be assumed to be capacity of new units minus capacity of retired units)."]
[]
["Table 1.  Organization-Wide Fire Suppression Gas CO2 Equivalent Emissions - Material Balance"]
["Gas","Gas","Inventory","Transferred","Capacity","CO2 Equivalent"]
[null,"GWP","Change","Amount","Change","Emissions"]
[null,null,"(lb)","(lb)","(lb)","(lb)"]
["CO2 ",{"$f":"VLOOKUP(A28,GWP,2,FALSE)","v":1},null,null,null,{"$f":"IF(($C28+$D28+$E28)*$B28=0,\"\",($C28+$D28+$E28)*$B28)","v":""}]
["HFC-23",14800,null,null,null,{"$f":"IF(($C29+$D29+$E29)*$B29=0,\"\",($C29+$D29+$E29)*$B29)","v":""}]
["HFC-125",3500,null,null,null,""]
["HFC-134a",1430,null,null,null,""]
["HFC-227ea",3220,null,null,null,""]
["HFC-236fa",9810,null,null,null,""]
["CF4",7390,null,null,null,""]
["C4F10",8860,null,null,null,""]
[]
["Option 2.     Material Balance Method (Simplified):  Enter organization-wide fire suppression gas in units (by gas) in Table 2."]
["                  - New units are those installed during reporting period (do not include any data for new units pre-charged by"]
["                    supplier), disposed units were disposed of during the reporting period, and existing units are all others."]
["                  - Charge/Recharge = gas added to units by organization or a contractor (do not include pre-charge by manufacturer)."]
["                  - Capacity = sum of the full capacity for all units (do not include new units pre-charged by manufacturer). "]
["                  - Amount recovered = total gas recovered from all retired units."]
[]
["Table 2.  Organization-Wide Fire Suppression Gas CO2 Equivalent Emissions - Simplified Material Balance"]
[null,null,"New Units",null,"Existing Units","Disposed Units",null,"CO2 Equivalent"]
["Gas","Gas","Charge","Capacity","Recharge","Capacity","Recovered","Emissions"]
[null,"GWP","(lb)","(lb)","(lb)","(lb)","(lb)","(lb)"]
["CO2 ",{"$f":"VLOOKUP(A48,GWP,2,FALSE)","v":1},null,null,null,null,null,{"$f":"IF(($C48-$D48+$E48+$F48-$G48)*$B48=0,\"\",($C48-$D48+$E48+$F48-$G48)*$B48)","v":""}]
["HFC-23",14800,null,null,null,null,null,{"$f":"IF(($C49-$D49+$E49+$F49-$G49)*$B49=0,\"\",($C49-$D49+$E49+$F49-$G49)*$B49)","v":""}]
["HFC-125",3500,null,null,null,null,null,""]
["HFC-134a",1430,null,null,null,null,null,""]
["HFC-227ea",3220,null,null,null,null,null,""]
["HFC-236fa",9810,null,null,null,null,null,""]
["CF4",7390,null,null,null,null,null,""]
["C4F10",8860,null,null,null,null,null,""]
[]
["Option 3.     Screening Method:  Enter fire suppression gas information for each unit or group of units (by gas) in Table 3."]
["                  - Enter \"Type of Equipment\" (Fixed or Portable) and select \"Gas Type\" from the drop down box."]
["                  - Enter capacity (by gas type) for all units that operated during reporting period."]
["                      -- For each unit added or removed during reporting period, multiply its capacity by a usage factor (0.0 to 1.0)."]
["                      -- If data entered for multiple units, sum the capacities for all units."]
["                  - See example entry in first row (Green Italics)."]
[]
["Table 3.  Source Level Fire Suppression Gas CO2 Equivalent Emissions - Screening Method"]
["Source","Type of ","Gas","Gas","Unit","CO2 Equivalent"]
["ID","Equipment","Type","GWP","Capacity","Emissions"]
[null,"(Fixed/Portable)",null,null,"(kg)","(kg)"]
["Bldg-012","Fixed","HFC-134a",{"$f":"IF($C68=\"\",\"\",VLOOKUP(C68,GWP,2,FALSE))","v":1430},1.3,{"$f":"IF($B68=\"Fixed\",$D68*Fixed_FireLeakRate*$E68,IF($B68=\"Portable\",$D68*Portable_FireLeakRate*$E68,\"\"))","v":65.065000000000012}]
[null,null,null,"",null,{"$f":"IF($B69=\"Fixed\",$D69*Fixed_FireLeakRate*$E69,IF($B69=\"Portable\",$D69*Portable_FireLeakRate*$E69,\"\"))","v":""}]
[null,null,null,"",null,{"$f":"IF($B70=\"Fixed\",$D70*0.015*$E70,IF($B70=\"Portable\",$D70*0.02*$E70,\"\"))","v":""}]
[null,null,null,"",null,""]
[null,null,null,"",null,""]
[null,null,null,"",null,""]
[null,null,null,"",null,""]
[null,null,null,"",null,""]
[null,null,null,"",null,""]
[null,null,null,"",null,""]
[null,null,null,"",null,""]
[null,null,null,"",null,""]
[null,null,null,"",null,""]
[null,null,null,"",null,""]
[null,null,null,"",null,""]
[null,null,null,"",null,""]
[null,null,null,"",null,""]
[null,null,null,"",null,""]
[null,null,null,"",null,""]
[null,null,null,"",null,""]
[null,null,null,"",null,""]
[null,null,null,"",null,""]
[null,null,null,"",null,""]
[null,null,null,"",null,""]
[null,null,null,"",null,""]
[null,null,null,"",null,""]
[null,null,null,"",null,""]
[null,null,null,"",null,""]
[null,null,null,"",null,""]
[null,null,null,"",null,""]
[null,null,null,"",null,""]
[null,null,null,"",null,""]
[null,null,null,"",null,""]
[null,null,null,"",null,""]
[null,null,null,"",null,""]
[null,null,null,"",null,""]
[null,null,null,"",null,""]
[]
["GHG Emissions"]
[]
[]
["Total CO2 Equivalent Emissions  (metric tons) - Fire Suppression Equipment",null,null,null,null,{"$f":"(((SUM($F$28:$F$35)+SUM($H$48:$H$55))*kg_per_lb)+SUM($F$69:$F$104))/1000","v":0}]
[]
["Notes:"]
["1.  Leak rates of fire extinguishers from Page A-28, US EPA (2021) - Inventory of U.S. Greenhouse Gas Emissions and Sinks:  1990 - 2018."]
["2.  GWPs are from Intergovernmental Panel on Climate Change (IPCC) Fourth Assessment Report (2007).  "]
[" "]

{"sheet":"Purchased Gases","index":7,"n_rows":33,"n_cols":5,"rows_kept":33,"cut":false,"hidden":false,"merged":[[5,0,5,7],[6,0,6,7],[7,0,7,7]]}
[]
[]
["Scope 1 Emissions from Purchased Gases"]
[]
["Guidance"]
["  (A)  Any use and release of the seven major greenhouse gases (CO2, CH4, N2O, PFCs, HFCs, SF6, and NF3) is required to be included in the  \n        GHG inventory. Ozone depleting substances, such as CFCs and HCFCs, are regulated internationally and are typically excluded from a GHG \n       inventory or reported as a memo item."]
["  (B) Select the gas you purchase from the drop down menu and the amount purchased for the annual inventory reporting period in the \n        ORANGE cells. "]
["  (C) It is assumed that all gas purchased in the reporting period used and released during the reporting period.  If your business makes  \n        bulk purchases and plans on using the gas for several years, divide the bulk amount by the years of usage and report that amount.   "]
["Tip: If you purchase bulk gas, remember to report it for future years as well."]
[]
["Table 1.  Purchased Gases"]
["Gas","Gas","Purchased","CO2 Equivalent"]
[null,"GWP","Amount","Emissions"]
[null,null,"(lb)","(lb)"]
[null,{"$f":"IF(A15=\"\",\"\",VLOOKUP(A15,GWP,2,FALSE))","v":""},null,{"$f":"IF(B15=\"\", \"\",B15*C15)","v":""}]
[null,"",null,{"$f":"IF(B16=\"\", \"\",B16*C16)","v":""}]
[null,"",null,""]
[null,"",null,""]
[null,"",null,""]
[null,"",null,""]
[null,"",null,""]
[null,"",null,""]
[null,"",null,""]
[null,"",null,""]
[null,"",null,{"$f":"IF(B25=\"\", \"\",B25*C25)","v":""}]
[]
["GHG Emissions"]
[]
[]
["Total CO2 Equivalent Emissions  (metric tons) - Purchased Gas",null,null,null,{"$f":"SUM(D15:D25)*kg_per_lb/1000","v":0}]
[]
["Notes:"]
["1.  GWPs are from Intergovernmental Panel on Climate Change (IPCC) Fourth Assessment Report (2007).  "]

{"sheet":"Electricity","index":8,"n_rows":70,"n_cols":14,"rows_kept":70,"cut":false,"hidden":false,"merged":[[11,0,11,6],[5,0,5,6],[9,1,9,6],[6,0,6,6],[7,0,7,6],[14,0,14,4],[14,11,14,13],[15,5,15,7],[15,8,15,10],[15,11,15,13],[14,5,14,10]]}
[]
[]
["Scope 2 Emissions from Purchase of Electricity"]
[]
["Guidance"]
["The Indirect Emissions from Purchased Electricity Guidance document provides guidance for quantifying two scope 2 emissions totals, using a location-based method and a market-based method.  The organization should quantify and report both totals in its GHG inventory.  The location-based method considers average emission factors for the electricity grids that provide electricity.  The market-based method considers contractual arrangements under which the organization procures electricity from specific sources, such as renewable energy.  "]
["  (A)  Enter total annual electricity purchased in kWh and each eGRID subregion for each facility or site in ORANGE cells of Table 1.  "]
["  (B) If electricity consumption data are not available for a facility, an estimate should be made for completeness.  \n        See the \"Items to Note\" section of the Help sheet for suggested estimation approaches. "]
["  (C)  Select \"eGRID subregion\" from drop box and enter \"Electricity Purchased.\""]
[null," - Use map (Figure 1) at bottom of sheet to determine appropriate eGRID subregion.  If subregion cannot be determined from the map, find the correct subregion by entering the location's zip code into EPA’s Power Profiler:"]
[null,"https://www.epa.gov/egrid/power-profiler#/"]
["  (D) See the market-based emission factor hierarchy on the market-based method Help sheet. If any of the first four types of\n       emission factors are applicable, enter the factors in the yellow cells marked as \"<enter factor>\".  If not, leave the \n       yellow cells as is, and eGRID subregion factors will be used for market-based emissions. \n   Example entry is shown in first row (GREEN Italics) for a facility that purchases RECs for 100% of its consumption, and   \n       therefore has a market-based emission factor of 0."]
[]
["Tips: Enter electricity usage by location and then look up the eGRID subregion for each location."]
["         If you purchase renewable energy that is less than 100% of your site's electricity, see the \n         example in the market-based method Help sheet. ",null,null,null,null,"Market-Based\nUse these cells to enter applicable market-based emission factors",null,null,null,null,null,"Location-Based"]
["Table 1.  Total Amount of Electricity Purchased by eGRID Subregion",null,null,null,null,"Emission Factors",null,null,"Emissions",null,null,"Emissions"]
["Source","Source","Source","eGRID Subregion","Electricity","CO2","CH4 ","N2O ","CO2","CH4 ","N2O ","CO2","CH4 ","N2O "]
["ID","Description","Area (sq ft)","where electricity is consumed","Purchased","Emissions","Emissions","Emissions","Emissions","Emissions","Emissions","Emissions","Emissions","Emissions"]
[null,null,null,null,"(kWh)","(lb/MWh)","(lb/MWh)","(lb/MWh)","(lb)","(lb)","(lb)","(lb)","(lb)","(lb)"]
["Bldg-012","East Power Plant",12517,"HIMS (HICC Miscellaneous)",200000,0,0,0,{"$f":"IFERROR(IF(ISBLANK(F20),L20,E20/1000*F20),\"Enter Factor\")","v":0},{"$f":"IFERROR(IF(ISBLANK(G20),M20,F20/1000*G20),\"Enter Factor\")","v":0},{"$f":"IFERROR(IF(ISBLANK(H20),N20,G20/1000*H20),\"Enter Factor\")","v":0},{"$f":"IF(ISNA(VLOOKUP($D20,eGRID_em_Fctrs,4,FALSE)),\"\",VLOOKUP($D20,eGRID_em_Fctrs,4,FALSE)*$E20/1000)","v":228640},{"$f":"IF(ISNA(VLOOKUP($D20,eGRID_em_Fctrs,5,FALSE)),\"\",VLOOKUP($D20,eGRID_em_Fctrs,5,FALSE)*$E20/1000)","v":22},{"$f":"IF(ISNA(VLOOKUP($D20,eGRID_em_Fctrs,7,FALSE)),\"\",VLOOKUP($D20,eGRID_em_Fctrs,7,FALSE)*$E20/1000)","v":3.4000000000000004}]
[null,null,null,null,null,"<enter factor>","<enter factor>","<enter factor>",{"$f":"IFERROR(IF(OR(ISBLANK(F21),F21=\"<enter factor>\"),L21,$E21/1000*F21),\"\")","v":""},"","",{"$f":"IF(ISNA(VLOOKUP($D21,eGRID_em_Fctrs,4,FALSE)),\"\",VLOOKUP($D21,eGRID_em_Fctrs,4,FALSE)*$E21/1000)","v":""},"",""]
[null,null,null,null,null,"<enter factor>","<enter factor>","<enter factor>","","","",{"$f":"IF(ISNA(VLOOKUP($D22,eGRID_em_Fctrs,4,FALSE)),\"\",VLOOKUP($D22,eGRID_em_Fctrs,4,FALSE)*$E22/1000)","v":""},"",""]
[null,null,null,null,null,"<enter factor>","<enter factor>","<enter factor>",{"$f":"IFERROR(IF(OR(ISBLANK(F23),F23=\"<enter factor>\"),L23,$E23/1000*F23),\"\")","v":""},{"$f":"IFERROR(IF(OR(ISBLANK(G23),G23=\"<enter factor>\"),M23,$E23/1000*G23),\"\")","v":""},{"$f":"IFERROR(IF(OR(ISBLANK(H23),H23=\"<enter factor>\"),N23,$E23/1000*H23),\"\")","v":""},{"$f":"IF(ISNA(VLOOKUP($D23,eGRID_em_Fctrs,4,FALSE)),\"\",VLOOKUP($D23,eGRID_em_Fctrs,4,FALSE)*$E23/1000)","v":""},"",""]
[null,null,null,null,null,"<enter factor>","<enter factor>","<enter factor>","",{"$f":"IFERROR(IF(OR(ISBLANK(G24),G24=\"<enter factor>\"),M24,$E24/1000*G24),\"\")","v":""},{"$f":"IFERROR(IF(OR(ISBLANK(H24),H24=\"<enter factor>\"),N24,$E24/1000*H24),\"\")","v":""},"","",""]
[null,null,null,null,null,"<enter factor>","<enter factor>","<enter factor>","","","","","",""]
[null,null,null,null,null,"<enter factor>","<enter factor>","<enter factor>","","","","","",""]
[null,null,null,null,null,"<enter factor>","<enter factor>","<enter factor>","","","","","",""]
[null,null,null,null,null,"<enter factor>","<enter factor>","<enter factor>","","","","","",""]
[null,null,null,null,null,"<enter factor>","<enter factor>","<enter factor>","","","","","",""]
[null,null,null,null,null,"<enter factor>","<enter factor>","<enter factor>","","","","","",""]
[null,null,null,null,null,"<enter factor>","<enter factor>","<enter factor>","","","","","",""]
[null,null,null,null,null,"<enter factor>","<enter factor>","<enter factor>","","","","","",""]
[null,null,null,null,null,"<enter factor>","<enter factor>","<enter factor>","","","","","",""]
[null,null,null,null,null,"<enter factor>","<enter factor>","<enter factor>","","","","","",""]
[null,null,null,null,null,"<enter factor>","<enter factor>","<enter factor>","","","","","",""]
[null,null,null,null,null,"<enter factor>","<enter factor>","<enter factor>","","","","","",""]
[null,null,null,null,null,"<enter factor>","<enter factor>","<enter factor>","","","","","",""]
[null,null,null,null,null,"<enter factor>","<enter factor>","<enter factor>","","","","","",""]
[null,null,null,null,null,"<enter factor>","<enter factor>","<enter factor>","","","","","",""]
[null,null,null,null,null,"<enter factor>","<enter factor>","<enter factor>","","","","","",""]
[null,null,null,null,null,"<enter factor>","<enter factor>","<enter factor>","","","","","",""]
[null,null,null,null,null,"<enter factor>","<enter factor>","<enter factor>","","","","","",""]
[null,null,null,null,null,"<enter factor>","<enter factor>","<enter factor>","","","","","",""]
[null,null,null,null,null,"<enter factor>","<enter factor>","<enter factor>","","","","","",""]
[null,null,null,null,null,"<enter factor>","<enter factor>","<enter factor>","","","","","",""]
[null,null,null,null,null,"<enter factor>","<enter factor>","<enter factor>","","","","","",""]
[null,null,null,null,null,"<enter factor>","<enter factor>","<enter factor>","","","","","",""]
[null,null,null,null,null,"<enter factor>","<enter factor>","<enter factor>","","","","","",""]
[null,null,null,null,null,"<enter factor>","<enter factor>","<enter factor>","","","","","",""]
[null,null,null,null,null,"<enter factor>","<enter factor>","<enter factor>","","","","","",""]
[null,null,null,null,null,"<enter factor>","<enter factor>","<enter factor>","","","","","",""]
[null,null,null,null,null,"<enter factor>","<enter factor>","<enter factor>","","","","","",""]
[null,null,null,null,null,"<enter factor>","<enter factor>","<enter factor>","","","","","",""]
[null,null,null,null,null,"<enter factor>","<enter factor>","<enter factor>","","","","","",""]
[null,null,null,null,null,"<enter factor>","<enter factor>","<enter factor>","","","","","",""]
[null,null,null,null,null,"<enter factor>","<enter factor>","<enter factor>","","","","","",""]
[null,null,null,null,null,"<enter factor>","<enter factor>","<enter factor>","","","","","",""]
["Total Emissions for All Sources",null,null,null,{"$f":"SUM($E$21:$E$57)","v":0},null,null,null,{"$f":"SUM($I$21:$I$57)","v":0},{"$f":"SUM($J$21:$J$57)","v":0},{"$f":"SUM($K$21:$K$57)","v":0},{"$f":"SUM($L$21:$L$57)","v":0},{"$f":"SUM($M$21:$M$57)","v":0},{"$f":"SUM($N$21:$N$57)","v":0}]
[]
["GHG Emissions"]
[]
["CO2 Equivalent Emissions  (metric tons)"]
["Location-Based Electricity Emissions",null,null,null,{"$f":"($L$58+$M$58*CH4_GWP+$N$58*N2O_GWP)*kg_per_lb/1000","v":0}]
["Market-Based Electricity Emissions",null,null,null,{"$f":"($I$58+$J$58*CH4_GWP+$K$58*N2O_GWP)*kg_per_lb/1000","v":0}]
["Notes:"]
["1.  CO2, CH4 and N2O emissions are estimated using methodology provided in EPA's Center for Corporate Climate Leadership Greenhouse Gas Inventory Guidance"]
["     - Indirect Emissions from Purchased Electricity (January 2016)."]
[]
[]
["Figure 1.  EPA eGRID2020, April 2022."]

{"sheet":"Steam","index":9,"n_rows":88,"n_cols":18,"rows_kept":88,"cut":false,"hidden":false,"merged":[[20,15,20,17],[19,12,19,17],[10,0,10,7],[21,3,23,3],[21,2,23,2],[20,12,20,14],[20,6,20,8],[20,9,20,11],[19,6,19,11],[66,5,66,7],[69,0,69,1],[15,1,15,8],[67,0,67,1],[21,0,23,0],[21,1,23,1],[66,2,66,4]]}
[]
[]
["Scope 2 Emissions from Purchase of Steam"]
[]
["Guidance"]
["(A)  Enter annual data for each facility or site in ORANGE cells in Table 1.  "]
["- Enter amount of steam purchased in mmBtu. Heat Content conversions can be found on the \"Heat Content\" sheet."]
["- Select \"Fuel Type\" from drop box to indicate the fuel used to generate the steam."]
[" -- If \"Fuel Type\" is not known, select \"Natural Gas\" from drop box as default value."]
[" -- If more than one fuel type is used, enter multiple rows, apportioning the steam using the same percentages as the fuel mix."]
["   (B) If steam is purchased at a facility but steam consumption data are not available, an estimate should be made for completeness.  \n         See the \"Items to Note\" section of the Help sheet for suggested estimation approaches. "]
["(C)  Preferred Method (steam emission factors ARE available from your supplier). Example entry is shown in first data row (GREEN Italics)."]
["                  - Enter supplier emission factors for CO2, CH4, and N2O in the purple cells marked as \"<enter factor>\" if available, otherwise leave factor cells blank."]
["- These should be expressed in lb / mmBtu of Steam.  Heat Content conversions can be found on the \"Heat Content\" sheet."]
["- Boiler Efficiency is not necessary if emission factors are available."]
[null,"- Typically supplier emission factors for steam will apply to both location-based and market-based emissions, and no \n  market-based emission factors need to be entered.  However, if there are different applicable market-based emission factors, \n  enter the factors in the yellow cells marked as \"<enter factor>\". If needed, see the market-based method Help Sheet for guidance. "]
["(D)  Alternative Method (supplier-specific emission factors are NOT available). Example entry is shown in second data row (BLUE Italics)."]
["                  - Enter boiler efficiency.  If boiler efficiency is not known, use 80% as default value. Do not enter market-based emission factors. "]
[]
[null,null,null,null,null,null,"Location-Based\nUse these cells to enter emission factors from the steam supplier (if available)",null,null,null,null,null,"Market-Based\nUse these cells to enter market-based emission factors if different than the supplier emission factors. "]
["Table 1.  Fuel, Boiler, Steam and Emission Factor Data for Steam Purchased",null,null,null,null,null,"Emission Factors",null,null,"Emissions",null,null,"Emission Factors",null,null,"Emissions"]
["Source\nID","Source\nDescription","Source\nArea (sq ft)","Fuel Type","Boiler","Steam","CO2 ","CH4 ","N2O","CO2","CH4 ","N2O ","CO2 ","CH4 ","N2O","CO2","CH4 ","N2O "]
[null,null,null,null,"Efficiency","Purchased","Factor","Factor","Factor","Emissions","Emissions","Emissions","Factor","Factor","Factor","Emissions","Emissions","Emissions"]
[null,null,null,null,"(%)","(mmBtu)","(kg / mmBtu)","(g / mmBtu)","(g / mmBtu)","(kg)","(g)","(g)","(kg / mmBtu)","(g / mmBtu)","(g / mmBtu)","(kg)","(g)","(g)"]
["Bldg-011","Office ",5000,"Natural Gas",80,5000,72,1.5,0.6,{"$f":"IF($F25=\"\",\"\",\nIF(OR(G25=\"<enter factor>\",G25=\"\"),(VLOOKUP($D25,Stationary_Fuel_Fctrs_mmBtu,2,FALSE))*$F25/(IF($E25=\"\",0.8,$E25/100)),\nG25*$F25/(IF($E25=\"\",0.8,$E25/100))))","v":450000},{"$f":"IF($F25=\"\",\"\",\nIF(OR(H25=\"<enter factor>\",H25=\"\"),(VLOOKUP($D25,Stationary_Fuel_Fctrs_mmBtu,3,FALSE))*$F25/(IF($E25=\"\",0.8,$E25/100)),\nH25*$F25/(IF($E25=\"\",0.8,$E25/100))))","v":9375},{"$f":"IF($F25=\"\",\"\",\nIF(OR(I25=\"<enter factor>\",I25=\"\"),(VLOOKUP($D25,Stationary_Fuel_Fctrs_mmBtu,4,FALSE))*$F25/(IF($E25=\"\",0.8,$E25/100)),\nI25*$F25/(IF($E25=\"\",0.8,$E25/100))))","v":3750},70,1,0.5,{"$f":"IF($F25=\"\",\"\",\nIF(OR(M25=\"<enter factor>\",M25=\"\"),J25,\nM25*$F25/(IF($E25=\"\",0.8,$E25/100))))","v":437500},{"$f":"IF($F25=\"\",\"\",\nIF(OR(N25=\"<enter factor>\",N25=\"\"),K25,\nN25*$F25/(IF($E25=\"\",0.8,$E25/100))))","v":6250},{"$f":"IF($F25=\"\",\"\",\nIF(OR(O25=\"<enter factor>\",O25=\"\"),L25,\nO25*$F25/(IF($E25=\"\",0.8,$E25/100))))","v":3125}]
["Bldg-012","Steam-Blr Room",2000,"Sub-bituminous Coal",80,1000,"<enter factor>","<enter factor>","<enter factor>",121462.5,13750,2000,"<enter factor>","<enter factor>","<enter factor>",121462.5,13750,2000]
[null,null,null,null,null,null,"<enter factor>","<enter factor>","<enter factor>","","","","<enter factor>","<enter factor>","<enter factor>",{"$f":"IF($F27=\"\",\"\",\nIF(OR(M27=\"<enter factor>\",M27=\"\"),J27,\nM27*$F27/(IF($E27=\"\",0.8,$E27/100))))","v":""},"",""]
[null,null,null,null,null,null,"<enter factor>","<enter factor>","<enter factor>","","","","<enter factor>","<enter factor>","<enter factor>","","",""]
[null,null,null,null,null,null,"<enter factor>","<enter factor>","<enter factor>","","","","<enter factor>","<enter factor>","<enter factor>",{"$f":"IF($F29=\"\",\"\",\nIF(OR(M29=\"<enter factor>\",M29=\"\"),J29,\nM29*$F29/(IF($E29=\"\",0.8,$E29/100))))","v":""},{"$f":"IF($F29=\"\",\"\",\nIF(OR(N29=\"<enter factor>\",N29=\"\"),K29,\nN29*$F29/(IF($E29=\"\",0.8,$E29/100))))","v":""},{"$f":"IF($F29=\"\",\"\",\nIF(OR(O29=\"<enter factor>\",O29=\"\"),L29,\nO29*$F29/(IF($E29=\"\",0.8,$E29/100))))","v":""}]
[null,null,null,null,null,null,"<enter factor>","<enter factor>","<enter factor>","","","","<enter factor>","<enter factor>","<enter factor>","","",""]
[null,null,null,null,null,null,"<enter factor>","<enter factor>","<enter factor>","","","","<enter factor>","<enter factor>","<enter factor>","","",""]
[null,null,null,null,null,null,"<enter factor>","<enter factor>","<enter factor>","","","","<enter factor>","<enter factor>","<enter factor>","","",""]
[null,null,null,null,null,null,"<enter factor>","<enter factor>","<enter factor>","","","","<enter factor>","<enter factor>","<enter factor>","","",""]
[null,null,null,null,null,null,"<enter factor>","<enter factor>","<enter factor>","","","","<enter factor>","<enter factor>","<enter factor>","","",""]
[null,null,null,null,null,null,"<enter factor>","<enter factor>","<enter factor>","","","","<enter factor>","<enter factor>","<enter factor>","","",""]
[null,null,null,null,null,null,"<enter factor>","<enter factor>","<enter factor>","","","","<enter factor>","<enter factor>","<enter factor>","","",""]
[null,null,null,null,null,null,"<enter factor>","<enter factor>","<enter factor>","","","","<enter factor>","<enter factor>","<enter factor>","","",""]
[null,null,null,null,null,null,"<enter factor>","<enter factor>","<enter factor>","","","","<enter factor>","<enter factor>","<enter factor>","","",""]
[null,null,null,null,null,null,"<enter factor>","<enter factor>","<enter factor>","","","","<enter factor>","<enter factor>","<enter factor>","","",""]
[null,null,null,null,null,null,"<enter factor>","<enter factor>","<enter factor>","","","","<enter factor>","<enter factor>","<enter factor>","","",""]
[null,null,null,null,null,null,"<enter factor>","<enter factor>","<enter factor>","","","","<enter factor>","<enter factor>","<enter factor>","","",""]
[null,null,null,null,null,null,"<enter factor>","<enter factor>","<enter factor>","","","","<enter factor>","<enter factor>","<enter factor>","","",""]
[null,null,null,null,null,null,"<enter factor>","<enter factor>","<enter factor>","","","","<enter factor>","<enter factor>","<enter factor>","","",""]
[null,null,null,null,null,null,"<enter factor>","<enter factor>","<enter factor>","","","","<enter factor>","<enter factor>","<enter factor>","","",""]
[null,null,null,null,null,null,"<enter factor>","<enter factor>","<enter factor>","","","","<enter factor>","<enter factor>","<enter factor>","","",""]
[null,null,null,null,null,null,"<enter factor>","<enter factor>","<enter factor>","","","","<enter factor>","<enter factor>","<enter factor>","","",""]
[null,null,null,null,null,null,"<enter factor>","<enter factor>","<enter factor>","","","","<enter factor>","<enter factor>","<enter factor>","","",""]
[null,null,null,null,null,null,"<enter factor>","<enter factor>","<enter factor>","","","","<enter factor>","<enter factor>","<enter factor>","","",""]
[null,null,null,null,null,null,"<enter factor>","<enter factor>","<enter factor>","","","","<enter factor>","<enter factor>","<enter factor>","","",""]
[null,null,null,null,null,null,"<enter factor>","<enter factor>","<enter factor>","","","","<enter factor>","<enter factor>","<enter factor>","","",""]
[null,null,null,null,null,null,"<enter factor>","<enter factor>","<enter factor>","","","","<enter factor>","<enter factor>","<enter factor>","","",""]
[null,null,null,null,null,null,"<enter factor>","<enter factor>","<enter factor>","","","","<enter factor>","<enter factor>","<enter factor>","","",""]
[null,null,null,null,null,null,"<enter factor>","<enter factor>","<enter factor>","","","","<enter factor>","<enter factor>","<enter factor>","","",""]
[null,null,null,null,null,null,"<enter factor>","<enter factor>","<enter factor>","","","","<enter factor>","<enter factor>","<enter factor>","","",""]
[null,null,null,null,null,null,"<enter factor>","<enter factor>","<enter factor>","","","","<enter factor>","<enter factor>","<enter factor>","","",""]
[null,null,null,null,null,null,"<enter factor>","<enter factor>","<enter factor>","","","","<enter factor>","<enter factor>","<enter factor>","","",""]
[null,null,null,null,null,null,"<enter factor>","<enter factor>","<enter factor>","","","","<enter factor>","<enter factor>","<enter factor>","","",""]
[null,null,null,null,null,null,"<enter factor>","<enter factor>","<enter factor>","","","","<enter factor>","<enter factor>","<enter factor>","","",""]
[null,null,null,null,null,null,"<enter factor>","<enter factor>","<enter factor>","","","","<enter factor>","<enter factor>","<enter factor>","","",""]
[null,null,null,null,null,null,"<enter factor>","<enter factor>","<enter factor>","","","","<enter factor>","<enter factor>","<enter factor>","","",""]
[null,null,null,null,null,null,"<enter factor>","<enter factor>","<enter factor>","","","","<enter factor>","<enter factor>","<enter factor>","","",""]
[null,null,null,null,null,null,"<enter factor>","<enter factor>","<enter factor>","","","","<enter factor>","<enter factor>","<enter factor>","","",""]
[null,null,null,null,null,null,"<enter factor>","<enter factor>","<enter factor>","","","","<enter factor>","<enter factor>","<enter factor>","","",""]
[]
["GHG Emissions"]
["Emissions by Source and Fuel Type for Steam Purchased"]
[null,null,"Location-Based",null,null,"Market-Based"]
["Fuel Type",null,"CO2 ","CH4 ","N2O","CO2 ","CH4 ","N2O"]
[null,null,"Emissions","Emissions","Emissions","Emissions","Emissions","Emissions"]
[null,null,"(kg)","(g)","(g)","(kg)","(g)","(g)"]
["Natural Gas",null,{"$f":"SUMIF($D$27:$D$63,$A71,$J$27:$J$63)","v":0},{"$f":"SUMIF($D$27:$D$63,$A71,$K$27:$K$63)","v":0},{"$f":"SUMIF($D$27:$D$63,$A71,$L$27:$L$63)","v":0},{"$f":"SUMIF($D$27:$D$63,$A71,$P$27:$P$63)","v":0},{"$f":"SUMIF($D$27:$D$63,$A71,$Q$27:$Q$63)","v":0},{"$f":"SUMIF($D$27:$D$63,$A71,$R$27:$R$63)","v":0}]
["Distillate Fuel Oil No. 2",null,{"$f":"SUMIF($D$27:$D$63,$A72,$J$27:$J$63)","v":0},{"$f":"SUMIF($D$27:$D$63,$A72,$K$27:$K$63)","v":0},{"$f":"SUMIF($D$27:$D$63,$A72,$L$27:$L$63)","v":0},{"$f":"SUMIF($D$27:$D$63,$A72,$P$27:$P$63)","v":0},{"$f":"SUMIF($D$27:$D$63,$A72,$Q$27:$Q$63)","v":0},{"$f":"SUMIF($D$27:$D$63,$A72,$R$27:$R$63)","v":0}]
["Residual Fuel Oil No. 6",null,0,0,0,0,0,0]
["Kerosene",null,0,0,0,0,0,0]
["Liquefied Petroleum Gases (LPG)",null,0,0,0,0,0,0]
["Anthracite Coal",null,0,0,0,0,0,0]
["Bituminous Coal",null,{"$f":"SUMIF($D$27:$D$63,$A77,$J$27:$J$63)","v":0},0,0,0,0,0]
["Sub-bituminous Coal",null,0,0,0,0,0,0]
["Lignite Coal",null,0,0,0,0,0,0]
["Mixed (Electric Power Sector)",null,0,0,0,0,0,0]
["Coal Coke",null,0,0,0,0,0,0]
["Wood and Wood Residuals",null,0,0,0,0,0,0]
["Landfill Gas",null,0,0,0,0,0,0]
["Total Emissions for All Sources",null,{"$f":"SUM(C71:C83)","v":0},0,0,0,0,0]
[]
["CO2 Equivalent Emissions  (metric tons)"]
["Location-Based Electricity Emissions",null,null,null,null,{"$f":"($C$84+$D$84*CH4_GWP/1000+$E$84*N2O_GWP/1000)/1000","v":0}]
["Market-Based Electricity Emissions",null,null,null,null,{"$f":"($F$84+$G$84*CH4_GWP/1000+$H$84*N2O_GWP/1000)/1000","v":0}]

{"sheet":"Business Travel","index":10,"n_rows":165,"n_cols":7,"rows_kept":165,"cut":false,"hidden":false,"merged":[[156,0,156,1],[149,0,149,1],[150,0,150,1],[151,0,151,1],[152,0,152,1],[153,0,153,1],[154,0,154,1],[155,0,155,1],[160,0,160,1],[161,0,161,1],[157,0,157,1],[158,0,158,1],[159,0,159,1]]}
[]
[]
["Scope 3 Emissions from Employee Business Travel"]
[]
["Guidance"]
["(A) Enter annual data in ORANGE cells in the table corresponding to the transport method.  Example entry is shown in first row (GREEN Italics)."]
["(B) Mileage data can be entered for individual trips or individual employees, or miles for multiple employees can be subtotaled by"]
["     vehicle type or flight length."]
["(C) For employees traveling by car, select \"Vehicle Type\" and enter miles traveled (vehicle-miles) in Table 1.  "]
["(D) For employees traveling by rail or bus, select \"Vehicle Type\" and enter miles traveled (passenger-miles) in Table 2.  "]
["(E) For employees traveling by air, select \"Flight Length\" and enter miles traveled (passenger-miles) in Table 3. "]
["--- Note: The emission factors for air travel do not include radiative forcing."]
[]
["Table 1.  Personal Vehicle, Rental Car or Taxi - Business Travel by Vehicle-Miles (CO2, CH4 and N2O)"]
["Source ID","Source Description","Vehicle Type"," Vehicle-Miles (miles)","CO2 Emissions (kg)","CH4 Emissions  (g)","N2O \nEmissions \n(g)"]
["JD-001","John Doe 1","Passenger Car",100,{"$f":"IF($C16=\"\",\"\",VLOOKUP($C16,Biz_Travel_Fctr,2,FALSE)*$D16)","v":33.200000000000003},{"$f":"IF($C16=\"\",\"\",VLOOKUP($C16,Biz_Travel_Fctr,3,FALSE)*$D16)","v":0.70000000000000007},{"$f":"IF($C16=\"\",\"\",VLOOKUP($C16,Biz_Travel_Fctr,4,FALSE)*$D16)","v":0.70000000000000007}]
[null,null,null,null,{"$f":"IF($C17=\"\",\"\",VLOOKUP($C17,Biz_Travel_Fctr,2,FALSE)*$D17)","v":""},"",""]
[null,null,null,null,"","",""]
[null,null,null,null,"","",""]
[null,null,null,null,"","",""]
[null,null,null,null,"","",""]
[null,null,null,null,"","",""]
[null,null,null,null,"","",""]
[null,null,null,null,"","",""]
[null,null,null,null,"","",""]
[null,null,null,null,"","",""]
[null,null,null,null,"","",""]
[null,null,null,null,"","",""]
[null,null,null,null,"","",""]
[null,null,null,null,"","",""]
[null,null,null,null,"","",""]
[null,null,null,null,"","",""]
[null,null,null,null,"","",""]
[null,null,null,null,"","",""]
[null,null,null,null,"","",""]
[null,null,null,null,"","",""]
[null,null,null,null,"","",""]
[null,null,null,null,"","",""]
[null,null,null,null,"","",""]
[null,null,null,null,"","",""]
[null,null,null,null,"","",""]
[null,null,null,null,"","",""]
[null,null,null,null,"","",""]
[null,null,null,null,"","",""]
[null,null,null,null,"","",""]
[null,null,null,null,"","",""]
[null,null,null,null,"","",""]
[null,null,null,null,"","",""]
[null,null,null,null,"","",""]
[null,null,null,null,"","",""]
[null,null,null,null,"","",""]
[null,null,null,null,"","",""]
[null,null,null,null,"","",""]
[null,null,null,null,"","",""]
["Total for all Personal Vehicle Business Travel",null,null,null,{"$f":"SUM(E17:E54)","v":0},{"$f":"SUM(F17:F54)","v":0},{"$f":"SUM(G17:G54)","v":0}]
[]
["Table 2.  Rail or Bus - Business Travel by Passenger-Miles (CO2, CH4 and N2O)"]
["Source ID","Source Description","Vehicle Type","Passenger-Miles (miles)","CO2 Emissions (kg)","CH4 Emissions \n(g)","N2O\n Emissions \n(g)"]
["JD-001","John Doe 1","Transit Rail (i.e. Subway, Tram)",100,{"$f":"IF($C59=\"\",\"\",VLOOKUP($C59,Biz_Travel_Fctr,2,FALSE)*$D59)","v":9.9},{"$f":"IF($C59=\"\",\"\",VLOOKUP($C59,Biz_Travel_Fctr,3,FALSE)*$D59)","v":0.84},{"$f":"IF($C59=\"\",\"\",VLOOKUP($C59,Biz_Travel_Fctr,4,FALSE)*$D59)","v":0.12}]
["test ","test",null,null,"","",""]
[null,null,null,null,"","",""]
[null,null,null,null,"","",""]
[null,null,null,null,"","",""]
[null,null,null,null,"","",""]
[null,null,null,null,"","",""]
[null,null,null,null,"","",""]
[null,null,null,null,"","",""]
[null,null,null,null,"","",""]
[null,null,null,null,"","",""]
[null,null,null,null,"","",""]
[null,null,null,null,"","",""]
[null,null,null,null,"","",""]
[null,null,null,null,"","",""]
[null,null,null,null,"","",""]
[null,null,null,null,"","",""]
[null,null,null,null,"","",""]
[null,null,null,null,"","",""]
[null,null,null,null,"","",""]
[null,null,null,null,"","",""]
[null,null,null,null,"","",""]
[null,null,null,null,"","",""]
[null,null,null,null,"","",""]
[null,null,null,null,"","",""]
[null,null,null,null,"","",""]
[null,null,null,null,"","",""]
[null,null,null,null,"","",""]
[null,null,null,null,"","",""]
[null,null,null,null,"","",""]
[null,null,null,null,"","",""]
[null,null,null,null,"","",""]
[null,null,null,null,"","",""]
[null,null,null,null,"","",""]
[null,null,null,null,"","",""]
[null,null,null,null,"","",""]
[null,null,null,null,"","",""]
[null,null,null,null,"","",""]
[null,null,null,null,"","",""]
[null,null,null,null,"","",""]
[null,null,null,null,"","",""]
[null,null,null,null,"","",""]
[null,null,null,null,"","",""]
[null,null,null,null,"","",""]
[null,null,null,null,"","",""]
[null,null,null,null,"","",""]
[null,null,null,null,"","",""]
[null,null,null,null,"","",""]
[null,null,null,null,"","",""]
["Total for all Rail and Bus Business Travel",null,null,null,{"$f":"SUM(E60:E107)","v":0},{"$f":"SUM(F60:F107)","v":0},{"$f":"SUM(G60:G107)","v":0}]
[]
["Table 3.  Air - Business Travel by Passenger-Miles (CO2, CH4 and N2O)"]
["Source ID","Source Description","Flight Length","Passenger-Miles (miles)","CO2 Emissions (kg)","CH4 Emissions \n(g)","N2O\n Emissions \n(g)"]
["JD-001","John Doe 1","Medium Haul (>= 300 miles, < 2300 miles)",1000,229,10.4,8.5]
[null,null,null,null,{"$f":"IF($C113=\"\",\"\",VLOOKUP($C113,Biz_Travel_Fctr,2,FALSE)*$D113)","v":""},{"$f":"IF($C113=\"\",\"\",VLOOKUP($C113,Biz_Travel_Fctr,3,FALSE)*$D113)","v":""},{"$f":"IF($C113=\"\",\"\",VLOOKUP($C113,Biz_Travel_Fctr,4,FALSE)*$D113)","v":""}]
[null,null,null,null,"","",""]
[null,null,null,null,"","",""]
[null,null,null,null,"","",""]
[null,null,null,null,"","",""]
[null,null,null,null,"","",""]
[null,null,null,null,"","",""]
[null,null,null,null,"","",""]
[null,null,null,null,"","",""]
[null,null,null,null,"","",""]
[null,null,null,null,"","",""]
[null,null,null,null,"","",""]
[null,null,null,null,"","",""]
[null,null,null,null,"","",""]
[null,null,null,null,"","",""]
[null,null,null,null,"","",""]
[null,null,null,null,"","",""]
[null,null,null,null,"","",""]
[null,null,null,null,"","",""]
[null,null,null,null,"","",""]
[null,null,null,null,"","",""]
[null,null,null,null,"","",""]
[null,null,null,null,"","",""]
[null,null,null,null,"","",""]
[null,null,null,null,"","",""]
[null,null,null,null,"","",""]
[null,null,null,null,"","",""]
[null,null,null,null,"","",""]
[null,null,null,null,"","",""]
[null,null,null,null,"","",""]
[null,null,null,null,"","",""]
[null,null,null,null,"","",""]
["Total for all Air Business Travel",null,null,null,{"$f":"SUM(E113:E144)","v":0},{"$f":"SUM(F113:F144)","v":0},{"$f":"SUM(G113:G144)","v":0}]
[]
["GHG Emissions"]
[]
["Total CO2 Emissions by Travel Type"]
["Transport Type ",null,"CO2 (kg)","CH4 (g)","N2O (g)"]
["Passenger Car",null,{"$f":"SUMIF($C$17:$C$54,$A151,E$17:E$54)","v":0},{"$f":"SUMIF($C$17:$C$54,$A151,F$17:F$54)","v":0},0]
["Light-Duty Truck",null,0,0,0]
["Motorcycle",null,0,0,0]
["Intercity Rail - Northeast Corridor",null,{"$f":"SUMIF($C$60:$C$107,$A154,E$60:E$107)","v":0},0,0]
["Intercity Rail - Other Routes",null,{"$f":"SUMIF($C$60:$C$107,$A155,E$60:E$107)","v":0},{"$f":"SUMIF($C$60:$C$107,$A155,F$60:F$107)","v":0},{"$f":"SUMIF($C$60:$C$107,$A155,G$60:G$107)","v":0}]
["Intercity Rail - National Average",null,0,0,0]
["Commuter Rail",null,0,0,0]
["Transit Rail (i.e. Subway, Tram)",null,0,0,0]
["Bus",null,0,0,0]
["Short Haul (< 300 miles)",null,{"$f":"SUMIF($C$113:$C$144,$A160,E$113:E$144)","v":0},{"$f":"SUMIF($C$113:$C$144,$A160,F$113:F$144)","v":0},{"$f":"SUMIF($C$113:$C$144,$A160,G$113:G$144)","v":0}]
["Medium Haul (>= 300 miles, < 2300 miles)",null,{"$f":"SUMIF($C$113:$C$144,$A161,E$113:E$144)","v":0},{"$f":"SUMIF($C$113:$C$144,$A161,F$113:F$144)","v":0},{"$f":"SUMIF($C$113:$C$144,$A161,G$113:G$144)","v":0}]
["Long Haul (>= 2300 miles)",null,0,0,0]
[]
[]
["Total CO2 Equivalent Emissions  (metric tons) - Employee Business Travel",null,null,{"$f":"(SUM(C151:C162)+SUM(D151:D162)/1000*CH4_GWP+SUM(E151:E162)/1000*N2O_GWP)/1000","v":0}]

{"sheet":"Commuting","index":11,"n_rows":123,"n_cols":7,"rows_kept":123,"cut":false,"hidden":false,"merged":[[119,0,119,1],[110,0,110,1],[111,0,111,1],[112,0,112,1],[113,0,113,1],[118,0,118,1],[114,0,114,1],[115,0,115,1],[116,0,116,1],[117,0,117,1]]}
[]
[]
["Scope 3 Emissions from Employee Commuting"]
[]
["Guidance"]
["(A) Enter annual data in ORANGE cells in the table corresponding to the transport method.  Example entry is shown in first row (GREEN Italics)."]
["(B) For employees commuting in a personal vehicle, select the \"Vehicle Type\" and enter miles traveled (vehicle-miles) in Table 1.  "]
["(C) For employees commuting using public transportation, select the \"Transport Type\" and enter miles traveled (passenger-miles) in Table 2.  "]
[]
["Tip: If more than one employee travels by the same vehicle type or transport type, miles can be combined and entered in one row."]
[]
["Table 1.  Personal Vehicle - Employee Commuting by Vehicle-Miles (CO2, CH4 and N2O)"]
["Source ID","Source Description","Vehicle Type"," Vehicle-Miles (miles)","CO2 Emissions (kg)","CH4 Emissions  (g)","N2O \nEmissions \n(g)"]
["JD-001","John Doe 1","Passenger Car",100,{"$f":"IF($C14=\"\",\"\",VLOOKUP($C14,Biz_Travel_Fctr,2,FALSE)*$D14)","v":33.200000000000003},{"$f":"IF($C14=\"\",\"\",VLOOKUP($C14,Biz_Travel_Fctr,3,FALSE)*$D14)","v":0.70000000000000007},{"$f":"IF($C14=\"\",\"\",VLOOKUP($C14,Biz_Travel_Fctr,4,FALSE)*$D14)","v":0.70000000000000007}]
[null,null,null,null,"","",""]
[null,null,null,null,"","",""]
[null,null,null,null,"","",""]
[null,null,null,null,"","",""]
[null,null,null,null,"","",""]
[null,null,null,null,"","",""]
[null,null,null,null,"","",""]
[null,null,null,null,"","",""]
[null,null,null,null,"","",""]
[null,null,null,null,"","",""]
[null,null,null,null,"","",""]
[null,null,null,null,"","",""]
[null,null,null,null,"","",""]
[null,null,null,null,"","",""]
[null,null,null,null,"","",""]
[null,null,null,null,"","",""]
[null,null,null,null,"","",""]
[null,null,null,null,"","",""]
[null,null,null,null,"","",""]
[null,null,null,null,"","",""]
[null,null,null,null,"","",""]
[null,null,null,null,"","",""]
[null,null,null,null,"","",""]
[null,null,null,null,"","",""]
[null,null,null,null,"","",""]
[null,null,null,null,"","",""]
[null,null,null,null,"","",""]
[null,null,null,null,"","",""]
[null,null,null,null,"","",""]
[null,null,null,null,"","",""]
[null,null,null,null,"","",""]
[null,null,null,null,"","",""]
[null,null,null,null,"","",""]
[null,null,null,null,"","",""]
[null,null,null,null,"","",""]
[null,null,null,null,"","",""]
[null,null,null,null,"","",""]
[null,null,null,null,"","",""]
["Total for all Personal Vehicle Employee Commuting",null,null,null,{"$f":"SUM(E15:E52)","v":0},{"$f":"SUM(F15:F52)","v":0},{"$f":"SUM(G15:G52)","v":0}]
[]
["Table 2.  Public Transportation - Employee Commuting by Passenger-Miles (CO2, CH4 and N2O)"]
["Source ID","Source Description","Transport Type","Passenger-Miles (miles)","CO2 Emissions (kg)","CH4 Emissions \n(g)","N2O\n Emissions \n(g)"]
["JD-001","John Doe 1","Bus",100,{"$f":"IF($C57=\"\",\"\",VLOOKUP($C57,Biz_Travel_Fctr,2,FALSE)*$D57)","v":5.6000000000000005},{"$f":"IF($C57=\"\",\"\",VLOOKUP($C57,Biz_Travel_Fctr,3,FALSE)*$D57)","v":2.1},{"$f":"IF($C57=\"\",\"\",VLOOKUP($C57,Biz_Travel_Fctr,4,FALSE)*$D57)","v":0.09}]
[null,null,null,null,"","",""]
[null,null,null,null,"","",""]
[null,null,null,null,"","",""]
[null,null,null,null,"","",""]
[null,null,null,null,"","",""]
[null,null,null,null,"","",""]
[null,null,null,null,"","",""]
[null,null,null,null,"","",""]
[null,null,null,null,"","",""]
[null,null,null,null,"","",""]
[null,null,null,null,"","",""]
[null,null,null,null,"","",""]
[null,null,null,null,"","",""]
[null,null,null,null,"","",""]
[null,null,null,null,"","",""]
[null,null,null,null,"","",""]
[null,null,null,null,"","",""]
[null,null,null,null,"","",""]
[null,null,null,null,"","",""]
[null,null,null,null,"","",""]
[null,null,null,null,"","",""]
[null,null,null,null,"","",""]
[null,null,null,null,"","",""]
[null,null,null,null,"","",""]
[null,null,null,null,"","",""]
[null,null,null,null,"","",""]
[null,null,null,null,"","",""]
[null,null,null,null,"","",""]
[null,null,null,null,"","",""]
[null,null,null,null,"","",""]
[null,null,null,null,"","",""]
[null,null,null,null,"","",""]
[null,null,null,null,"","",""]
[null,null,null,null,"","",""]
[null,null,null,null,"","",""]
[null,null,null,null,"","",""]
[null,null,null,null,"","",""]
[null,null,null,null,"","",""]
[null,null,null,null,"","",""]
[null,null,null,null,"","",""]
[null,null,null,null,"","",""]
[null,null,null,null,"","",""]
[null,null,null,null,"","",""]
[null,null,null,null,"","",""]
[null,null,null,null,"","",""]
[null,null,null,null,"","",""]
[null,null,null,null,"","",""]
[null,null,null,null,"","",""]
["Total for all Public Transportation Employee Commuting",null,null,null,{"$f":"SUM(E58:E105)","v":0},{"$f":"SUM(F58:F105)","v":0},{"$f":"SUM(G58:G105)","v":0}]
[]
["GHG Emissions"]
[]
["Total CO2 Emissions by Commuting Type"]
["Transport Type ",null,"CO2 (kg)","CH4 (g)","N2O (g)"]
["Passenger Car",null,{"$f":"SUMIF($C$15:$C$52,$A112,E$15:E$52)","v":0},0,0]
["Light-Duty Truck",null,0,0,0]
["Motorcycle",null,0,0,0]
["Intercity Rail - Northeast Corridor",null,{"$f":"SUMIF($C$58:$C$105,$A115,E$58:E$105)","v":0},{"$f":"SUMIF($C$58:$C$105,$A115,F$58:F$105)","v":0},{"$f":"SUMIF($C$58:$C$105,$A115,G$58:G$105)","v":0}]
["Intercity Rail - Other Routes",null,0,0,0]
["Intercity Rail - National Average",null,0,0,0]
["Commuter Rail",null,0,0,0]
["Transit Rail (i.e. Subway, Tram)",null,{"$f":"SUMIF($C$58:$C$105,$A119,E$58:E$105)","v":0},{"$f":"SUMIF($C$58:$C$105,$A119,F$58:F$105)","v":0},{"$f":"SUMIF($C$58:$C$105,$A119,G$58:G$105)","v":0}]
["Bus",null,{"$f":"SUMIF($C$58:$C$105,$A120,E$58:E$105)","v":0},{"$f":"SUMIF($C$58:$C$105,$A120,F$58:F$105)","v":0},{"$f":"SUMIF($C$58:$C$105,$A120,G$58:G$105)","v":0}]
[]
[]
["Total CO2 Equivalent Emissions  (metric tons) - Commuting",null,null,{"$f":"(SUM(C112:C120)+SUM(D112:D120)/1000*CH4_GWP+SUM(E112:E120)/1000*N2O_GWP)/1000","v":0}]

{"sheet":"Upstream Trans and Dist","index":12,"n_rows":111,"n_cols":7,"rows_kept":111,"cut":false,"hidden":false,"merged":[[105,0,105,1],[106,0,106,1],[107,0,107,1],[7,0,7,6],[8,0,8,6],[101,0,101,1],[102,0,102,1],[104,0,104,1],[103,0,103,1]]}
[]
[]
["Scope 3 Emissions from Upstream Transportation and Distribution"]
[]
["Guidance"]
["(A) Enter annual data in ORANGE cells in the table corresponding to the transport method.  Example entry is shown in first row (GREEN Italics)."]
["(B) For rail, water, or air shipments, enter short ton-mile data in Table 2.  See Help sheet for details on calculating short ton-miles."]
["(C) For road shipments, if your organization's product is the only product transported in the vehicle (i.e. full truckload shipment) then enter the vehicle type and miles for each leg of transport in Table 1.  Emissions are calculated using vehicle-miles."]
["(D) For road shipments, if your organization's product makes up only part of the truck load (i.e. less-than-load or LTL shipment), then enter the vehicle type and short ton-miles (product weight (short tons) x distance) for each leg of transport in Table 2.  Emissions are calculated using short ton-miles.  See Help sheet for details on calculating ton-miles. "]
["     Tip: Make sure all transport legs are accounted for from manufacturing facility to distribution to customer."]
["      --- Note: This calculator does not currently provide a place to calculate emissions from distribution warehouses.  "]
["Table 1.  On-Road Product Transport by Vehicle-Miles  (CO2, CH4 and N2O)"]
["Source ID","Source Description","Vehicle Type"," Vehicle-Miles (miles)","CO2 Emissions (kg)","CH4 Emissions (g)","N2O Emissions (g)"]
["Bldg-012","East Power Plant Finished Goods","Medium- and Heavy-duty Truck",100,{"$f":"IF($C14=\"\",\"\",VLOOKUP($C14,Prod_TransVM_Fctrs,2,FALSE)*$D14)","v":145},{"$f":"IF($C14=\"\",\"\",VLOOKUP($C14,Prod_TransVM_Fctrs,3,FALSE)*$D14)","v":1.3},{"$f":"IF($C14=\"\",\"\",VLOOKUP($C14,Prod_TransVM_Fctrs,4,FALSE)*$D14)","v":3.4000000000000004}]
[null,null,null,null,{"$f":"IF($C15=\"\",\"\",VLOOKUP($C15,Prod_TransVM_Fctrs,2,FALSE)*$D15)","v":""},"",""]
[null,null,null,null,"","",""]
[null,null,null,null,"","",""]
[null,null,null,null,"","",""]
[null,null,null,null,"","",""]
[null,null,null,null,"","",""]
[null,null,null,null,"","",""]
[null,null,null,null,"","",""]
[null,null,null,null,"","",""]
[null,null,null,null,"","",""]
[null,null,null,null,"","",""]
[null,null,null,null,"","",""]
[null,null,null,null,"","",""]
[null,null,null,null,"","",""]
[null,null,null,null,"","",""]
[null,null,null,null,"","",""]
[null,null,null,null,"","",""]
[null,null,null,null,"","",""]
[null,null,null,null,"","",""]
[null,null,null,null,"","",""]
[null,null,null,null,"","",""]
[null,null,null,null,"","",""]
[null,null,null,null,"","",""]
[null,null,null,null,"","",""]
[null,null,null,null,"","",""]
[null,null,null,null,"","",""]
[null,null,null,null,"","",""]
[null,null,null,null,"","",""]
[null,null,null,null,"","",""]
[null,null,null,null,"","",""]
[null,null,null,null,"","",""]
[null,null,null,null,"","",""]
[null,null,null,null,"","",""]
[null,null,null,null,"","",""]
[null,null,null,null,"","",""]
[null,null,null,null,"","",""]
[null,null,null,null,"","",""]
[null,null,null,null,"","",""]
["Total for Product Transport by Vehicle-Miles",null,null,null,{"$f":"SUM(E15:E52)","v":0},{"$f":"SUM(F15:F52)","v":0},{"$f":"SUM(G15:G52)","v":0}]
[]
[]
["Table 2.  Product Transport by Ton-Miles (CO2, CH4 and N2O)"]
["Source ID","Source Description","Vehicle Type","Short Ton-Miles ","CO2 Emissions (kg)","CH4 Emissions (g)","N2O Emissions (g)"]
["Bldg-012","East Power Plant Finished Goods","Medium- and Heavy-Duty Truck",100,{"$f":"IF($C58=\"\",\"\",VLOOKUP(C58,Prod_TransTM_fctrs,2,FALSE)*$D58)","v":21.099999999999998},{"$f":"IF($C58=\"\",\"\",VLOOKUP(C58,Prod_TransTM_fctrs,3,FALSE)*$D58)","v":0.2},{"$f":"IF($C58=\"\",\"\",VLOOKUP(C58,Prod_TransTM_fctrs,4,FALSE)*$D58)","v":0.49}]
[null,null,null,null,"",{"$f":"IF($C59=\"\",\"\",VLOOKUP(C59,Prod_TransTM_fctrs,3,FALSE)*$D59)","v":""},{"$f":"IF($C59=\"\",\"\",VLOOKUP(C59,Prod_TransTM_fctrs,4,FALSE)*$D59)","v":""}]
[null,null,null,null,"","",""]
[null,null,null,null,"","",""]
[null,null,null,null,"","",""]
[null,null,null,null,"","",""]
[null,null,null,null,"","",""]
[null,null,null,null,"","",""]
[null,null,null,null,"","",""]
[null,null,null,null,"","",""]
[null,null,null,null,"","",""]
[null,null,null,null,"","",""]
[null,null,null,null,"","",""]
[null,null,null,null,"","",""]
[null,null,null,null,"","",""]
[null,null,null,null,"","",""]
[null,null,null,null,"","",""]
[null,null,null,null,"","",""]
[null,null,null,null,"","",""]
[null,null,null,null,"","",""]
[null,null,null,null,"","",""]
[null,null,null,null,"","",""]
[null,null,null,null,"","",""]
[null,null,null,null,"","",""]
[null,null,null,null,"","",""]
[null,null,null,null,"","",""]
[null,null,null,null,"","",""]
[null,null,null,null,"","",""]
[null,null,null,null,"","",""]
[null,null,null,null,"","",""]
[null,null,null,null,"","",""]
[null,null,null,null,"","",""]
[null,null,null,null,"","",""]
[null,null,null,null,"","",""]
[null,null,null,null,"","",""]
[null,null,null,null,"","",""]
[null,null,null,null,"","",""]
[null,null,null,null,"","",""]
[null,null,null,null,"","",""]
["Total for all Product Transport by Ton-Miles",null,null,null,{"$f":"SUM(E59:E96)","v":0},{"$f":"SUM(F59:F96)","v":0},{"$f":"SUM(G59:G96)","v":0}]
[]
["GHG Emissions"]
[]
[" Total Emissions by Transportation Mode Type",null,{"$f":"SUM(E97,E53)-SUM(C103:C108)","v":0},{"$f":"SUM(F97,F53)-SUM(D103:D108)","v":0},0]
["Transport Type ",null,"CO2 (kg)","CH4 (g)","N2O (g)"]
["Medium- and Heavy-Duty Truck",null,{"$f":"SUMIF($C$15:$C$52,$A103,E$15:E$52)+SUMIF($C$59:$C$96,$A103,E$59:E$96)","v":0},{"$f":"SUMIF($C$15:$C$52,$A103,F$15:F$52)+SUMIF($C$59:$C$96,$A103,F$59:F$96)","v":0},{"$f":"SUMIF($C$15:$C$52,$A103,G$15:G$52)+SUMIF($C$59:$C$96,$A103,G$59:G$96)","v":0}]
["Light-Duty Truck",null,{"$f":"SUMIF($C$15:$C$52,$A104,E$15:E$52)","v":0},0,0]
["Passenger Car",null,0,0,0]
["Rail",null,{"$f":"SUMIF($C$59:$C$96,$A106,E$59:E$96)","v":0},0,0]
["Aircraft",null,0,0,0]
["Waterborne Craft",null,0,0,0]
[]
[]
["Total CO2 Equivalent Emissions  (metric tons) - Upstream Transportation and Distribution",null,null,{"$f":"(SUM(C103:C108)+SUM(D103:D108)/1000*CH4_GWP+SUM(E103:E108)/1000*N2O_GWP)/1000","v":0}]

{"sheet":"Waste","index":13,"n_rows":99,"n_cols":7,"rows_kept":99,"cut":false,"hidden":false,"merged":[[6,0,6,6],[7,0,7,6],[5,0,5,6]]}
[]
[]
["Scope 3 Emissions from Waste"]
[]
["Guidance"]
["   (A) Enter annual waste data in ORANGE cells.  Example entry is shown in first row (GREEN Italics)."]
["   (B) First, choose the appropriate material then the disposal method from the drop down options. For the average-data method, use one of the mixed material types, such as mixed \n    MSW. If the exact waste material is not available, consider an appropriate proxy. For example, dimensional lumber can be used as a proxy for wood furniture."]
["   (C) Choose an appropriate disposal method.  Note that not all disposal methods are available for all materials.  If there is a #NA or # Value error in the emissions column, you must pick a \n    new material type or appropriate disposal method. "]
[]
["Table 1.  Waste Disposal Weight by Waste Material and Disposal Method  (CO2, CH4 and N2O)"]
["Source ID","Source Description","Waste Material","Disposal Method","Weight","Unit","CO2e Emissions (kg)"]
["Bldg-012","East Power Plant Finished Goods","Copper Wire","Landfilled",1000,"metric ton",{"$f":"IF($E12=\"\",\"\",E12*(VLOOKUP($F12,'Unit Conversions'!$A$12:$C$16,3,FALSE)*INDEX('Emission Factors'!$B$348:$H$408,MATCH(C12,'Emission Factors'!$B$348:$B$408,0),MATCH(D12,'Emission Factors'!$B$348:$H$348,0)))*1000)","v":22040}]
[null,null,null,null,null,null,{"$f":"IF($E13=\"\",\"\",E13*(VLOOKUP($F13,'Unit Conversions'!$A$12:$C$16,3,FALSE)*INDEX('Emission Factors'!$B$348:$H$408,MATCH(C13,'Emission Factors'!$B$348:$B$408,0),MATCH(D13,'Emission Factors'!$B$348:$H$348,0)))*1000)","v":""}]
[null,null,null,null,null,null,{"$f":"IF($E14=\"\",\"\",E14*(VLOOKUP($F14,'Unit Conversions'!$A$12:$C$16,3,FALSE)*INDEX('Emission Factors'!$B$348:$H$408,MATCH(C14,'Emission Factors'!$B$348:$B$408,0),MATCH(D14,'Emission Factors'!$B$348:$H$348,0)))*1000)","v":""}]
[null,null,null,null,null,null,{"$f":"IF($E15=\"\",\"\",E15*(VLOOKUP($F15,'Unit Conversions'!$A$12:$C$16,3,FALSE)*INDEX('Emission Factors'!$B$348:$H$408,MATCH(C15,'Emission Factors'!$B$348:$B$408,0),MATCH(D15,'Emission Factors'!$B$348:$H$348,0)))*1000)","v":""}]
[null,null,null,null,null,null,{"$f":"IF($E16=\"\",\"\",E16*(VLOOKUP($F16,'Unit Conversions'!$A$12:$C$16,3,FALSE)*INDEX('Emission Factors'!$B$348:$H$408,MATCH(C16,'Emission Factors'!$B$348:$B$408,0),MATCH(D16,'Emission Factors'!$B$348:$H$348,0)))*1000)","v":""}]
[null,null,null,null,null,null,{"$f":"IF($E17=\"\",\"\",E17*(VLOOKUP($F17,'Unit Conversions'!$A$12:$C$16,3,FALSE)*INDEX('Emission Factors'!$B$348:$H$408,MATCH(C17,'Emission Factors'!$B$348:$B$408,0),MATCH(D17,'Emission Factors'!$B$348:$H$348,0)))*1000)","v":""}]
[null,null,null,null,null,null,{"$f":"IF($E18=\"\",\"\",E18*(VLOOKUP($F18,'Unit Conversions'!$A$12:$C$16,3,FALSE)*INDEX('Emission Factors'!$B$348:$H$408,MATCH(C18,'Emission Factors'!$B$348:$B$408,0),MATCH(D18,'Emission Factors'!$B$348:$H$348,0)))*1000)","v":""}]
[null,null,null,null,null,null,{"$f":"IF($E19=\"\",\"\",E19*(VLOOKUP($F19,'Unit Conversions'!$A$12:$C$16,3,FALSE)*INDEX('Emission Factors'!$B$348:$H$408,MATCH(C19,'Emission Factors'!$B$348:$B$408,0),MATCH(D19,'Emission Factors'!$B$348:$H$348,0)))*1000)","v":""}]
[null,null,null,null,null,null,{"$f":"IF($E20=\"\",\"\",E20*(VLOOKUP($F20,'Unit Conversions'!$A$12:$C$16,3,FALSE)*INDEX('Emission Factors'!$B$348:$H$408,MATCH(C20,'Emission Factors'!$B$348:$B$408,0),MATCH(D20,'Emission Factors'!$B$348:$H$348,0)))*1000)","v":""}]
[null,null,null,null,null,null,{"$f":"IF($E21=\"\",\"\",E21*(VLOOKUP($F21,'Unit Conversions'!$A$12:$C$16,3,FALSE)*INDEX('Emission Factors'!$B$348:$H$408,MATCH(C21,'Emission Factors'!$B$348:$B$408,0),MATCH(D21,'Emission Factors'!$B$348:$H$348,0)))*1000)","v":""}]
[null,null,null,null,null,null,{"$f":"IF($E22=\"\",\"\",E22*(VLOOKUP($F22,'Unit Conversions'!$A$12:$C$16,3,FALSE)*INDEX('Emission Factors'!$B$348:$H$408,MATCH(C22,'Emission Factors'!$B$348:$B$408,0),MATCH(D22,'Emission Factors'!$B$348:$H$348,0)))*1000)","v":""}]
[null,null,null,null,null,null,{"$f":"IF($E23=\"\",\"\",E23*(VLOOKUP($F23,'Unit Conversions'!$A$12:$C$16,3,FALSE)*INDEX('Emission Factors'!$B$348:$H$408,MATCH(C23,'Emission Factors'!$B$348:$B$408,0),MATCH(D23,'Emission Factors'!$B$348:$H$348,0)))*1000)","v":""}]
[null,null,null,null,null,null,{"$f":"IF($E24=\"\",\"\",E24*(VLOOKUP($F24,'Unit Conversions'!$A$12:$C$16,3,FALSE)*INDEX('Emission Factors'!$B$348:$H$408,MATCH(C24,'Emission Factors'!$B$348:$B$408,0),MATCH(D24,'Emission Factors'!$B$348:$H$348,0)))*1000)","v":""}]
[null,null,null,null,null,null,{"$f":"IF($E25=\"\",\"\",E25*(VLOOKUP($F25,'Unit Conversions'!$A$12:$C$16,3,FALSE)*INDEX('Emission Factors'!$B$348:$H$408,MATCH(C25,'Emission Factors'!$B$348:$B$408,0),MATCH(D25,'Emission Factors'!$B$348:$H$348,0)))*1000)","v":""}]
[null,null,null,null,null,null,{"$f":"IF($E26=\"\",\"\",E26*(VLOOKUP($F26,'Unit Conversions'!$A$12:$C$16,3,FALSE)*INDEX('Emission Factors'!$B$348:$H$408,MATCH(C26,'Emission Factors'!$B$348:$B$408,0),MATCH(D26,'Emission Factors'!$B$348:$H$348,0)))*1000)","v":""}]
[null,null,null,null,null,null,{"$f":"IF($E27=\"\",\"\",E27*(VLOOKUP($F27,'Unit Conversions'!$A$12:$C$16,3,FALSE)*INDEX('Emission Factors'!$B$348:$H$408,MATCH(C27,'Emission Factors'!$B$348:$B$408,0),MATCH(D27,'Emission Factors'!$B$348:$H$348,0)))*1000)","v":""}]
[null,null,null,null,null,null,{"$f":"IF($E28=\"\",\"\",E28*(VLOOKUP($F28,'Unit Conversions'!$A$12:$C$16,3,FALSE)*INDEX('Emission Factors'!$B$348:$H$408,MATCH(C28,'Emission Factors'!$B$348:$B$408,0),MATCH(D28,'Emission Factors'!$B$348:$H$348,0)))*1000)","v":""}]
[null,null,null,null,null,null,{"$f":"IF($E29=\"\",\"\",E29*(VLOOKUP($F29,'Unit Conversions'!$A$12:$C$16,3,FALSE)*INDEX('Emission Factors'!$B$348:$H$408,MATCH(C29,'Emission Factors'!$B$348:$B$408,0),MATCH(D29,'Emission Factors'!$B$348:$H$348,0)))*1000)","v":""}]
[null,null,null,null,null,null,{"$f":"IF($E30=\"\",\"\",E30*(VLOOKUP($F30,'Unit Conversions'!$A$12:$C$16,3,FALSE)*INDEX('Emission Factors'!$B$348:$H$408,MATCH(C30,'Emission Factors'!$B$348:$B$408,0),MATCH(D30,'Emission Factors'!$B$348:$H$348,0)))*1000)","v":""}]
[null,null,null,null,null,null,{"$f":"IF($E31=\"\",\"\",E31*(VLOOKUP($F31,'Unit Conversions'!$A$12:$C$16,3,FALSE)*INDEX('Emission Factors'!$B$348:$H$408,MATCH(C31,'Emission Factors'!$B$348:$B$408,0),MATCH(D31,'Emission Factors'!$B$348:$H$348,0)))*1000)","v":""}]
[null,null,null,null,null,null,{"$f":"IF($E32=\"\",\"\",E32*(VLOOKUP($F32,'Unit Conversions'!$A$12:$C$16,3,FALSE)*INDEX('Emission Factors'!$B$348:$H$408,MATCH(C32,'Emission Factors'!$B$348:$B$408,0),MATCH(D32,'Emission Factors'!$B$348:$H$348,0)))*1000)","v":""}]
[null,null,null,null,null,null,{"$f":"IF($E33=\"\",\"\",E33*(VLOOKUP($F33,'Unit Conversions'!$A$12:$C$16,3,FALSE)*INDEX('Emission Factors'!$B$348:$H$408,MATCH(C33,'Emission Factors'!$B$348:$B$408,0),MATCH(D33,'Emission Factors'!$B$348:$H$348,0)))*1000)","v":""}]
[null,null,null,null,null,null,{"$f":"IF($E34=\"\",\"\",E34*(VLOOKUP($F34,'Unit Conversions'!$A$12:$C$16,3,FALSE)*INDEX('Emission Factors'!$B$348:$H$408,MATCH(C34,'Emission Factors'!$B$348:$B$408,0),MATCH(D34,'Emission Factors'!$B$348:$H$348,0)))*1000)","v":""}]
[null,null,null,null,null,null,{"$f":"IF($E35=\"\",\"\",E35*(VLOOKUP($F35,'Unit Conversions'!$A$12:$C$16,3,FALSE)*INDEX('Emission Factors'!$B$348:$H$408,MATCH(C35,'Emission Factors'!$B$348:$B$408,0),MATCH(D35,'Emission Factors'!$B$348:$H$348,0)))*1000)","v":""}]
[null,null,null,null,null,null,{"$f":"IF($E36=\"\",\"\",E36*(VLOOKUP($F36,'Unit Conversions'!$A$12:$C$16,3,FALSE)*INDEX('Emission Factors'!$B$348:$H$408,MATCH(C36,'Emission Factors'!$B$348:$B$408,0),MATCH(D36,'Emission Factors'!$B$348:$H$348,0)))*1000)","v":""}]
[null,null,null,null,null,null,{"$f":"IF($E37=\"\",\"\",E37*(VLOOKUP($F37,'Unit Conversions'!$A$12:$C$16,3,FALSE)*INDEX('Emission Factors'!$B$348:$H$408,MATCH(C37,'Emission Factors'!$B$348:$B$408,0),MATCH(D37,'Emission Factors'!$B$348:$H$348,0)))*1000)","v":""}]
[null,null,null,null,null,null,{"$f":"IF($E38=\"\",\"\",E38*(VLOOKUP($F38,'Unit Conversions'!$A$12:$C$16,3,FALSE)*INDEX('Emission Factors'!$B$348:$H$408,MATCH(C38,'Emission Factors'!$B$348:$B$408,0),MATCH(D38,'Emission Factors'!$B$348:$H$348,0)))*1000)","v":""}]
[null,null,null,null,null,null,{"$f":"IF($E39=\"\",\"\",E39*(VLOOKUP($F39,'Unit Conversions'!$A$12:$C$16,3,FALSE)*INDEX('Emission Factors'!$B$348:$H$408,MATCH(C39,'Emission Factors'!$B$348:$B$408,0),MATCH(D39,'Emission Factors'!$B$348:$H$348,0)))*1000)","v":""}]
[null,null,null,null,null,null,{"$f":"IF($E40=\"\",\"\",E40*(VLOOKUP($F40,'Unit Conversions'!$A$12:$C$16,3,FALSE)*INDEX('Emission Factors'!$B$348:$H$408,MATCH(C40,'Emission Factors'!$B$348:$B$408,0),MATCH(D40,'Emission Factors'!$B$348:$H$348,0)))*1000)","v":""}]
[null,null,null,null,null,null,{"$f":"IF($E41=\"\",\"\",E41*(VLOOKUP($F41,'Unit Conversions'!$A$12:$C$16,3,FALSE)*INDEX('Emission Factors'!$B$348:$H$408,MATCH(C41,'Emission Factors'!$B$348:$B$408,0),MATCH(D41,'Emission Factors'!$B$348:$H$348,0)))*1000)","v":""}]
[null,null,null,null,null,null,{"$f":"IF($E42=\"\",\"\",E42*(VLOOKUP($F42,'Unit Conversions'!$A$12:$C$16,3,FALSE)*INDEX('Emission Factors'!$B$348:$H$408,MATCH(C42,'Emission Factors'!$B$348:$B$408,0),MATCH(D42,'Emission Factors'!$B$348:$H$348,0)))*1000)","v":""}]
[null,null,null,null,null,null,{"$f":"IF($E43=\"\",\"\",E43*(VLOOKUP($F43,'Unit Conversions'!$A$12:$C$16,3,FALSE)*INDEX('Emission Factors'!$B$348:$H$408,MATCH(C43,'Emission Factors'!$B$348:$B$408,0),MATCH(D43,'Emission Factors'!$B$348:$H$348,0)))*1000)","v":""}]
[null,null,null,null,null,null,{"$f":"IF($E44=\"\",\"\",E44*(VLOOKUP($F44,'Unit Conversions'!$A$12:$C$16,3,FALSE)*INDEX('Emission Factors'!$B$348:$H$408,MATCH(C44,'Emission Factors'!$B$348:$B$408,0),MATCH(D44,'Emission Factors'!$B$348:$H$348,0)))*1000)","v":""}]
[null,null,null,null,null,null,{"$f":"IF($E45=\"\",\"\",E45*(VLOOKUP($F45,'Unit Conversions'!$A$12:$C$16,3,FALSE)*INDEX('Emission Factors'!$B$348:$H$408,MATCH(C45,'Emission Factors'!$B$348:$B$408,0),MATCH(D45,'Emission Factors'!$B$348:$H$348,0)))*1000)","v":""}]
[null,null,null,null,null,null,{"$f":"IF($E46=\"\",\"\",E46*(VLOOKUP($F46,'Unit Conversions'!$A$12:$C$16,3,FALSE)*INDEX('Emission Factors'!$B$348:$H$408,MATCH(C46,'Emission Factors'!$B$348:$B$408,0),MATCH(D46,'Emission Factors'!$B$348:$H$348,0)))*1000)","v":""}]
[null,null,null,null,null,null,{"$f":"IF($E47=\"\",\"\",E47*(VLOOKUP($F47,'Unit Conversions'!$A$12:$C$16,3,FALSE)*INDEX('Emission Factors'!$B$348:$H$408,MATCH(C47,'Emission Factors'!$B$348:$B$408,0),MATCH(D47,'Emission Factors'!$B$348:$H$348,0)))*1000)","v":""}]
[null,null,null,null,null,null,{"$f":"IF($E48=\"\",\"\",E48*(VLOOKUP($F48,'Unit Conversions'!$A$12:$C$16,3,FALSE)*INDEX('Emission Factors'!$B$348:$H$408,MATCH(C48,'Emission Factors'!$B$348:$B$408,0),MATCH(D48,'Emission Factors'!$B$348:$H$348,0)))*1000)","v":""}]
[null,null,null,null,null,null,{"$f":"IF($E49=\"\",\"\",E49*(VLOOKUP($F49,'Unit Conversions'!$A$12:$C$16,3,FALSE)*INDEX('Emission Factors'!$B$348:$H$408,MATCH(C49,'Emission Factors'!$B$348:$B$408,0),MATCH(D49,'Emission Factors'!$B$348:$H$348,0)))*1000)","v":""}]
[null,null,null,null,null,null,{"$f":"IF($E50=\"\",\"\",E50*(VLOOKUP($F50,'Unit Conversions'!$A$12:$C$16,3,FALSE)*INDEX('Emission Factors'!$B$348:$H$408,MATCH(C50,'Emission Factors'!$B$348:$B$408,0),MATCH(D50,'Emission Factors'!$B$348:$H$348,0)))*1000)","v":""}]
[null,null,null,null,null,null,{"$f":"IF($E51=\"\",\"\",E51*(VLOOKUP($F51,'Unit Conversions'!$A$12:$C$16,3,FALSE)*INDEX('Emission Factors'!$B$348:$H$408,MATCH(C51,'Emission Factors'!$B$348:$B$408,0),MATCH(D51,'Emission Factors'!$B$348:$H$348,0)))*1000)","v":""}]
[null,null,null,null,null,null,{"$f":"IF($E52=\"\",\"\",E52*(VLOOKUP($F52,'Unit Conversions'!$A$12:$C$16,3,FALSE)*INDEX('Emission Factors'!$B$348:$H$408,MATCH(C52,'Emission Factors'!$B$348:$B$408,0),MATCH(D52,'Emission Factors'!$B$348:$H$348,0)))*1000)","v":""}]
[null,null,null,null,null,null,{"$f":"IF($E53=\"\",\"\",E53*(VLOOKUP($F53,'Unit Conversions'!$A$12:$C$16,3,FALSE)*INDEX('Emission Factors'!$B$348:$H$408,MATCH(C53,'Emission Factors'!$B$348:$B$408,0),MATCH(D53,'Emission Factors'!$B$348:$H$348,0)))*1000)","v":""}]
[null,null,null,null,null,null,{"$f":"IF($E54=\"\",\"\",E54*(VLOOKUP($F54,'Unit Conversions'!$A$12:$C$16,3,FALSE)*INDEX('Emission Factors'!$B$348:$H$408,MATCH(C54,'Emission Factors'!$B$348:$B$408,0),MATCH(D54,'Emission Factors'!$B$348:$H$348,0)))*1000)","v":""}]
[null,null,null,null,null,null,{"$f":"IF($E55=\"\",\"\",E55*(VLOOKUP($F55,'Unit Conversions'!$A$12:$C$16,3,FALSE)*INDEX('Emission Factors'!$B$348:$H$408,MATCH(C55,'Emission Factors'!$B$348:$B$408,0),MATCH(D55,'Emission Factors'!$B$348:$H$348,0)))*1000)","v":""}]
[null,null,null,null,null,null,{"$f":"IF($E56=\"\",\"\",E56*(VLOOKUP($F56,'Unit Conversions'!$A$12:$C$16,3,FALSE)*INDEX('Emission Factors'!$B$348:$H$408,MATCH(C56,'Emission Factors'!$B$348:$B$408,0),MATCH(D56,'Emission Factors'!$B$348:$H$348,0)))*1000)","v":""}]
[null,null,null,null,null,null,{"$f":"IF($E57=\"\",\"\",E57*(VLOOKUP($F57,'Unit Conversions'!$A$12:$C$16,3,FALSE)*INDEX('Emission Factors'!$B$348:$H$408,MATCH(C57,'Emission Factors'!$B$348:$B$408,0),MATCH(D57,'Emission Factors'!$B$348:$H$348,0)))*1000)","v":""}]
[null,null,null,null,null,null,{"$f":"IF($E58=\"\",\"\",E58*(VLOOKUP($F58,'Unit Conversions'!$A$12:$C$16,3,FALSE)*INDEX('Emission Factors'!$B$348:$H$408,MATCH(C58,'Emission Factors'!$B$348:$B$408,0),MATCH(D58,'Emission Factors'!$B$348:$H$348,0)))*1000)","v":""}]
[null,null,null,null,null,null,{"$f":"IF($E59=\"\",\"\",E59*(VLOOKUP($F59,'Unit Conversions'!$A$12:$C$16,3,FALSE)*INDEX('Emission Factors'!$B$348:$H$408,MATCH(C59,'Emission Factors'!$B$348:$B$408,0),MATCH(D59,'Emission Factors'!$B$348:$H$348,0)))*1000)","v":""}]
[null,null,null,null,null,null,{"$f":"IF($E60=\"\",\"\",E60*(VLOOKUP($F60,'Unit Conversions'!$A$12:$C$16,3,FALSE)*INDEX('Emission Factors'!$B$348:$H$408,MATCH(C60,'Emission Factors'!$B$348:$B$408,0),MATCH(D60,'Emission Factors'!$B$348:$H$348,0)))*1000)","v":""}]
[null,null,null,null,null,null,{"$f":"IF($E61=\"\",\"\",E61*(VLOOKUP($F61,'Unit Conversions'!$A$12:$C$16,3,FALSE)*INDEX('Emission Factors'!$B$348:$H$408,MATCH(C61,'Emission Factors'!$B$348:$B$408,0),MATCH(D61,'Emission Factors'!$B$348:$H$348,0)))*1000)","v":""}]
[null,null,null,null,null,null,{"$f":"IF($E62=\"\",\"\",E62*(VLOOKUP($F62,'Unit Conversions'!$A$12:$C$16,3,FALSE)*INDEX('Emission Factors'!$B$348:$H$408,MATCH(C62,'Emission Factors'!$B$348:$B$408,0),MATCH(D62,'Emission Factors'!$B$348:$H$348,0)))*1000)","v":""}]
[null,null,null,null,null,null,{"$f":"IF($E63=\"\",\"\",E63*(VLOOKUP($F63,'Unit Conversions'!$A$12:$C$16,3,FALSE)*INDEX('Emission Factors'!$B$348:$H$408,MATCH(C63,'Emission Factors'!$B$348:$B$408,0),MATCH(D63,'Emission Factors'!$B$348:$H$348,0)))*1000)","v":""}]
[null,null,null,null,null,null,{"$f":"IF($E64=\"\",\"\",E64*(VLOOKUP($F64,'Unit Conversions'!$A$12:$C$16,3,FALSE)*INDEX('Emission Factors'!$B$348:$H$408,MATCH(C64,'Emission Factors'!$B$348:$B$408,0),MATCH(D64,'Emission Factors'!$B$348:$H$348,0)))*1000)","v":""}]
[null,null,null,null,null,null,{"$f":"IF($E65=\"\",\"\",E65*(VLOOKUP($F65,'Unit Conversions'!$A$12:$C$16,3,FALSE)*INDEX('Emission Factors'!$B$348:$H$408,MATCH(C65,'Emission Factors'!$B$348:$B$408,0),MATCH(D65,'Emission Factors'!$B$348:$H$348,0)))*1000)","v":""}]
[null,null,null,null,null,null,{"$f":"IF($E66=\"\",\"\",E66*(VLOOKUP($F66,'Unit Conversions'!$A$12:$C$16,3,FALSE)*INDEX('Emission Factors'!$B$348:$H$408,MATCH(C66,'Emission Factors'!$B$348:$B$408,0),MATCH(D66,'Emission Factors'!$B$348:$H$348,0)))*1000)","v":""}]
[null,null,null,null,null,null,{"$f":"IF($E67=\"\",\"\",E67*(VLOOKUP($F67,'Unit Conversions'!$A$12:$C$16,3,FALSE)*INDEX('Emission Factors'!$B$348:$H$408,MATCH(C67,'Emission Factors'!$B$348:$B$408,0),MATCH(D67,'Emission Factors'!$B$348:$H$348,0)))*1000)","v":""}]
[null,null,null,null,null,null,{"$f":"IF($E68=\"\",\"\",E68*(VLOOKUP($F68,'Unit Conversions'!$A$12:$C$16,3,FALSE)*INDEX('Emission Factors'!$B$348:$H$408,MATCH(C68,'Emission Factors'!$B$348:$B$408,0),MATCH(D68,'Emission Factors'!$B$348:$H$348,0)))*1000)","v":""}]
[null,null,null,null,null,null,{"$f":"IF($E69=\"\",\"\",E69*(VLOOKUP($F69,'Unit Conversions'!$A$12:$C$16,3,FALSE)*INDEX('Emission Factors'!$B$348:$H$408,MATCH(C69,'Emission Factors'!$B$348:$B$408,0),MATCH(D69,'Emission Factors'!$B$348:$H$348,0)))*1000)","v":""}]
[null,null,null,null,null,null,{"$f":"IF($E70=\"\",\"\",E70*(VLOOKUP($F70,'Unit Conversions'!$A$12:$C$16,3,FALSE)*INDEX('Emission Factors'!$B$348:$H$408,MATCH(C70,'Emission Factors'!$B$348:$B$408,0),MATCH(D70,'Emission Factors'!$B$348:$H$348,0)))*1000)","v":""}]
[null,null,null,null,null,null,{"$f":"IF($E71=\"\",\"\",E71*(VLOOKUP($F71,'Unit Conversions'!$A$12:$C$16,3,FALSE)*INDEX('Emission Factors'!$B$348:$H$408,MATCH(C71,'Emission Factors'!$B$348:$B$408,0),MATCH(D71,'Emission Factors'!$B$348:$H$348,0)))*1000)","v":""}]
[null,null,null,null,null,null,{"$f":"IF($E72=\"\",\"\",E72*(VLOOKUP($F72,'Unit Conversions'!$A$12:$C$16,3,FALSE)*INDEX('Emission Factors'!$B$348:$H$408,MATCH(C72,'Emission Factors'!$B$348:$B$408,0),MATCH(D72,'Emission Factors'!$B$348:$H$348,0)))*1000)","v":""}]
[null,null,null,null,null,null,{"$f":"IF($E73=\"\",\"\",E73*(VLOOKUP($F73,'Unit Conversions'!$A$12:$C$16,3,FALSE)*INDEX('Emission Factors'!$B$348:$H$408,MATCH(C73,'Emission Factors'!$B$348:$B$408,0),MATCH(D73,'Emission Factors'!$B$348:$H$348,0)))*1000)","v":""}]
[null,null,null,null,null,null,{"$f":"IF($E74=\"\",\"\",E74*(VLOOKUP($F74,'Unit Conversions'!$A$12:$C$16,3,FALSE)*INDEX('Emission Factors'!$B$348:$H$408,MATCH(C74,'Emission Factors'!$B$348:$B$408,0),MATCH(D74,'Emission Factors'!$B$348:$H$348,0)))*1000)","v":""}]
[null,null,null,null,null,null,{"$f":"IF($E75=\"\",\"\",E75*(VLOOKUP($F75,'Unit Conversions'!$A$12:$C$16,3,FALSE)*INDEX('Emission Factors'!$B$348:$H$408,MATCH(C75,'Emission Factors'!$B$348:$B$408,0),MATCH(D75,'Emission Factors'!$B$348:$H$348,0)))*1000)","v":""}]
[null,null,null,null,null,null,{"$f":"IF($E76=\"\",\"\",E76*(VLOOKUP($F76,'Unit Conversions'!$A$12:$C$16,3,FALSE)*INDEX('Emission Factors'!$B$348:$H$408,MATCH(C76,'Emission Factors'!$B$348:$B$408,0),MATCH(D76,'Emission Factors'!$B$348:$H$348,0)))*1000)","v":""}]
[null,null,null,null,null,null,{"$f":"IF($E77=\"\",\"\",E77*(VLOOKUP($F77,'Unit Conversions'!$A$12:$C$16,3,FALSE)*INDEX('Emission Factors'!$B$348:$H$408,MATCH(C77,'Emission Factors'!$B$348:$B$408,0),MATCH(D77,'Emission Factors'!$B$348:$H$348,0)))*1000)","v":""}]
[null,null,null,null,null,null,{"$f":"IF($E78=\"\",\"\",E78*(VLOOKUP($F78,'Unit Conversions'!$A$12:$C$16,3,FALSE)*INDEX('Emission Factors'!$B$348:$H$408,MATCH(C78,'Emission Factors'!$B$348:$B$408,0),MATCH(D78,'Emission Factors'!$B$348:$H$348,0)))*1000)","v":""}]
[null,null,null,null,null,null,{"$f":"IF($E79=\"\",\"\",E79*(VLOOKUP($F79,'Unit Conversions'!$A$12:$C$16,3,FALSE)*INDEX('Emission Factors'!$B$348:$H$408,MATCH(C79,'Emission Factors'!$B$348:$B$408,0),MATCH(D79,'Emission Factors'!$B$348:$H$348,0)))*1000)","v":""}]
[null,null,null,null,null,null,{"$f":"IF($E80=\"\",\"\",E80*(VLOOKUP($F80,'Unit Conversions'!$A$12:$C$16,3,FALSE)*INDEX('Emission Factors'!$B$348:$H$408,MATCH(C80,'Emission Factors'!$B$348:$B$408,0),MATCH(D80,'Emission Factors'!$B$348:$H$348,0)))*1000)","v":""}]
[null,null,null,null,null,null,{"$f":"IF($E81=\"\",\"\",E81*(VLOOKUP($F81,'Unit Conversions'!$A$12:$C$16,3,FALSE)*INDEX('Emission Factors'!$B$348:$H$408,MATCH(C81,'Emission Factors'!$B$348:$B$408,0),MATCH(D81,'Emission Factors'!$B$348:$H$348,0)))*1000)","v":""}]
[null,null,null,null,null,null,{"$f":"IF($E82=\"\",\"\",E82*(VLOOKUP($F82,'Unit Conversions'!$A$12:$C$16,3,FALSE)*INDEX('Emission Factors'!$B$348:$H$408,MATCH(C82,'Emission Factors'!$B$348:$B$408,0),MATCH(D82,'Emission Factors'!$B$348:$H$348,0)))*1000)","v":""}]
[null,null,null,null,null,null,{"$f":"IF($E83=\"\",\"\",E83*(VLOOKUP($F83,'Unit Conversions'!$A$12:$C$16,3,FALSE)*INDEX('Emission Factors'!$B$348:$H$408,MATCH(C83,'Emission Factors'!$B$348:$B$408,0),MATCH(D83,'Emission Factors'!$B$348:$H$348,0)))*1000)","v":""}]
[null,null,null,null,null,null,{"$f":"IF($E84=\"\",\"\",E84*(VLOOKUP($F84,'Unit Conversions'!$A$12:$C$16,3,FALSE)*INDEX('Emission Factors'!$B$348:$H$408,MATCH(C84,'Emission Factors'!$B$348:$B$408,0),MATCH(D84,'Emission Factors'!$B$348:$H$348,0)))*1000)","v":""}]
[]
[]
["GHG Emissions"]
[]
[" Total Emissions by Disposal Method"]
["Waste Material","CO2e (kg)"]
["Recycled",{"$f":"SUMIF($D$13:$D$84,$A91,G$13:G$84)","v":0}]
["Landfilled",{"$f":"SUMIF($D$13:$D$84,$A92,G$13:G$84)","v":0}]
["Combusted",0]
["Composted",0]
["Anaerobically Digested (Dry Digestate with Curing)",{"$f":"SUMIF($D$13:$D$84,$A95,G$13:G$84)","v":0}]
["Anaerobically Digested (Wet  Digestate with Curing)",0]
[]
[]
["Total CO2 Equivalent Emissions  (metric tons) - Waste",null,null,{"$f":"SUM(B91:B96)/1000","v":0}]

{"sheet":"Offsets","index":14,"n_rows":25,"n_cols":3,"rows_kept":25,"cut":false,"hidden":false,"merged":[[23,0,24,1],[5,0,5,5]]}
[]
[]
["Purchased Offsets"]
[]
["Guidance"]
["  (A)  Enter quantity of offsets purchased for each offset project in terms of CO2 equivalent in ORANGE    \n         cells of Table 1.  Enter offsets purchased for the inventory reporting period.  Example entry is shown in \n         first row (GREEN Italics)."]
[]
["Table 1.  Total Amount of Purchased Offsets"]
[" ID","Project Description","Offsets Purchased\n(Metric Tons CO2e)"]
["Trees","Forestry Project",5000]
[]
[]
[]
[]
[]
[]
[]
[]
[]
[]
[]
["GHG Reductions"]
[]
["Total CO2 Equivalent Emission Reductions (metric tons) - Offsets"]
[null,null,{"$f":"SUM(C11:C20)","v":0}]

{"sheet":"Unit Conversions","index":15,"n_rows":64,"n_cols":4,"rows_kept":64,"cut":false,"hidden":false,"merged":[[5,0,5,3],[19,0,19,3],[37,0,37,3],[51,0,51,3]]}
[]
[]
["Tool Sheet: Unit Conversions"]
[]
[]
["Mass"]
["Convert From ","Convert To","Multiply By","Units"]
["pounds (lb)","gram (g)",453.6,"g /  lb"]
["pounds (lb)","kilogram (kg)",0.4536,"kg / lb"]
["pounds (lb)","metric ton",4.5360000000000002E-4,"metric ton / lb"]
["kilogram (kg)","pounds (lb)",2.2050000000000001,"lb / kg"]
["gram (g)","short ton",{"$f":"C13/1000","v":1.1020000000000002E-6},"short ton / g"]
["kilogram (kg)","short ton",{"$f":"C14/1000","v":1.1020000000000001E-3},"short ton / kg"]
["metric ton","short ton",1.1020000000000001,"short ton / metric ton"]
["pounds (lb)","short ton",{"$f":"1/2000","v":5.0000000000000001E-4},"short ton / lb"]
["short ton","short ton",1,"short ton / short ton"]
["metric ton","pounds (lb)",2205,"lb / metric ton"]
["metric ton","kilogram (kg)",1000,"kg / metric ton"]
[]
["Volume"]
["Convert From ","Convert To","Multiply By","Units"]
["standard cubic foot (scf)","US gallon (gal)",7.4805000000000001,"gal / scf"]
["standard cubic foot (scf)","barrel (bbl)",0.17810000000000001,"bbl / scf"]
["standard cubic foot (scf)","liters (L)",28.32,"L / scf"]
["standard cubic foot (scf)","cubic meters (m3)",2.8320000000000001E-2,"m3 / scf"]
["US gallon (gal)","barrel (bbl)",2.3800000000000002E-2,"bbl / gal"]
["US gallon (gal)","liters (L)",3.7850000000000001,"L / gal"]
["US gallon (gal)","cubic meters (m3)",3.7850000000000002E-3,"m3 / gal"]
["barrel (bbl)","US gallons (gal)",42,"gal / bbl"]
["barrel (bbl)","liters (L)",158.99,"L / bbl"]
["barrel (bbl)","cubic meters (m3)",0.15890000000000001,"m3 / bbl"]
["liters (L)","cubic meters (m3)",1E-3,"m3 / L"]
["liters (L)","US gallon (gal)",0.26419999999999999,"gal / L"]
["cubic meters (m3)","barrel (bbl)",6.2896999999999998,"bbl / m3"]
["cubic meters (m3)","US gallon (gal)",264.2,"gal / m3"]
["cubic meters (m3)","liters (L)",1000,"L / m3"]
[]
["Energy"]
["Convert From ","Convert To","Multiply By","Units"]
["kilowatt hour (kWh)","Btu",3412,"Btu / kWh"]
["kilowatt hour (kWh)","kilojoules (KJ) ",3600,"KJ / kWh"]
["megajoule (MJ)","gigajoules (GJ) ",1E-3,"GJ / MJ"]
["gigajoule (GJ)","million Btu (mmBtu)",0.94779999999999998,"mmBtu / GJ"]
["gigajoule (GJ)","kilowatt hours (kWh)",277.8,"kWh / GJ"]
["Btu","joules (J) ",1055,"J / Btu"]
["million Btu (mmBtu)","gigajoules (GJ) ",1.0549999999999999,"GJ / mmBtu"]
["million Btu (mmBtu)","kilowatt hours (kWh)",293,"kWh / mmBtu"]
["therm","Btu",100000,"Btu / therm"]
["therm","gigajoules (GJ) ",0.1055,"GJ / therm"]
["therm","kilowatt hours (kWh)",29.3,"kWh / therm"]
[]
["Distance"]
["Convert From ","Convert To","Multiply By","Units"]
["mile","kilometers (km)",1.609,"km / mile"]
["nautical mile","miles",1.1499999999999999,"mile / nautical mile"]
["kilometer (km)","miles",{"$f":"ROUND(1/C54,3)","v":0.622},"mile / km"]
[]
["Other"]
["Kilo",1000]
["Mega",1000000]
["Giga",1000000000]
["Tera",1000000000000]
["Molecular Weigh of C",12]
["Molecular Weight of CO2 ",44]

{"sheet":"Heat Content","index":16,"n_rows":28,"n_cols":6,"rows_kept":28,"cut":false,"hidden":false,"merged":[[6,5,24,5],[25,5,27,5]]}
[]
[]
["Tool Sheet: Heat Content for Specific Fuels"]
[]
[]
["Fuel Type","Convert From ","Convert To","Multiply By","Units","Source"]
["Natural Gas","mmBtu","scf",{"$f":"ROUND(1/0.001026,6)","v":974.65886899999998},"scf / mmBtu","EPA, Emission Factors Hub April 2022  Based on Federal Register EPA; 40 CFR Part 98; e-CFR, (see link below). Table C-1, Table C-2 (as amended at 81 FR 89252, Dec. 9, 2016), Table AA-1 (78 FR 71965, Nov. 29, 2013).   https://www.ecfr.gov/cgi-bin/text-idx?SID=ae265d7d6f98ec86fcd8640b9793a3f6&mc=true&node=pt40.23.98&rgn=div5#ap40.23.98_19.1"]
["Natural Gas","Dth (Decatherm)","scf",{"$f":"D7","v":974.65886899999998},"scf / Dth"]
["Natural Gas","therm","scf",{"$f":"D8/10","v":97.465886900000001},"scf / therm"]
["Natural Gas","ccf","scf",100,"scf / ccf"]
["Natural Gas","Mcf","scf",1000,"scf / Mcf"]
["Natural Gas","cubic meter","scf",{"$f":"1/'Unit Conversions'!C25","v":35.310734463276837},"scf / cubic meter"]
["Natural Gas","kWh","scf",{"$f":"D7*('Unit Conversions'!C40/1000000)","v":3.325536061028},"scf / kWh"]
["Anthracite Coal","mmBtu","Short ton",{"$f":"1/25.09","v":3.9856516540454363E-2},"short ton / mmBtu"]
["Bituminous Coal","mmBtu","Short ton",{"$f":"1/24.93","v":4.011231448054553E-2},"short ton / mmBtu"]
["Sub-bituminous Coal","mmBtu","Short ton",{"$f":"1/17.25","v":5.7971014492753624E-2},"short ton / mmBtu"]
["Coal Coke","mmBtu","Short ton",{"$f":"1/24.8","v":4.0322580645161289E-2},"short ton / mmBtu"]
["Lignite Coal","mmBtu","Short ton",{"$f":"1/14.21","v":7.0372976776917659E-2},"short ton / mmBtu"]
["Mixed (Electric Power Sector)","mmBtu","Short ton",{"$f":"1/19.73","v":5.0684237202230108E-2},"short ton / mmBtu"]
["Wood and Wood Residuals","mmBtu","Short ton",{"$f":"1/17.48","v":5.7208237986270019E-2},"short ton / mmBtu"]
["Distillate Fuel Oil No. 2","mmBtu","gallon",{"$f":"1/0.138","v":7.2463768115942022},"gallon / mmBtu"]
["Residual Fuel Oil No. 6","mmBtu","gallon",{"$f":"1/0.15","v":6.666666666666667},"gallon / mmBtu"]
["Kerosene","mmBtu","gallon",{"$f":"1/0.135","v":7.4074074074074066},"gallon / mmBtu"]
["Liquefied Petroleum Gases (LPG)","mmBtu","gallon",{"$f":"1/0.092","v":10.869565217391305},"gallon / mmBtu"]
["Landfill Gas","mmBtu","scf",{"$f":"1/0.000485","v":2061.8556701030925},"scf / mmBtu"]
["Steam","Mlb (1,000 pounds)","mmBtu",{"$f":"D27*1000","v":1.194},"mmBtu / Mlb","EPA, ENERGY STAR, https://www.energystar.gov/buildings/tools-and-resources/portfolio-manager-technical-reference-thermal-conversion-factors"]
["Steam","lb","mmBtu",{"$f":"1.194/1000","v":1.194E-3},"mmBtu / lb"]
["Steam","short ton","mmBtu",{"$f":"D27/'Unit Conversions'!C15","v":2.3879999999999999},"mmBtu / short ton"]

{"sheet":"Emission Factors","index":17,"n_rows":409,"n_cols":256,"rows_kept":409,"cut":false,"hidden":false,"merged":[[346,2,346,7],[408,0,408,9],[343,0,343,4],[284,5,284,6],[284,0,284,2],[283,0,283,2],[255,2,255,4],[256,2,256,4],[257,2,257,4],[283,5,283,6],[259,2,259,4],[260,2,260,4],[276,0,276,7],[270,2,270,4],[265,2,265,4],[286,0,286,2],[287,0,287,2],[288,0,288,2],[289,0,289,2],[290,0,290,2],[309,0,309,2],[310,0,310,2],[311,0,311,2],[291,0,291,2],[192,0,194,0],[195,0,197,0],[198,0,201,0],[138,0,142,0],[143,0,146,0],[147,0,152,0],[239,2,239,4],[181,0,184,0],[185,0,187,0],[188,0,191,0],[162,0,165,0],[167,0,168,0],[268,2,268,4],[269,2,269,4],[271,2,271,4],[264,2,264,4],[247,2,247,4],[262,2,262,4],[263,2,263,4],[258,2,258,4],[253,2,253,4],[95,4,95,7],[96,4,96,7],[108,4,108,7],[251,2,251,4],[240,2,240,4],[241,2,241,4],[242,2,242,4],[266,2,266,4],[267,2,267,4],[131,1,132,1],[133,0,137,0],[117,4,117,7],[173,0,174,0],[175,0,178,0],[179,0,180,0],[153,0,158,0],[125,1,127,1],[128,1,130,1],[131,0,132,0],[169,0,172,0],[119,4,119,7],[125,0,127,0],[128,0,130,0],[121,0,122,0],[64,4,64,7],[91,4,91,7],[87,4,87,7],[88,4,88,7],[104,4,104,7],[105,4,105,7],[99,4,99,7],[100,4,100,7],[101,4,101,7],[102,4,102,7],[103,4,103,7],[90,4,90,7],[67,4,67,7],[69,4,69,7],[81,4,81,7],[68,4,68,7],[74,4,74,7],[75,4,75,7],[76,4,76,7],[77,4,77,7],[70,4,70,7],[72,4,72,7],[78,4,78,7],[79,4,79,7],[36,0,36,4],[51,4,51,7],[52,4,52,7],[53,4,53,7],[60,4,60,7],[61,4,61,7],[62,4,62,7],[63,4,63,7],[38,4,38,7],[39,4,39,7],[40,4,40,7],[50,4,50,7],[42,4,42,7],[43,4,43,7],[44,4,44,7],[45,4,45,7],[46,4,46,7],[47,4,47,7],[48,4,48,7],[41,4,41,7],[49,4,49,7],[58,4,58,7],[59,4,59,7],[55,4,55,7],[54,4,54,7],[94,4,94,7],[92,4,92,7],[252,2,252,4],[121,4,121,7],[122,4,122,7],[249,2,249,4],[250,2,250,4],[65,4,65,7],[66,4,66,7],[248,2,248,4],[82,4,82,7],[83,4,83,7],[84,4,84,7],[85,4,85,7],[93,4,93,7],[120,4,120,7],[71,4,71,7],[57,4,57,7],[56,4,56,7],[109,4,109,7],[110,4,110,7],[111,4,111,7],[112,4,112,7],[285,0,285,2],[254,2,254,4],[261,2,261,4],[275,2,275,4],[272,2,272,4],[273,2,273,4],[274,2,274,4],[80,4,80,7],[73,4,73,7],[86,4,86,7],[113,4,113,7],[246,2,246,4],[89,4,89,7],[97,4,97,7],[98,4,98,7],[115,4,115,7],[116,4,116,7],[114,4,114,7],[118,4,118,7],[243,2,243,4],[244,2,244,4],[245,2,245,4],[106,4,106,7],[107,4,107,7],[307,0,307,2],[308,0,308,2],[292,0,292,2],[293,0,293,2],[294,0,294,2],[295,0,295,2],[296,0,296,2],[297,0,297,2],[298,0,298,2],[299,0,299,2],[301,0,301,2],[302,0,302,2],[303,0,303,2],[304,0,304,2],[305,0,305,2],[306,0,306,2]]}
[]
[]
["Tool Sheet: Emission Factors"]
[]
["All emission factors sourced from EPA's Emission Factors Hub, April 2022. Unless otherwise noted.  Fuel emission factors presented represent the combustion-only emissions (e.g., tank-to-wheel)"]
["https://www.epa.gov/climateleadership/center-corporate-climate-leadership-ghg-emission-factors-hub"]
["Stationary Combustion Emission Factors (Used for Steam and Stationary Combustion)"]
[]
["Fuel Type","CO2 Factor \n(kg / mmBtu)","CH4 Factor \n(g / mmBtu)","N2O Factor \n(g / mmBtu)","CO2 Factor \n(kg / Unit)","CH4 Factor \n(g / unit)","N2O Factor \n(g / unit)","Unit"]
["Natural Gas",53.06,1,0.1,5.4440000000000002E-2,1.0300000000000001E-3,1E-4,"scf"]
["Distillate Fuel Oil No. 2",73.959999999999994,3,0.6,10.210000000000001,0.41,0.08,"gallons"]
["Residual Fuel Oil No. 6",75.099999999999994,3,0.6,11.27,0.45,0.09,"gallons"]
["Kerosene",75.2,3,0.6,10.15,0.41,0.08,"gallons"]
["Liquefied Petroleum Gases (LPG)",61.71,3,0.6,5.68,0.28000000000000003,0.06,"gallons"]
["Anthracite Coal",103.69,11,1.6,2602,276,40,"short tons"]
["Bituminous Coal",93.28,11,1.6,2325,274,40,"short tons"]
["Sub-bituminous Coal",97.17,11,1.6,1676,190,28,"short tons"]
["Lignite Coal",97.72,11,1.6,1389,156,23,"short tons"]
["Mixed (Electric Power Sector)",95.52,11,1.6]
["Coal Coke",113.67,11,1.6]
["Wood and Wood Residuals",0,7.2,3.6,1640,126,63,"short tons"]
["Landfill Gas",0,3.2,0.63,2.5253999999999999E-2,1.5520000000000002E-3,3.0600000000000001E-4,"scf"]
[]
["Mobile Combustion Emission Factors"]
["CO2 Emissions for Road Vehicles"]
["Fuel Type","CO2 Emission Factor \n(kg CO2 / unit)","Unit"]
["Motor Gasoline",8.7799999999999994,"gallon"]
["Diesel Fuel",10.210000000000001,"gallon"]
["Residual Fuel Oil",11.27,"gallon"]
["Aviation Gasoline",8.31,"gallon"]
["Kerosene-Type Jet Fuel",9.75,"gallon"]
["Liquefied Petroleum Gases (LPG)",5.68,"gallon"]
["Ethanol (100%)",5.75,"gallon"]
["Biodiesel (100%)",9.4499999999999993,"gallon"]
["Liquefied Natural Gas (LNG)",4.5,"gallon"]
["Compressed Natural Gas (CNG)",5.4440000000000002E-2,"scf"]
[]
["CH4 and N2O Emissions for Highway Vehicles"]
["Vehicle Type","Year","CH4 Factor \n(g / mile)","N2O Factor \n(g / mile)","Notes"]
["Gasoline Passenger Cars","1984-93",7.0400000000000004E-2,6.4699999999999994E-2]
[null,1994,6.1699999999999998E-2,6.0299999999999999E-2]
[null,1995,5.3100000000000001E-2,5.6000000000000001E-2]
[null,1996,4.3400000000000001E-2,5.0299999999999997E-2]
[null,1997,3.3700000000000001E-2,4.4600000000000001E-2]
[null,1998,2.4E-2,3.8899999999999997E-2]
[null,1999,2.1499999999999998E-2,3.5499999999999997E-2]
[null,2000,1.7500000000000002E-2,3.04E-2]
[null,2001,1.0500000000000001E-2,2.12E-2]
[null,2002,1.0200000000000001E-2,2.07E-2]
[null,2003,9.4999999999999998E-3,1.8100000000000002E-2]
[null,2004,7.7999999999999996E-3,8.5000000000000006E-3]
[null,2005,7.4999999999999997E-3,6.7000000000000002E-3]
[null,2006,7.6E-3,7.4999999999999997E-3]
[null,2007,7.1999999999999998E-3,5.1999999999999998E-3]
[null,2008,7.1999999999999998E-3,4.8999999999999998E-3]
[null,2009,7.1000000000000004E-3,4.5999999999999999E-3]
[null,2010,7.1000000000000004E-3,4.5999999999999999E-3]
[null,2011,7.1000000000000004E-3,4.5999999999999999E-3]
[null,2012,7.1000000000000004E-3,4.5999999999999999E-3]
[null,2013,7.1000000000000004E-3,4.5999999999999999E-3]
[null,2014,7.1000000000000004E-3,4.5999999999999999E-3]
[null,2015,6.7999999999999996E-3,4.1999999999999997E-3]
[null,2016,6.4999999999999997E-3,3.8E-3]
[null,2017,5.4000000000000003E-3,1.8E-3]
[null,2018,5.1999999999999998E-3,1.6000000000000001E-3]
[null,2019,5.1000000000000004E-3,1.5E-3]
["Gasoline Light-Duty Trucks","1987-93",8.1299999999999997E-2,0.10349999999999999]
["(Vans, Pickup Trucks, SUVs)",1994,6.4600000000000005E-2,9.8199999999999996E-2]
[null,1995,5.1700000000000003E-2,9.0800000000000006E-2]
[null,1996,4.5199999999999997E-2,8.7099999999999997E-2]
[null,1997,4.5199999999999997E-2,8.7099999999999997E-2]
[null,1998,4.1200000000000001E-2,7.8700000000000006E-2]
[null,1999,3.3300000000000003E-2,6.1800000000000001E-2]
[null,2000,3.4000000000000002E-2,6.3100000000000003E-2]
[null,2001,2.2100000000000002E-2,3.7900000000000003E-2]
[null,2002,2.4199999999999999E-2,4.24E-2]
[null,2003,2.2100000000000002E-2,3.73E-2]
[null,2004,1.15E-2,8.8000000000000005E-3]
[null,2005,1.0500000000000001E-2,6.4000000000000003E-3]
[null,2006,1.0800000000000001E-2,8.0000000000000002E-3]
[null,2007,1.03E-2,6.1000000000000004E-3]
[null,2008,9.4999999999999998E-3,3.5999999999999999E-3]
[null,2009,9.4999999999999998E-3,3.5999999999999999E-3]
[null,2010,9.4999999999999998E-3,3.5000000000000001E-3]
[null,2011,9.5999999999999992E-3,3.3999999999999998E-3]
[null,2012,9.5999999999999992E-3,3.3E-3]
[null,2013,9.4999999999999998E-3,3.5000000000000001E-3]
[null,2014,9.4999999999999998E-3,3.3E-3]
[null,2015,9.4000000000000004E-3,3.0999999999999999E-3]
[null,2016,9.1000000000000004E-3,2.8999999999999998E-3]
[null,2017,8.3999999999999995E-3,1.8E-3]
[null,2018,8.0999999999999996E-3,1.5E-3]
[null,2019,8.0000000000000002E-3,1.2999999999999999E-3,"Assume these CH4 and N2O factors for ethanol light-duty vehicles"]
["Gasoline Heavy-Duty Vehicles","1985-86",0.40899999999999997,5.1499999999999997E-2]
[null,1987,0.36749999999999999,8.4900000000000003E-2]
[null,"1988-1989",0.34920000000000001,9.3299999999999994E-2]
[null,"1990-1995",0.3246,0.1142]
[null,1996,0.1278,0.16800000000000001]
[null,1997,9.2399999999999996E-2,0.1726]
[null,1998,6.5500000000000003E-2,0.17499999999999999]
[null,1999,6.4799999999999996E-2,0.1724]
[null,2000,6.3E-2,0.16600000000000001]
[null,2001,5.7700000000000001E-2,0.14680000000000001]
[null,2002,6.3399999999999998E-2,0.1673]
[null,2003,6.0199999999999997E-2,0.15529999999999999]
[null,2004,2.98E-2,1.6400000000000001E-2]
[null,2005,2.9700000000000001E-2,8.3000000000000001E-3]
[null,2006,2.9899999999999999E-2,2.41E-2]
[null,2007,3.2199999999999999E-2,1.5E-3]
[null,2008,3.4000000000000002E-2,1.5E-3]
[null,2009,3.39E-2,1.5E-3]
[null,2010,3.2000000000000001E-2,1.5E-3]
[null,2011,3.04E-2,1.5E-3]
[null,2012,3.1300000000000001E-2,1.5E-3]
[null,2013,3.1300000000000001E-2,1.5E-3]
[null,2014,3.15E-2,1.5E-3]
[null,2015,3.32E-2,2.0999999999999999E-3]
[null,2016,3.2099999999999997E-2,6.1000000000000004E-3]
[null,2017,3.2899999999999999E-2,8.3999999999999995E-3]
[null,2018,3.2599999999999997E-2,8.2000000000000007E-3]
[null,2019,3.3000000000000002E-2,9.1000000000000004E-3,"Assumed these CH4 and N2O factors for ethanol heavy-duty vehicles and buses"]
["Gasoline Motorcycles","1960-1995",8.9899999999999994E-2,8.6999999999999994E-3]
[null,"1996-2019",6.7199999999999996E-2,6.8999999999999999E-3]
[]
["Vehicle Type","Fuel Type","Vehicle Year","CH4 Factor \n(g / mile)","N2O Factor \n(g / mile)"]
["Passenger Cars","Diesel","1960-1982",5.9999999999999995E-4,1.1999999999999999E-3]
[null,null,"1983-2006",5.0000000000000001E-4,1E-3]
[null,null,"2007-2019",3.0200000000000001E-2,1.9199999999999998E-2]
["Light-Duty Trucks","Diesel","1960-1982",1.1000000000000001E-3,1.6999999999999999E-3]
[null,null,"1983-2006",8.9999999999999998E-4,1.4E-3]
[null,null,"2007-2019",2.9000000000000001E-2,2.1399999999999999E-2]
["Medium- and Heavy-Duty Vehicles","Diesel","1960-2006",5.1000000000000004E-3,4.7999999999999996E-3]
[null,null,"2007-2019",9.4999999999999998E-3,4.3099999999999999E-2]
["Light-Duty Cars","Methanol",null,8.0000000000000002E-3,5.0000000000000001E-3]
[null,"Ethanol",null,8.0000000000000002E-3,5.0000000000000001E-3]
[null,"CNG",null,8.1000000000000003E-2,5.0000000000000001E-3]
[null,"LPG",null,8.0000000000000002E-3,5.0000000000000001E-3]
[null,"Biodiesel",null,0.03,1.9E-2]
["Light-Duty Trucks","Ethanol",null,1.2E-2,8.9999999999999993E-3]
[null,"CNG",null,0.121,8.9999999999999993E-3]
[null,"LPG",null,1.2E-2,1.2E-2]
[null,"LNG",null,0.121,8.9999999999999993E-3]
[null,"Biodiesel",null,2.9000000000000001E-2,2.1000000000000001E-2]
["Medium-Duty Trucks","CNG",null,4.2,1E-3]
[null,"LPG",null,1.4E-2,3.4000000000000002E-2]
[null,"LNG",null,4.2,1E-3]
[null,"Biodiesel",null,8.9999999999999993E-3,4.2999999999999997E-2]
["Heavy-Duty Trucks","Methanol",null,7.4999999999999997E-2,2.8000000000000001E-2]
[null,"Ethanol",null,7.4999999999999997E-2,2.8000000000000001E-2]
[null,"CNG",null,3.7,1E-3]
[null,"LPG",null,1.2999999999999999E-2,2.5999999999999999E-2]
[null,"LNG",null,3.7,1E-3]
[null,"Biodiesel",null,8.9999999999999993E-3,4.2999999999999997E-2]
["Buses","Methanol",null,1.6E-2,3.2000000000000001E-2]
[null,"Ethanol",null,1.6E-2,3.2000000000000001E-2]
[null,"CNG",null,10,1E-3]
[null,"LPG",null,3.4000000000000002E-2,1.7000000000000001E-2]
[null,"LNG",null,10,1E-3]
[null,"Biodiesel",null,8.9999999999999993E-3,4.2999999999999997E-2]
[]
["CH4 and N2O Emissions for Non-Road Vehicles"]
["Vehicle Type\n(superscript from EF Hub removed)","Fuel Type","CH4 Factor \n(g / gallon) ","N2O Factor \n(g / gallon) "]
["Ships and Boats","Residual Fuel Oil",1.1100000000000001,0.32]
[null,"Gasoline (2 stroke)",4.58,0.08]
[null,"Gasoline (4 stroke)",2.2400000000000002,0.01]
[null,"Diesel",6.41,0.17]
["Locomotives","Diesel",0.8,0.26]
["Aircraft","Jet Fuel",0,0.3]
[null,"Aviation Gasoline",7.06,0.11]
["Agricultural Equipment","Gasoline (2 stroke)",9.19,0.26]
[null,"Gasoline (4 stroke)",3.33,1.83]
[null,"Diesel",0.97,0.9]
[null,"LPG",0.42,0.6]
["Agricultural Offroad Trucks","Gasoline",3.33,1.84]
[null,"Diesel",0.99,0.92]
["Construction/Mining Equipment","Gasoline (2 stroke)",12.11,0.34]
[null,"Gasoline (4 stroke)",3.03,1.67]
[null,"Diesel",0.94,0.87]
[null,"LPG",0.44,0.63]
["Construction/Mining Offroad Trucks","Gasoline",3.03,1.67]
[null,"Diesel",0.99,0.92]
["Lawn and Garden Equipment","Gasoline (2 stroke)",10.210000000000001,0.28000000000000003]
[null,"Gasoline (4 stroke)",2.85,1.56]
[null,"Diesel",0.93,0.86]
[null,"LPG",0.45,0.64]
["Airport Equipment","Gasoline",3.88,2.13]
[null,"Diesel",0.99,0.91]
[null,"LPG",0.45,0.64]
["Industrial/Commercial Equipment","Gasoline (2 stroke)",9.2100000000000009,0.26]
[null,"Gasoline (4 stroke)",3.04,1.67]
[null,"Diesel",0.93,0.87]
[null,"LPG",0.45,0.64]
["Logging Equipment","Gasoline (2 stroke)",12.48,0.35]
[null,"Gasoline (4 stroke)",2.85,1.57]
[null,"Diesel",0.99,0.92]
["Railroad Equipment","Gasoline",2.87,1.59]
[null,"Diesel",0.83,0.78]
[null,"LPG",0.43,0.63]
["Recreational Equipment","Gasoline (2 stroke)",4.2699999999999996,0.2]
[null,"Gasoline (4 stroke)",4.3,2.2200000000000002]
[null,"Diesel",0.8,0.75]
[null,"LPG",0.41,0.57999999999999996]
[]
["Refrigerants and Global Warming Potentials (GWPs)"]
["Gas","GWP"]
["CO2 ",1]
["CH4",25]
["N2O",298]
["HFC-23",14800]
["HFC-32",675]
["HFC-41",92]
["HFC-125",3500]
["HFC-134",1100,null,null,null,null,null,null,null,null,null,null,null,null,null,null,null,null,null,null,null,null,null,null,null,null,null,null,null,null,null,null,null,null,null,null,null,null,null,null,null,null,null,null,null,null,null,null,null,null,null,null,null,null,null,null,null,null,null,null,null,null,null,null,null,null,null,null,null,null,null,null,null,null,null,null,null,null,null,null,null,null,null,null,null,null,null,null,null,null,null,null,null,null,null,null,null,null,null,null,null,null,null,null,null,null,null,null,null,null,null,null,null,null,null,null,null,null,null,null,null,null,null,null,null,null,null,null,null,null,null,null,null,null,null,null,null,null,null,null,null,null,null,null,null,null,null,null,null,null,null,null,null,null,null,null,null,null,null,null,null,null,null,null,null,null,null,null,null,null,null,null,null,null,null,null,null,null,null,null,null,null,null,null,null,null,null,null,null,null,null,null,null,null,null,null,null,null,null,null,null,null,null,null,null,null,null,null,null,null,null,null,null,null,null,null,null,null,null,null,null,null,null,null,null,null,null,null,null,null,null,null,null,null,null,null,null,null,null,null,null,null,null,null,null,null,null,null,null,null,null,null,null,null,null,{"$f":"SUM(B213:IU213)","v":1100}]
["HFC-134a",1430]
["HFC-143",353]
["HFC-143a",4470]
["HFC-152",53]
["HFC-152a",124]
["HFC-161",12]
["HFC-227ea",3220]
["HFC-236cb",1340]
["HFC-236ea",1370]
["HFC-236fa",9810]
["HFC-245ca",693]
["HFC-245fa",1030]
["HFC-365mfc",794]
["HFC-43-10mee",1640]
["SF6 ",22800]
["NF3",17200]
["CF4",7390]
["C2F6 ",12200]
["C3F8",8830]
["c-C4F8",10300]
["C4F10",8860]
["C5F12",9160]
["C6F14",9300]
["C10F18",">7,500"]
[]
[null,"Blended Refrigerants (ASHRAE #)"]
["ASHRAE #","Blend GWP HFC/PFC","Blend Make-up"]
["R-401A",16,"53% HCFC-22 , 34% HCFC-124 , 13% HFC-152a"]
["R-401B",14,"61% HCFC-22 , 28% HCFC-124 , 11% HFC-152a"]
["R-401C",19,"33% HCFC-22 , 52% HCFC-124 , 15% HFC-152a"]
["R-402A",2100,"38% HCFC-22 , 6% HFC-125 , 2% propane"]
["R-402B",1330,"6% HCFC-22 , 38% HFC-125 , 2% propane"]
["R-403B",3444,"56% HCFC-22 , 39% PFC-218 , 5% propane"]
["R-404A",3922,"44% HFC-125 , 4% HFC-134a , 52% HFC 143a"]
["R-406A",0,"55% HCFC-22 , 41% HCFC-142b , 4% isobutane"]
["R-407A",2107,"20% HFC-32 , 40% HFC-125 , 40% HFC-134a"]
["R-407B",2804,"10% HFC-32 , 70% HFC-125 , 20% HFC-134a"]
["R-407C",1774,"23% HFC-32 , 25% HFC-125 , 52% HFC-134a"]
["R-407D",1627,"15% HFC-32 , 15% HFC-125 , 70% HFC-134a"]
["R-407E",1552,"25% HFC-32 , 15% HFC-125 , 60% HFC-134a"]
["R-408A",2301,"47% HCFC-22 , 7% HFC-125 , 46% HFC 143a"]
["R-409A",0,"60% HCFC-22 , 25% HCFC-124 , 15% HCFC-142b"]
["R-410A",2088,"50% HFC-32 , 50% HFC-125"]
["R-410B",2229,"45% HFC-32 , 55% HFC-125 "]
["R-411A",14,"87.5% HCFC-22 , 11 HFC-152a , 1.5% propylene"]
["R-411B",4,"94% HCFC-22 , 3% HFC-152a , 3% propylene"]
["R-413A",2053,"88% HFC-134a , 9% PFC-218 , 3% isobutane"]
["R-414A",0,"51% HCFC-22 , 28.5% HCFC-124 , 16.5% HCFC-142b"]
["R-414B",0,"5% HCFC-22 , 39% HCFC-124 , 9.5% HCFC-142b"]
["R-417A",2346,"46.6% HFC-125 , 5% HFC-134a , 3.4% butane"]
["R-422A",3143,"85.1% HFC-125 , 11.5% HFC-134a , 3.4% isobutane"]
["R-422D",2729,"65.1% HFC-125 , 31.5% HFC-134a , 3.4% isobutane"]
["R-423A",2280,"47.5% HFC-227ea , 52.5% HFC-134a ,  "]
["R-424A",2440,"50.5% HFC-125, 47% HFC-134a, 2.5% butane/pentane"]
["R-426A",1508,"5.1% HFC-125, 93% HFC-134a, 1.9% butane/pentane"]
["R-428A",3607,"77.5% HFC-125 , 2% HFC-143a , 1.9% isobutane"]
["R-434A",3245,"63.2% HFC-125, 16% HFC-134a, 18% HFC-143a, 2.8% isobutane"]
["R-500",32,"73.8% CFC-12 , 26.2% HFC-152a , 48.8% HCFC-22"]
["R-502",0,"48.8% HCFC-22 , 51.2% CFC-115 "]
["R-504",325,"48.2% HFC-32 , 51.8% CFC-115"]
["R-507",3985,"5% HFC-125 , 5% HFC143a"]
["R-508A",13214,"39% HFC-23 , 61% PFC-116"]
["R-508B",13396,"46% HFC-23 , 54% PFC-116"]
[]
["Molecular Weights"]
["Element","Atomic Weight"]
["Carbon",12.010999999999999]
[]
["Electricity Emission Factors (System Average)"]
[" CO2, CH4 and N2O Total Output Emission Factors by Subregion eGRID2020, February 2022."]
["Subregion",null,null,"CO2 Factor","CH4 Factor","N2O Factor"]
[null,null,null,"(lb CO2/MWh)","(lb CH4/MWh)","(lb N2O/MWh)"]
["AKGD (ASCC Alaska Grid)",null,null,1097.5999999999999,0.1,null,1.4E-2]
["AKMS (ASCC Miscellaneous)",null,null,534.1,2.7E-2,null,5.0000000000000001E-3]
["AZNM (WECC Southwest)",null,null,846.6,5.3999999999999999E-2,null,7.0000000000000001E-3]
["CAMX (WECC California)",null,null,513.5,3.2000000000000001E-2,null,4.0000000000000001E-3]
["ERCT (ERCOT All)",null,null,818.6,5.1999999999999998E-2,null,7.0000000000000001E-3]
["FRCC (FRCC All)",null,null,835.1,4.9000000000000002E-2,null,6.0000000000000001E-3]
["HIMS (HICC Miscellaneous)",null,null,1143.2,0.11,null,1.7000000000000001E-2]
["HIOA (HICC Oahu)",null,null,1653,0.17799999999999999,null,2.7E-2]
["MROE (MRO East)",null,null,1526.4,0.13900000000000001,null,0.02]
["MROW (MRO West)",null,null,979.5,0.104,null,1.4999999999999999E-2]
["NEWE (NPCC New England)",null,null,528.20000000000005,7.3999999999999996E-2,null,0.01]
["NWPP (WECC Northwest)",null,null,600,5.6000000000000001E-2,null,8.0000000000000002E-3]
["NYCW (NPCC NYC/Westchester)",null,null,634.6,2.1999999999999999E-2,null,3.0000000000000001E-3]
["NYLI (NPCC Long Island)",null,null,1203.9000000000001,0.13800000000000001,null,1.7999999999999999E-2]
["NYUP (NPCC Upstate NY)",null,null,233.5,1.6E-2,null,2E-3]
["PRMS (Puerto Rico Miscellaneous)",null,null,1602.2,8.5000000000000006E-2,null,1.4E-2]
["RFCE (RFC East)",null,null,652.5,4.4999999999999998E-2,null,6.0000000000000001E-3]
["RFCM (RFC Michigan)",null,null,1153.0999999999999,0.10100000000000001,null,1.4E-2]
["RFCW (RFC West)",null,null,985,8.5999999999999993E-2,null,1.2E-2]
["RMPA (WECC Rockies)",null,null,1144.8,0.10100000000000001,null,1.4E-2]
["SPNO (SPP North)",null,null,954,0.1,null,1.4E-2]
["SPSO (SPP South)",null,null,931.8,0.06,null,8.9999999999999993E-3]
["SRMV (SERC Mississippi Valley)",null,null,740.4,3.2000000000000001E-2,null,4.0000000000000001E-3]
["SRMW (SERC Midwest)",null,null,1480.7,0.156,null,2.3E-2]
["SRSO (SERC South)",null,null,860.2,0.06,null,8.9999999999999993E-3]
["SRTV (SERC Tennessee Valley)",null,null,834.2,7.4999999999999997E-2,null,1.0999999999999999E-2]
["SRVC (SERC Virginia/Carolina)",null,null,623.1,0.05,null,7.0000000000000001E-3]
[]
["Business Travel and Employee Commuting Emission Factors"]
["Vehicle Type\n(superscript from EF Hub removed)","CO2 Factor \n(kg / unit)","CH4 Factor \n(g / unit)","N2O Factor \n(g / unit)","Units"]
["Passenger Car",0.33200000000000002,7.0000000000000001E-3,7.0000000000000001E-3,"vehicle-mile"]
["Light-Duty Truck",0.45400000000000001,1.2E-2,8.9999999999999993E-3,"vehicle-mile"]
["Motorcycle",0.183,7.0000000000000007E-2,7.0000000000000001E-3,"vehicle-mile"]
["Intercity Rail - Northeast Corridor",5.8000000000000003E-2,5.4999999999999997E-3,6.9999999999999999E-4,"passenger-mile"]
["Intercity Rail - Other Routes",0.15,1.17E-2,3.8E-3,"passenger-mile"]
["Intercity Rail - National Average",0.113,9.1999999999999998E-3,2.5999999999999999E-3,"passenger-mile"]
["Commuter Rail",0.13900000000000001,1.12E-2,2.8E-3,"passenger-mile"]
["Transit Rail (i.e. Subway, Tram)",9.9000000000000005E-2,8.3999999999999995E-3,1.1999999999999999E-3,"passenger-mile"]
["Bus",5.6000000000000001E-2,2.1000000000000001E-2,8.9999999999999998E-4,"passenger-mile"]
["Short Haul (< 300 miles)",0.20699999999999999,6.4000000000000003E-3,6.6E-3,"passenger-mile"]
["Medium Haul (>= 300 miles, < 2300 miles)",0.129,5.9999999999999995E-4,4.1000000000000003E-3,"passenger-mile"]
["Long Haul (>= 2300 miles)",0.16300000000000001,5.9999999999999995E-4,5.1999999999999998E-3,"passenger-mile"]
[]
["Product Transport Emission Factors"]
["Vehicle Type \n(superscript from EF Hub removed)","CO2 Factor \n(kg / unit)","CH4 Factor \n(g / unit)","N2O Factor \n(g / unit)","Units"]
["Medium- and Heavy-Duty Truck",1.45,1.2999999999999999E-2,3.4000000000000002E-2,"vehicle-mile"]
["Passenger Car",0.33200000000000002,7.0000000000000001E-3,7.0000000000000001E-3,"vehicle-mile"]
["Light-Duty Truck",0.45400000000000001,1.2E-2,8.9999999999999993E-3,"vehicle-mile"]
["Medium- and Heavy-Duty Truck",0.21099999999999999,2E-3,4.8999999999999998E-3,"ton-mile"]
["Rail",2.1999999999999999E-2,1.6999999999999999E-3,5.9999999999999995E-4,"ton-mile"]
["Waterborne Craft",4.1000000000000002E-2,1.83E-2,8.0000000000000004E-4,"ton-mile"]
["Aircraft",1.165,0,3.5900000000000001E-2,"ton-mile"]
[]
["Fire Suppresant Leak Rates"]
["Type of Equipment","Leak Rate"]
["Fixed",3.5000000000000003E-2]
["Portable",2.5000000000000001E-2]
["Source:"]
["EPA (2021) Inventory of U.S. Greenhouse Gas Emissions and Sinks: 1990-2019. Page A-275."]
[]
["Waste Emission Factors"]
[null,null,"Metric Tons CO2e / Short Ton Material"]
["WARM Material","Material for SGEC Lookup \n(red text indicates different name from WARM)","Recycled","Landfilled","Combusted","Composted","Anaerobically Digested (Dry Digestate with Curing)","Anaerobically Digested (Wet  Digestate with Curing)"]
["Aluminum Cans","Aluminum Cans",0.06,0.02,0.01,"NA","NA","NA"]
["Aluminum Ingot","Aluminum Ingot",0.04,0.02,0.01,"NA","NA","NA"]
["Steel Cans","Steel Cans",0.32,0.02,0.01,"NA","NA","NA"]
["Copper Wire","Copper Wire",0.18,0.02,0.01,"NA","NA","NA"]
["Glass","Glass",0.05,0.02,0.01,"NA","NA","NA"]
["HDPE","HDPE",0.21,0.02,2.8,"NA","NA","NA"]
["LDPE","LDPE","NA",0.02,2.8,"NA","NA","NA"]
["PET","PET",0.23,0.02,2.0499999999999998,"NA","NA","NA"]
["LLDPE","LLDPE","NA",0.02,2.8,"NA","NA","NA"]
["PP","PP","NA",0.02,2.8,"NA","NA","NA"]
["PS","PS","NA",0.02,3.02,"NA","NA","NA"]
["PVC","PVC","NA",0.02,1.26,"NA","NA","NA"]
["PLA","PLA","NA",0.02,0.01,0.17,"NA","NA"]
["Corrugated Containers","Corrugated Containers",0.11,0.9,0.05,"NA","NA","NA"]
["Magazines/Third-class mail","Magazines and Third class mail",0.02,0.42,0.05,"NA","NA","NA"]
["Newspaper","Newspaper",0.02,0.35,0.05,"NA","NA","NA"]
["Office Paper","Office Paper",0.02,1.25,0.05,"NA","NA","NA"]
["Phonebooks","Phonebooks",0.04,0.35,0.05,"NA","NA","NA"]
["Textbooks","Textbooks",0.04,1.25,0.05,"NA","NA","NA"]
["Dimensional Lumber","Dimensional Lumber",0.09,0.17,0.05,"NA","NA","NA"]
["Medium-density Fiberboard","Medium density Fiberboard",0.15,7.0000000000000007E-2,0.05,"NA","NA","NA"]
["Food Waste (non-meat)","Food Waste non meat","NA",0.57999999999999996,0.05,0.15,0.14000000000000001,0.11]
["Food Waste (meat only)","Food Waste meat only","NA",0.57999999999999996,0.05,"NA",0.14000000000000001,0.11]
["Beef","Beef","NA",0.57999999999999996,0.05,0.15,0.14000000000000001,0.11]
["Poultry","Poultry","NA",0.57999999999999996,0.05,0.15,0.14000000000000001,0.11]
["Grains","Grains","NA",0.57999999999999996,0.05,0.15,0.14000000000000001,0.11]
["Bread","Bread","NA",0.57999999999999996,0.05,0.15,0.14000000000000001,0.11]
["Fruits and Vegetables","Fruits and Vegetables","NA",0.57999999999999996,0.05,0.15,0.14000000000000001,0.11]
["Dairy Products","Dairy Products","NA",0.57999999999999996,0.05,0.15,0.14000000000000001,0.11]
["Yard Trimmings","Yard Trimmings","NA",0.33,0.05,0.19,0.11,"NA"]
["Grass","Grass","NA",0.26,0.05,0.19,0.09,"NA"]
["Leaves","Leaves","NA",0.26,0.05,0.19,0.13,"NA"]
["Branches","Branches","NA",0.53,0.05,0.19,0.16,"NA"]
["Mixed Paper (general)","Mixed Paper general",7.0000000000000007E-2,0.8,0.05,"NA","NA","NA"]
["Mixed Paper (primarily residential)","Mixed Paper primarily residential",7.0000000000000007E-2,0.77,0.05,"NA","NA","NA"]
["Mixed Paper (primarily from offices)","Mixed Paper primarily from offices",0.03,0.75,0.05,"NA","NA","NA"]
["Mixed Metals","Mixed Metals",0.23,0.02,0.01,"NA","NA","NA"]
["Mixed Plastics","Mixed Plastics",0.22,0.02,2.34,"NA","NA","NA"]
["Mixed Recyclables","Mixed Recyclables",0.09,0.68,0.11,"NA","NA","NA"]
["Food Waste","Food Waste","NA",0.57999999999999996,0.05,0.15,"NA","NA"]
["Mixed Organics","Mixed Organics","NA",0.48,0.05,0.17,"NA","NA"]
["Mixed MSW","Mixed MSW municipal solid waste","NA",0.52,0.43,"NA","NA","NA"]
["Carpet","Carpet","NA",0.02,1.68,"NA","NA","NA"]
["Desktop CPUs","Desktop CPUs","NA",0.02,0.4,"NA","NA","NA"]
["Portable Electronic Devices","Portable Electronic Devices","NA",0.02,0.89,"NA","NA","NA"]
["Flat-panel Displays","Flat panel Displays","NA",0.02,0.74,"NA","NA","NA"]
["CRT Displays","CRT Displays","NA",0.02,0.64,"NA","NA","NA"]
["Electronic Peripherals","Electronic Peripherals","NA",0.02,2.23,"NA","NA","NA"]
["Hard-copy Devices","Hard copy Devices","NA",0.02,1.92,"NA","NA","NA"]
["Mixed Electronics","Mixed Electronics","NA",0.02,0.87,"NA","NA","NA"]
["Clay Bricks","Clay Bricks","NA",0.02,"NA","NA","NA","NA"]
["Concrete","Concrete",0.01,0.02,"NA","NA","NA","NA"]
["Fly Ash","Fly Ash",0.01,0.02,"NA","NA","NA","NA"]
["Tires","Tires",0.1,0.02,2.21,"NA","NA","NA"]
["Asphalt Concrete","Asphalt Concrete",0,0.02,"NA","NA","NA","NA"]
["Asphalt Shingles","Asphalt Shingles",0.03,0.02,0.7,"NA","NA","NA"]
["Drywall","Drywall","NA",0.02,"NA","NA","NA","NA"]
["Fiberglass Insulation","Fiberglass Insulation",0.05,0.02,"NA","NA","NA","NA"]
["Vinyl Flooring","Vinyl Flooring","NA",0.02,0.28999999999999998,"NA","NA","NA"]
["Wood Flooring","Wood Flooring","NA",0.18,0.08,"NA","NA","NA"]
["Notes: These factors do not include any avoided emissions impact from any of the disposal methods. All the factors presented here include transportation emissions, which are optional in the Scope 3 Calculation Guidance, with an assumed average distance traveled to the processing facility. AR4 GWPs are used to convert all waste emission factors into CO2e.   \n\nRecycling emissions include transport to recycling facility and sorting of recycled materials at material recovery facility.  \nLandfilling emissions include transport to landfill, equipment use at landfill and fugitive landfill CH4 emissions.  Landfill CH4 is based on typical landfill gas collection practices and average landfill moisture conditions.\nCombustion emissions include transport to combustion facility and combustion-related non-biogenic CO2 and N2O  \nComposting emissions include transport to composting facility, equipment use at composting facility and CH4 and N2O emissions during composting. "]

{"sheet":"DropDown","index":18,"n_rows":56,"n_cols":84,"rows_kept":56,"cut":false,"hidden":true,"merged":[]}
["Tab Navigation","Help Tab Navigation","Fuel Combusted","OnRoad","NonRoad","TYPE OF REFRIGERATION EQUIPMENT","CHOICES FOR REFRIGERANT","Fire Suppression Equipment","Fire Suppression Gas","GHGs","Electricity eGRID Subregions","Steam Fuel Type","Travel by Vehicle Miles","Travel by Passenger Miles","Travel by Air","Product Transport Vehicle Type","Product Transport Type","Fuel","Fuel Type","Gas","Liquid","Solid","Mass",null,"Aluminum Cans","Aluminum Ingot","Steel Cans","Copper Wire","Glass","HDPE","LDPE","PET","LLDPE","PP","PS","PVC","PLA","Corrugated Containers","Magazines and Third class mail","Newspaper","Office Paper","Phonebooks","Textbooks","Dimensional Lumber","Medium density Fiberboard","Food Waste non meat","Food Waste meat only","Beef","Poultry","Grains","Bread","Fruits and Vegetables","Dairy Products","Yard Trimmings","Grass","Leaves","Branches","Mixed Paper general","Mixed Paper primarily residential","Mixed Paper primarily from offices","Mixed Metals","Mixed Plastics","Mixed Recyclables","Food Waste","Mixed Organics","Mixed MSW municipal solid waste","Carpet","Desktop CPUs","Portable Electronic Devices","Flat panel Displays","CRT Displays","Electronic Peripherals","Hard copy Devices","Mixed Electronics","Clay Bricks","Concrete","Fly Ash","Tires","Asphalt Concrete","Asphalt Shingles","Drywall","Fiberglass Insulation","Vinyl Flooring","Wood Flooring"]
["Stationary Combustion","Help - Data Management","Natural Gas","Passenger Cars - Gasoline","Ships and Boats - Residual Fuel Oil","Domestic Refrigeration","CO2 ","Fixed","CO2 ","CO2 ",{"$f":"'Emission Factors'!A286","v":"AKGD (ASCC Alaska Grid)"},"Natural Gas","Passenger Car",{"$f":"'Emission Factors'!A319","v":"Intercity Rail - Northeast Corridor"},{"$f":"'Emission Factors'!A325","v":"Short Haul (< 300 miles)"},"Medium- and Heavy-duty Truck","Medium- and Heavy-Duty Truck","Natural Gas","Gas","SCF","Gallons","Short Ton",{"$f":"'Unit Conversions'!A12","v":"gram (g)"},null,"Recycled","Recycled","Recycled","Recycled","Recycled","Recycled","Landfilled","Recycled","Landfilled","Landfilled","Landfilled","Landfilled","Landfilled","Recycled","Recycled","Recycled","Recycled","Recycled","Recycled","Recycled","Recycled","Landfilled","Landfilled","Landfilled","Landfilled","Landfilled","Landfilled","Landfilled","Landfilled","Landfilled","Landfilled","Landfilled","Landfilled","Recycled","Recycled","Recycled","Recycled","Recycled","Recycled","Landfilled","Landfilled","Landfilled","Landfilled","Landfilled","Landfilled","Landfilled","Landfilled","Landfilled","Landfilled","Landfilled","Landfilled","Recycled","Recycled","Recycled","Recycled","Recycled","Landfilled","Recycled","Landfilled","Landfilled"]
["Mobile Sources","Help - Stationary Combustion","Distillate Fuel Oil No. 2","Light-Duty Trucks - Gasoline","Ships and Boats - Gasoline (2 stroke)","Stand-Alone Commercial","HFC-23","Portable","HFC-23","CH4",{"$f":"'Emission Factors'!A287","v":"AKMS (ASCC Miscellaneous)"},"Distillate Fuel Oil No. 2","Light-Duty Truck",{"$f":"'Emission Factors'!A320","v":"Intercity Rail - Other Routes"},{"$f":"'Emission Factors'!A326","v":"Medium Haul (>= 300 miles, < 2300 miles)"},"Light-Duty Truck","Rail","Distillate Fuel Oil No. 2","Liquid","Therm","MMBtu","MMBtu",{"$f":"'Unit Conversions'!A13","v":"kilogram (kg)"},null,"Landfilled","Landfilled","Landfilled","Landfilled","Landfilled","Landfilled","Combusted","Landfilled","Combusted","Combusted","Combusted","Combusted","Combusted","Landfilled","Landfilled","Landfilled","Landfilled","Landfilled","Landfilled","Landfilled","Landfilled","Combusted","Combusted","Combusted","Combusted","Combusted","Combusted","Combusted","Combusted","Combusted","Combusted","Combusted","Combusted","Landfilled","Landfilled","Landfilled","Landfilled","Landfilled","Landfilled","Combusted","Combusted","Combusted","Combusted","Combusted","Combusted","Combusted","Combusted","Combusted","Combusted","Combusted",null,"Landfilled","Landfilled","Landfilled","Landfilled","Landfilled",null,"Landfilled","Combusted","Combusted"]
["Refrigeration and AC","Help - Mobile Sources","Residual Fuel Oil No. 6","Heavy-Duty Vehicles - Gasoline","Ships and Boats - Gasoline (4 stroke)","Medium/Large Commercial","HFC-32",null,"HFC-125","N2O",{"$f":"'Emission Factors'!A288","v":"AZNM (WECC Southwest)"},"Residual Fuel Oil No. 6","Motorcycle",{"$f":"'Emission Factors'!A321","v":"Intercity Rail - National Average"},{"$f":"'Emission Factors'!A327","v":"Long Haul (>= 2300 miles)"},"Passenger Car","Aircraft","Residual Fuel Oil No. 6","Liquid","MMBtu",null,null,{"$f":"'Unit Conversions'!A14","v":"metric ton"},null,"Combusted","Combusted","Combusted","Combusted","Combusted","Combusted",null,"Combusted",null,null,null,null,"Composted","Combusted","Combusted","Combusted","Combusted","Combusted","Combusted","Combusted","Combusted","Composted","Anaerobically Digested (Dry Digestate with Curing)","Composted","Composted","Composted","Composted","Composted","Composted","Composted","Composted","Composted","Composted","Combusted","Combusted","Combusted","Combusted","Combusted","Combusted","Composted","Composted",null,null,null,null,null,null,null,null,null,null,null,null,"Combusted",null,"Combusted"]
["Fire Suppression","Help - Refrigeration and AC","Kerosene","Motorcycles - Gasoline","Ships and Boats - Diesel","Transport Refrigeration","HFC-125",null,"HFC-134a","SF6 ",{"$f":"'Emission Factors'!A289","v":"CAMX (WECC California)"},"Kerosene",null,{"$f":"'Emission Factors'!A322","v":"Commuter Rail"},null,null,"Waterborne Craft","Kerosene","Liquid",null,null,null,{"$f":"'Unit Conversions'!A15","v":"pounds (lb)"},null,null,null,null,null,null,null,null,null,null,null,null,null,null,null,null,null,null,null,null,null,null,"Anaerobically Digested (Dry Digestate with Curing)","Anaerobically Digested (Wet  Digestate with Curing)","Anaerobically Digested (Dry Digestate with Curing)","Anaerobically Digested (Dry Digestate with Curing)","Anaerobically Digested (Dry Digestate with Curing)","Anaerobically Digested (Dry Digestate with Curing)","Anaerobically Digested (Dry Digestate with Curing)","Anaerobically Digested (Dry Digestate with Curing)","Anaerobically Digested (Dry Digestate with Curing)","Anaerobically Digested (Dry Digestate with Curing)","Anaerobically Digested (Dry Digestate with Curing)","Anaerobically Digested (Dry Digestate with Curing)"]
["Purchased Gases","Help - Fire Suppression","Liquefied Petroleum Gases (LPG)","Passenger Cars - Diesel","Locomotives - Diesel","Industrial Refrigeration","HFC-134a",null,"HFC-227ea","NF3",{"$f":"'Emission Factors'!A290","v":"ERCT (ERCOT All)"},"Liquefied Petroleum Gases (LPG)",null,{"$f":"'Emission Factors'!A323","v":"Transit Rail (i.e. Subway, Tram)"},null,null,null,"Liquefied Petroleum Gases (LPG)","Liquid",null,null,null,{"$f":"'Unit Conversions'!A16","v":"short ton"},null,null,null,null,null,null,null,null,null,null,null,null,null,null,null,null,null,null,null,null,null,null,"Anaerobically Digested (Wet  Digestate with Curing)",null,"Anaerobically Digested (Wet  Digestate with Curing)","Anaerobically Digested (Wet  Digestate with Curing)","Anaerobically Digested (Wet  Digestate with Curing)","Anaerobically Digested (Wet  Digestate with Curing)","Anaerobically Digested (Wet  Digestate with Curing)","Anaerobically Digested (Wet  Digestate with Curing)"]
["Electricity","Help - Purchased Gases","Anthracite Coal","Light-Duty Trucks - Diesel","Aircraft - Jet Fuel","Chillers","HFC-143a",null,"HFC-236fa","HFC-23",{"$f":"'Emission Factors'!A291","v":"FRCC (FRCC All)"},"Anthracite Coal",null,{"$f":"'Emission Factors'!A324","v":"Bus"},null,null,null,"Anthracite Coal","Solid"]
["Steam","Help - Electricity","Bituminous Coal","Medium- and Heavy-Duty Vehicles - Diesel","Aircraft - Aviation Gasoline","Residential/Commercial A/C","HFC-152a",null,"CF4","HFC-32",{"$f":"'Emission Factors'!A292","v":"HIMS (HICC Miscellaneous)"},"Bituminous Coal",null,null,null,null,null,"Bituminous Coal","Solid"]
["Business Travel","Help - Steam","Sub-bituminous Coal","Light-Duty Cars - Methanol","Agricultural Equipment - Gasoline (2 stroke)","Car A/C Units","HFC-236fa",null,"C4F10","HFC-125",{"$f":"'Emission Factors'!A293","v":"HIOA (HICC Oahu)"},"Sub-bituminous Coal",null,null,null,null,null,"Sub-bituminous Coal","Solid"]
["Commuting","Help - Business Travel","Lignite Coal","Light-Duty Cars - Ethanol","Agricultural Equipment - Gasoline (4 stroke)","Light-Duty Truck A/C Units","CF4",null,null,"HFC-134a",{"$f":"'Emission Factors'!A294","v":"MROE (MRO East)"},"Lignite Coal",null,null,null,null,null,"Lignite Coal","Solid"]
["Upstream Trans and Dist","Help - Commuting","Wood and Wood Residuals","Light-Duty Cars - CNG","Agricultural Equipment - Diesel",null,"C2F6 ",null,null,"HFC-143a",{"$f":"'Emission Factors'!A295","v":"MROW (MRO West)"},"Mixed (Electric Power Sector)",null,null,null,null,null,"Wood and Wood Residuals","Solid"]
["Waste","Help - Upstream Trans and Dist","Landfill Gas","Light-Duty Cars - LPG","Agricultural Equipment - LPG",null,"SF6 ",null,null,"HFC-152a",{"$f":"'Emission Factors'!A296","v":"NEWE (NPCC New England)"},"Coal Coke",null,null,null,null,null,"Landfill Gas","Gas"]
["Offsets","Help - Market-Based Method",null,"Light-Duty Cars - Biodiesel","Agricultural Offroad Trucks - Gasoline",null,"R-401A",null,null,"HFC-236fa",{"$f":"'Emission Factors'!A297","v":"NWPP (WECC Northwest)"},"Wood and Wood Residuals"]
[null,"Help - Offsets",null,"Light-Duty Trucks - Ethanol","Agricultural Offroad Trucks - Diesel",null,"R-401B",null,null,"CF4",{"$f":"'Emission Factors'!A298","v":"NYCW (NPCC NYC/Westchester)"},"Landfill Gas"]
[null,null,null,"Light-Duty Trucks - CNG","Construction/Mining Equipment - Gasoline (2 stroke)",null,"R-401C",null,null,"C2F6 ",{"$f":"'Emission Factors'!A299","v":"NYLI (NPCC Long Island)"}]
[null,null,null,"Light-Duty Trucks - LPG","Construction/Mining Equipment - Gasoline (4 stroke)",null,"R-402A",null,null,"C3F8",{"$f":"'Emission Factors'!A300","v":"NYUP (NPCC Upstate NY)"}]
[null,null,null,"Light-Duty Trucks - LNG","Construction/Mining Equipment - Diesel",null,"R-402B",null,null,"C4F10","PRMS (Puerto Rico Miscellaneous)"]
[null,null,null,"Light-Duty Trucks - Biodiesel","Construction/Mining Equipment - LPG",null,"R-403B",null,null,"c-C4F8",{"$f":"'Emission Factors'!A302","v":"RFCE (RFC East)"}]
[null,null,null,"Medium-Duty Trucks - CNG","Construction/Mining Offroad Trucks - Gasoline",null,"R-404A",null,null,"C5F12",{"$f":"'Emission Factors'!A303","v":"RFCM (RFC Michigan)"}]
[null,null,null,"Medium-Duty Trucks - LPG","Construction/Mining Offroad Trucks - Diesel",null,"R-406A",null,null,"C6F14",{"$f":"'Emission Factors'!A304","v":"RFCW (RFC West)"}]
[null,null,null,"Medium-Duty Trucks - LNG","Lawn and Garden Equipment - Gasoline (2 stroke)",null,"R-407A",null,null,"R-401A",{"$f":"'Emission Factors'!A305","v":"RMPA (WECC Rockies)"}]
[null,null,null,"Medium-Duty Trucks - Biodiesel","Lawn and Garden Equipment - Gasoline (4 stroke)",null,"R-407B",null,null,"R-401B",{"$f":"'Emission Factors'!A306","v":"SPNO (SPP North)"}]
[null,null,null,"Heavy-Duty Trucks - Methanol","Lawn and Garden Equipment - Diesel",null,"R-407C",null,null,"R-401C",{"$f":"'Emission Factors'!A307","v":"SPSO (SPP South)"}]
[null,null,null,"Heavy-Duty Trucks - Ethanol","Lawn and Garden Equipment - LPG",null,"R-407D",null,null,"R-402A",{"$f":"'Emission Factors'!A308","v":"SRMV (SERC Mississippi Valley)"}]
[null,null,null,"Heavy-Duty Trucks - CNG","Airport Equipment - Gasoline",null,"R-407E",null,null,"R-402B",{"$f":"'Emission Factors'!A309","v":"SRMW (SERC Midwest)"}]
[null,null,null,"Heavy-Duty Trucks - LPG","Airport Equipment - Diesel",null,"R-408A",null,null,"R-403B",{"$f":"'Emission Factors'!A310","v":"SRSO (SERC South)"}]
[null,null,null,"Heavy-Duty Trucks - LNG","Airport Equipment - LPG",null,"R-409A",null,null,"R-404A",{"$f":"'Emission Factors'!A311","v":"SRTV (SERC Tennessee Valley)"}]
[null,null,null,"Heavy-Duty Trucks - Biodiesel","Industrial/Commercial Equipment - Gasoline (2 stroke)",null,"R-410A",null,null,"R-406A",{"$f":"'Emission Factors'!A312","v":"SRVC (SERC Virginia/Carolina)"}]
[null,null,null,"Buses - Methanol","Industrial/Commercial Equipment - Gasoline (4 stroke)",null,"R-410B",null,null,"R-407A"]
[null,null,null,"Buses - Ethanol","Industrial/Commercial Equipment - Diesel",null,"R-411A",null,null,"R-407B"]
[null,null,null,"Buses - CNG","Industrial/Commercial Equipment - LPG",null,"R-411B",null,null,"R-407C"]
[null,null,null,"Buses - LPG","Logging Equipment - Gasoline (2 stroke)",null,"R-413A",null,null,"R-407D"]
[null,null,null,"Buses - LNG","Logging Equipment - Gasoline (4 stroke)",null,"R-414A",null,null,"R-407E"]
[null,null,null,"Buses - Biodiesel","Logging Equipment - Diesel",null,"R-414B",null,null,"R-408A"]
[null,null,null,null,"Railroad Equipment - Gasoline",null,"R-417A",null,null,"R-409A"]
[null,null,null,null,"Railroad Equipment - Diesel",null,"R-422A",null,null,"R-410A"]
[null,null,null,null,"Railroad Equipment - LPG",null,"R-422D",null,null,"R-410B"]
[null,null,null,null,"Recreational Equipment - Gasoline (2 stroke)",null,"R-423A",null,null,"R-411A"]
[null,null,null,null,"Recreational Equipment - Gasoline (4 stroke)",null,"R-424A",null,null,"R-411B"]
[null,null,null,null,"Recreational Equipment - Diesel",null,"R-426A",null,null,"R-413A"]
[null,null,null,null,"Recreational Equipment - LPG",null,"R-428A",null,null,"R-414A"]
[null,null,null,null,null,null,"R-434A",null,null,"R-414B"]
[null,null,null,null,null,null,"R-500",null,null,"R-417A"]
[null,null,null,null,null,null,"R-502",null,null,"R-422A"]
[null,null,null,null,null,null,"R-504",null,null,"R-422D"]
[null,null,null,null,null,null,"R-507",null,null,"R-423A"]
[null,null,null,null,null,null,"R-508A",null,null,"R-424A"]
[null,null,null,null,null,null,"R-508B",null,null,"R-426A"]
[null,null,null,null,null,null,null,null,null,"R-428A"]
[null,null,null,null,null,null,null,null,null,"R-434A"]
[null,null,null,null,null,null,null,null,null,"R-500"]
[null,null,null,null,null,null,null,null,null,"R-502"]
[null,null,null,null,null,null,null,null,null,"R-504"]
[null,null,null,null,null,null,null,null,null,"R-507"]
[null,null,null,null,null,null,null,null,null,"R-508A"]
[null,null,null,null,null,null,null,null,null,"R-508B"]

{"sheet":"Help - Data Management","index":19,"n_rows":131,"n_cols":6,"rows_kept":131,"cut":false,"hidden":false,"merged":[[17,4,17,5],[18,4,18,5],[28,4,28,5],[97,1,97,4],[108,1,108,5],[27,4,27,5],[35,1,35,3],[36,1,36,3],[37,1,37,3],[30,1,30,3],[31,1,31,3],[32,1,32,3],[18,1,18,3],[28,1,28,2],[40,0,40,5],[109,1,109,5],[102,1,102,5],[130,2,130,4],[129,2,129,4],[128,2,128,4],[127,2,127,4],[126,2,126,4],[125,2,125,4],[124,2,124,4],[121,2,121,4],[120,2,120,4],[117,2,117,4],[1,2,1,3],[11,4,11,5],[12,4,12,5],[11,1,11,2],[12,1,12,2],[8,0,8,5],[5,0,5,4],[14,1,14,2],[15,1,15,2],[26,1,26,2],[122,2,122,4],[123,2,123,4],[34,1,34,3],[104,1,104,5],[44,1,44,5],[25,1,25,3],[118,2,118,4],[119,2,119,4],[26,4,26,5],[16,4,16,5],[116,2,116,4],[45,1,45,5],[43,1,43,5],[13,1,13,2],[103,1,103,5],[110,1,110,5],[115,2,115,4],[14,4,14,5],[15,4,15,5],[21,4,21,5],[16,1,16,2],[27,1,27,2],[19,1,19,3],[23,1,23,3],[22,1,22,3],[20,1,20,3],[24,4,24,5],[20,4,20,5],[23,4,23,5]]}
[]
[null,null,"Stationary Combustion"]
[]
["Data Management - HELP SHEET"]
[]
["On this sheet you will find general suggestions regarding GHG inventory data management."]
[]
["DATA MANAGEMENT"]
["This Calculator provides the calculations to quantify your organization's GHG emissions based on annual totals for activity data, which are entered in the ORANGE data entry cells in this workbook.  It is good practice to use a spreadsheet or database to track more detailed activity data, such as monthly energy consumption, and aggregate that detailed data into annual totals for entry into the Calculator.  This approach provides an \"audit trail\" that retraces the steps completed to arrive at the annual usage numbers you enter into the Calculator.   ENERGY STAR's Portfolio Manager is one database option if your business is already using this tool.  (More information on Portfolio Manager is available in the Guide to GHG Management). The bullets below suggest the type of data you may want to store in the data management spreadsheet or database.   "]
[]
[null,"A List of Facilities and Attributes",null,null,"Purchased Gas Data"]
[null,"* Facility Name or Site ID",null,null,"* Types of Gas Purchased"]
[null,"* Address (including zip code)",null,null,"* Amount of Gas Purchased"]
[null,"* Floor area (sq ft)",null,null,"Steam Data"]
[null,"* Number of Employees",null,null,"* Monthly Consumption Data by Meter or Facility"]
[null,"* Open and Close Date of Facility",null,null,"* Monthly Cost Data by Meter or Facility"]
[null,"* Type of Facility",null,null,"* Steam Provider Emission Factors"]
[null,"Electricity Data",null,null,"* Fuel Type Used to Generate Steam"]
[null,"* Monthly Consumption Data by Meter or Facility",null,null,"* Boiler Efficiency"]
[null,"* Monthly Cost Data by Meter or Facility",null,null,"Business Travel"]
[null,"* Record of renewable energy purchased through \n   contractual instruments",null,null,"* Mode of Transportation"]
[null,"Stationary Fuel Data (for each Fuel Type)",null,null,"* Mileage by Trip (i.e., for each leg of transport)"]
[null,"* Monthly Consumption Data by Meter or Facility",null,null,"Commuting"]
[null,"* Monthly Cost Data by Meter or Facility",null,null,"* Mode of Transportation per Employee"]
[null,"Mobile Fuel Data",null,null,"* Mileage by Trip (i.e., for each leg of transport)"]
[null,"* List of Vehicles (Year, Make, Model, Fuel Type)",null,null,"Product Transport"]
[null,"* Fuel Consumption by Vehicle",null,null,"* Mode of Transportation for each Shipment"]
[null,"* Fuel Cost by Vehicle",null,null,"* Weight of Product Transported for each Shipment"]
[null,"* Miles Traveled by Vehicle",null,null,"* Distance Product Transported for each Shipment"]
[null,"Refrigeration and AC Data"]
[null,"* Inventory of Equipment by Facility"]
[null,"* Refrigerant Capacity of Equipment"]
[null,"* Refrigerant Purchase, Inventory, and Disposal Data"]
[null,"Fire Suppression Data"]
[null,"* Inventory of Equipment by Facility"]
[null,"* Fire Suppressant Capacity of Equipment"]
[null,"* Fire Suppressant Purchase, Inventory, and Disposal Data"]
[null,"  Disposal Data"]
[]
["QUALITY ASSURANCE/QUALITY CONTROL (QA/QC) - Suggested Checks"]
["The accuracy of a GHG inventory depends on the accuracy of the activity data.  Here are a few quick checks to make sure your data are realistic.  If any of these checks lead to questions, it is best to review the data month by month to look for data points that are significantly higher or lower than other points. Checking data sources such as utility bills can confirm data entry accuracy."]
[]
[null,"Benchmarks"]
[null,"Compare your energy consumption data against typical benchmarks. "]
[null,"1. Compare your energy consumption data per square foot of floor area against the averages by building type and region in the tables below.  See below for building type definitions. "]
[null,"2. Does any facility look significantly higher or lower than these averages?  If so, can the difference be explained? "]
[]
[null,"Electricity Intensity","kWh electricity / sq ft / year"]
[null,"Principal Building Activity","Northeast","Midwest","South","West"]
[null,"Education",8.6999999999999993,10.3,12.6,10]
[null,"Food sales ",45,50.5,56.2,42.7]
[null,"Food service ",39.700000000000003,43.1,49.7,41.1]
[null,"Health care ",22,25.1,29.5,24.6]
[null,"Inpatient ",26.3,28.9,34.299999999999997,32.5]
[null,"Outpatient ",17.600000000000001,20.100000000000001,21.7,14.3]
[null,"Lodging ",14,15.4,16.600000000000001,14.1]
[null,"Mercantile ",16.3,17.5,19.7,17.600000000000001]
[null,"Retail (other than mall) ",12.8,14.1,16.3,15.8]
[null,"Enclosed and strip malls ",19.899999999999999,21.4,22.5,19.100000000000001]
[null,"Office ",17.100000000000001,15.3,16,14.9]
[null,"Public assembly ",14.1,13.2,16.3,13.2]
[null,"Public order and safety ",15.1,10.3,18.3,"insufficient data"]
[null,"Religious worship ",4.5,4.5,6.1,4.7]
[null,"Service ",6.6,7.3,9.8000000000000007,8.8000000000000007]
[null,"Warehouse and storage ",4.9000000000000004,6.6,8.4,4.8]
[null,"Other ",43.2,20.2,32,20.3]
[null,"Vacant ","insufficient data",5.3,4,5.6]
[]
[null,"Natural Gas Intensity","standard cubic feet (scf) natural gas / sq ft / year"]
[null,"Principal Building Activity","Northeast","Midwest","South","West"]
[null,"Education",46.6,38.799999999999997,16.5,27.9]
[null,"Food sales ","insufficient data","insufficient data",59.1,"insufficient data"]
[null,"Food service ",130.69999999999999,162.4,178,139.69999999999999]
[null,"Health care ",68.8,85.7,77,86]
[null,"Inpatient ",107.4,111.7,88.3,109]
[null,"Outpatient ",33.1,48,24.8,45.2]
[null,"Lodging ",43.9,49.3,33.1,56.3]
[null,"Mercantile ",40.4,43,26.1,31.4]
[null,"Retail (other than mall) ",25.1,33.9,15.1,15.2]
[null,"Enclosed and strip malls ",50.3,50.9,31.2,44.4]
[null,"Office ",34.299999999999997,33.200000000000003,17.2,22.2]
[null,"Public assembly ",42.6,40.5,26,26.7]
[null,"Public order and safety ","insufficient data","insufficient data",23.4,"insufficient data"]
[null,"Religious worship ",25.8,38.9,22.2,29.1]
[null,"Service ",64.8,38.1,44.6,35.299999999999997]
[null,"Warehouse and storage ",27.6,20.3,11.3,25.5]
[null,"Other ","insufficient data","insufficient data",41.6,74]
[null,"Vacant ","insufficient data","insufficient data","insufficient data","insufficient data"]
[]
[null,"Fuel Oil Intensity","gallons fuel oil / sq ft / year"]
[null,"Principal Building Activity","Northeast","Midwest","South","West"]
[null,"Education",0.15,0.02,0.09,"insufficient data"]
[null,"Health care ",0.15,0.02,0.02,0.02]
[null,"Office ",0.06,0.01,0.01,0.01]
[null,"All others",0.11,0.04,0.02,0.02]
[null,"See table at bottom of sheet for building type descriptions."]
[null,"Source:"]
[null,"1.  Source- EIA's 2012 Commercial Buildings Energy Consumption Survey, Table C15 (Electricity), Table C25 ( Natural Gas), Table C35 (Fuel Oil). \n     http://www.eia.gov/consumption/commercial/data/2012/index.cfm?view=consumption#c23-c32"]
[null,"2.  Building Type Definitions Source- http://www.eia.gov/consumption/commercial/building-type-definitions.cfm"]
[]
[null,"Calculated Unit Costs"]
[null,"Calculated unit costs that are out of expected ranges can indicate data entry errors.  "]
[null,"1. Use the cost and consumption data entered into your data management file to calculate the cost per unit of consumption for each month and each emissions source."]
[null,"2. Is the unit cost within expected ranges?  Is it fairly constant month to month?  Keep in mind that very low consumption (such as with heating fuel during the summer) can skew the unit cost due to fixed monthly fees.  "]
[null,"3. If the calculated unit cost is not reasonable, is there an error in either the consumption data or the cost data?"]
[]
[null,"Year Over Year Comparison"]
[null,"Compare usage data from one year to the next.  "]
[null,"1. Is there a significant change in consumption data year over year?  If so, hone in on the facilities causing the change.  "]
[null,"2. If there is a significant change, can it be explained? "]
[null,"3. If this amount is not reasonable, is there an error in either the consumption data or the data entry?  Check monthly data  \n    by facility."]
[]
[null,"Building Types"]
[]
[null,"Building Type","Description",null,null,"Examples"]
[null,"Education","Buildings used for academic or technical classroom instruction, such as elementary, middle, or high schools, and classroom buildings on college or university campuses. Buildings on education campuses for which the main use is not classroom are included in the category relating to their use. For example, administration buildings are part of \"Office,\" dormitories are \"Lodging,\" and libraries are \"Public Assembly.\"",null,null,"elementary or middle school, high school, college or university, preschool or daycare, adult education, career or vocational training, religious education"]
[null,"Food Sales","Buildings used for retail or wholesale of food.",null,null,"grocery store or food market, gas station with a convenience store, convenience store, "]
[null,"Food Service","Buildings used for preparation and sale of food and beverages for consumption.",null,null,"fast food, restaurant or cafeteria, bar, catering service or reception hall, coffee, bagel, or doughnut shop, ice cream or frozen yogurt shop"]
[null,"Health Care (Inpatient)","Buildings used as diagnostic and treatment facilities for inpatient care.",null,null,"hospital, inpatient rehabilitation"]
[null,"Health Care (Outpatient)","Buildings used as diagnostic and treatment facilities for outpatient care. Medical offices are included here if they use any type of diagnostic medical equipment (if they do not, they are categorized as an office building).",null,null,"medical office (see previous column), clinic or other outpatient health care, outpatient rehabilitation, veterinarian"]
[null,"Lodging","Buildings used to offer multiple accommodations for short-term or long-term residents, including skilled nursing and other residential care buildings.",null,null,"motel or inn, hotel, dormitory, fraternity, or sorority, retirement home, nursing home, assisted living, or other residential care, convent or monastery, shelter, orphanage, or children's home, halfway house"]
[null,"Mercantile (Retail Other Than Mall)","Buildings used for the sale and display of goods other than food.",null,null,"retail store, beer, wine, or liquor store, rental center, dealership or showroom for vehicles or boats, studio/gallery"]
[null,"Mercantile (Enclosed and Strip Malls)","Shopping malls comprised of multiple connected establishments.",null,null,"enclosed mall, strip shopping center"]
[null,"Office","Buildings used for general office space, professional office, or administrative offices. Medical offices are included here if they do not use any type of diagnostic medical equipment (if they do, they are categorized as an outpatient health care building).",null,null,"administrative or professional office, government office, mixed-use office, bank or other financial institution, medical office (see previous column), sales office, contractor's office (e.g. construction, plumbing, HVAC), non-profit or social services, city hall or city center, religious office, call center"]
[null,"Public Assembly","Buildings in which people gather for social or recreational activities, whether in private or non-private meeting halls.",null,null,"social or meeting (e.g. community center, lodge, meeting hall, convention center,senior center), recreation (e.g. gymnasium, health club, bowling alley, ice rink, field house, indoor racquet sports), entertainment or culture (e.g. museum, theater, cinema, sports arena, casino, night club), library, funeral home, student activities center, armory, exhibition hall, broadcasting studio, transportation terminal"]
[null,"Public Order and Safety","Buildings used for the preservation of law and order or public safety.",null,null,"police station, fire station, jail, reformatory, or penitentiary, courthouse or probation office"]
[null,"Religious Worship","Buildings in which people gather for religious activities, (such as chapels, churches, mosques, synagogues, and temples).",null,null,"No subcategories collected"]
[null,"Service","Buildings in which some type of service is provided, other than food service or retail sales of goods",null,null,"vehicle service or vehicle repair shop, vehicle storage/ maintenance (car barn), repair shop, dry cleaner or laundromat, post office or postal center, car wash, gas station, photo processing shop, beauty parlor or barber shop, tanning salon, copy center or printing shop, kennel"]
[null,"Warehouse and Storage","Buildings used to store goods, manufactured products, merchandise, raw materials, or personal belongings (such as self-storage).",null,null,"refrigerated warehouse, non-refrigerated warehouse, distribution or shipping center"]
[null,"Other","Buildings that are industrial or agricultural with some retail space; buildings having several different commercial activities that, together, comprise 50 percent or more of the floorspace, but whose largest single activity is agricultural, industrial/ manufacturing, or residential; and all other miscellaneous buildings that do not fit into any other category.",null,null,"airplane hangar, crematorium, laboratory, telephone switching, agricultural with some retail space, manufacturing or industrial with some retail space, data center or server farm"]
[null,"Vacant","Buildings in which more floorspace was vacant than was used for any single commercial activity at the time of interview. Therefore, a vacant building may have some occupied floorspace.",null,null,"No subcategories collected, but a question was asked to determine whether the building was completely vacant."]

{"sheet":"Help - Stationary Combustion","index":20,"n_rows":45,"n_cols":6,"rows_kept":45,"cut":false,"hidden":false,"merged":[[5,0,5,5],[8,0,8,5],[14,0,14,5],[18,1,18,5],[10,1,10,5],[43,1,43,5],[11,1,11,5],[21,1,21,5],[23,2,23,5],[19,1,19,5],[20,1,20,5]]}
[]
[]
["Scope 1 Emissions from Stationary Combustion Sources - HELP SHEET"]
[]
["DEFINITION"]
["Combustion emission sources are stationary sources that combust fuel, like a natural gas hot water heater for an office building or an oil burning boiler.  Emissions result from the actual combustion of the fuels to produce useful products, like heat and hot water. "]
[]
["COLLECT"]
["To account for these sources, collect information about the type of fuel used and the quantity of fuel combusted at each facility.  Sources of data can vary, but the data are often provided by the utility organization that supplies the fuel to the organization.  A monthly natural gas bill, for example, can be used to provide information regarding how much natural gas was purchased for the previous billing cycle. "]
["Data Collection Checklist (for all facilities)"]
["-","Type of fuel consumed"]
["-","Amount of fuel consumed"]
[]
["QUANTIFY"]
["After the data has been collected, it should be entered into the appropriate orange colored boxes of the Calculator section titled “Stationary Combustion.”  The fuel type can be selected from the form.  After the data are entered into the Calculator, the CO2 equivalent emissions are displayed in the blue colored box.  "]
[]
[]
["Items to Note"]
["-","Use the heat content sheet to convert units provided on the invoice into the units the Calculator requires. "]
["-","If you are one of many tenants in a facility and you do not have the actual amount of fuel used in your space, you may estimate your fuel usage by multiplying the fuel usage of the entire facility by the percentage of the floor area that your organization occupies."]
["-","Companies with home offices can optionally include these spaces in their inventory if the energy use associated with business activities can be reasonably estimated.  "]
["-","The Energy Information Administration conducts a Commercial Building Energy Consumption Survey and provides average energy consumption by building type per square foot.  Use the numbers below to compare against your data or to estimate for natural gas if no data are available. For example, if you have a 1,000 sq ft office suite in the Northeast multiply by 34.3 to get an estimation of 34,300 scf natural gas for a year.  "]
[]
[null,"Natural Gas Intensity","standard cubic feet (scf) natural gas / sq ft / year"]
[null,"Principal Building Activity","Northeast","Midwest","South","West"]
[null,"Education",46.6,38.799999999999997,16.5,27.9]
[null,"Food sales ","insufficient data","insufficient data",59.1,"insufficient data"]
[null,"Food service ",130.69999999999999,162.4,178,139.69999999999999]
[null,"Health care ",68.8,85.7,77,86]
[null,"Inpatient ",107.4,111.7,88.3,109]
[null,"Outpatient ",33.1,48,24.8,45.2]
[null,"Lodging ",43.9,49.3,33.1,56.3]
[null,"Mercantile ",40.4,43,26.1,31.4]
[null,"Retail (other than mall) ",25.1,33.9,15.1,15.2]
[null,"Enclosed and strip malls ",50.3,50.9,31.2,44.4]
[null,"Office ",34.299999999999997,33.200000000000003,17.2,22.2]
[null,"Public assembly ",42.6,40.5,26,26.7]
[null,"Public order and safety ","insufficient data","insufficient data",23.4,"insufficient data"]
[null,"Religious worship ",25.8,38.9,22.2,29.1]
[null,"Service ",64.8,38.1,44.6,35.299999999999997]
[null,"Warehouse and storage ",27.6,20.3,11.3,25.5]
[null,"Other ","insufficient data","insufficient data",41.6,74]
[null,"Vacant ","insufficient data","insufficient data","insufficient data","insufficient data"]
[null,"Source: EIA's Commercial Buildings Energy Consumption Survey (CBECS) 2012, Released May 2016.  Table C25: Natural gas consumption and conditional energy intensity by Census region"]
[null,"http://www.eia.gov/consumption/commercial/data/2012/index.cfm?view=consumption#c23-c32"]

{"sheet":"Help - Mobile Sources","index":21,"n_rows":32,"n_cols":2,"rows_kept":32,"cut":false,"hidden":false,"merged":[[30,1,30,4],[28,1,28,4],[29,1,29,4],[5,0,5,4],[8,0,8,4],[17,0,17,4],[12,1,12,4],[13,1,13,4],[14,1,14,4],[24,1,24,4]]}
[]
[]
["Scope 1 Emissions from Mobile Sources - HELP SHEET"]
[]
["DEFINITION"]
["Mobile sources, like owned or leased cars and heavy duty vehicles generate emissions by burning fuel.  The fuel usage for any vehicle that is under the organization's operational control should be reported here as scope 1 emissions.  As required by GHG Protocol these emissions are only calculated for the combustion of the fuel (e.g., tank-to-wheel)."]
[]
["COLLECT"]
["Determine the types of vehicles, types and amount of fuel, and the miles driven for each vehicle or vehicle type.  Data sources vary but fuel usage is often determined from fuel receipts or purchase records and provided in gallons, and mileage from vehicle records.  Mileage or fuel use can also be estimated based on vehicle fuel economy from the manufacturer or www.fueleconomy.gov if the other data sources are not readily available. "]
["www.fueleconomy.gov"]
[]
["Data Collection Checklist (for all vehicles)"]
["-","Type and year of vehicle"]
["-","Amount of fuel consumed for the inventory reporting period"]
["-","Total miles driven for the inventory reporting period"]
[]
["QUANTIFY"]
["Enter the data into the appropriate orange colored boxes of the Calculator section titled “Mobile Sources.”  If the organization owns or leases biofuel or ethanol vehicles, the percentage of biologically-based fuel should be entered into the boxes provided; default values are available if needed.  Once the data are entered into the Calculator, the CO2 equivalent emissions are calculated and summarized in the blue colored box.  Biomass CO2 emissions are calculated and summarized in the green colored box, and are typically not summed into the organization’s total GHG emissions because they are considered to be a net zero emission source."]
[null,"Vehicle Classification Guidelines"]
[null,"Pickups, Vans, and SUVs should be classified as \"Light Trucks\""]
[null,"Trucks weighing more than 8,500 lb should be classified as \"Heavy- Duty Trucks\""]
[null,"Non-highway vehicles should be classified as \"Other Offroad Equipment\""]
[]
["Items to Note"]
["-","Vehicle Classification Guidelines"]
[null,"Trucks weighing more than 8,500 lb should be classified as \"Heavy- Duty Vehicles\""]
[null,"Pickup trucks, vans, and SUVs should be classified as \"Light-Duty Trucks\""]
[null,"Non-highway vehicles should be classified as \"Construction Equip.\""]
["-","Fuel usage and mileage is reported the same for hybrid vehicles as for conventional vehicles.  If you are estimating mileage or fuel usage keep in mind the fuel efficiency."]
["-","If your organization owns a private jet or plane it should be included here.  Depending on the fuel it uses, pick the appropriate type from the drop down menu (i.e., Aviation Gasoline Aircraft, Jet Fuel Aircraft)."]
["-","If you are using biodiesel or ethanol, the percentage of biodiesel and ethanol should be filled out accordingly.  If you are using these fuels in pure form, then you would enter 100%.  If you are using a mixture of biodiesel and petroleum diesel, or a mixture of ethanol and gasoline then you would enter the biodiesel or ethanol percentage in that mixture.  For example,  B100 is 100% biodiesel, likewise B20 is 20% biodiesel.  This is similar for ethanol; E85 is 85% ethanol. "]
["-","The Vehicle Type column is organized in order of most common vehicle types and their fuels. "]

{"sheet":"Help - Refrigeration and AC","index":22,"n_rows":28,"n_cols":2,"rows_kept":28,"cut":false,"hidden":false,"merged":[[27,1,27,4],[25,1,25,4],[20,1,20,4],[13,1,13,4],[14,1,14,4],[23,1,23,4],[24,1,24,4],[5,0,5,4],[8,0,8,4],[17,0,17,4],[18,1,18,4],[19,1,19,4],[10,1,10,4],[11,1,11,4],[12,1,12,4]]}
[]
[]
["Scope 1 Emissions from Refrigeration and Air Conditioning Equipment - HELP SHEET"]
[]
["DEFINITION"]
["Refrigeration and Air Conditioning (AC) equipment sources can vary in size based on the type of organization.  Emissions from refrigeration and AC devices, in facilities or vehicles, are caused by the leakage of chemicals with global warming impact during use, maintenance and/or disposal of the device.  They are often small sources for office-based organizations.  For example, a small office building may have one rooftop AC unit while a grocery store chain may have several \nrooftop AC units per store as well as a multitude of other refrigeration equipment.  "]
[]
["COLLECT"]
["Choose one of three different calculation methods available in the “Refrigeration and AC” section of the Calculator.  The types of refrigerants along with the data needs for each method are listed in the Calculator.  Data for these sources is often collected from maintenance and inspection records, work orders, or invoices from contractors that service this equipment.  Refrigerants not included on the list may be chemicals that do not need to be included in the inventory.  For example, ozone depleting substances, such as chlorofluorocarbons (CFCs) or “freon” and hydrochlorofluorocarbons (HCFCs), are regulated internationally and are typically excluded from a GHG inventory or reported as a memo item.  A reason to track these sources is to provide explanation for the increase of HFCs and PFCs when they replace the phased out CFCs and HCFCs. "]
["Data Collection Checklist (by equipment)"]
["-","Refrigerant purchase, inventory, and disposal data"]
["-","Inventory of equipment by facility"]
["-","Refrigerant capacity of equipment"]
["-","Amount of refrigerant (HFC and PFC) emitted over the inventory reporting period"]
["-","Optional: Track HCFC and CFCs, such as R-22"]
[]
["QUANTIFY"]
["Determine which of the three options is suitable for your business and enter the data into the appropriate orange colored boxes of the Calculator section titled “Refrigeration and AC.”  Once the data are entered into the Calculator, the CO2 equivalent emissions are calculated and summarized in the blue colored box."]
[null,"Option 1: The Detailed Material Balance Method is recommended for companies who maintain their own equipment. This method requires data from inventories, purchase and service records, and the full and proper charges of equipment. It includes emissions from equipment operation, servicing, and disposal. "]
[null,"Option 2: The Simplified Material Balance Method is recommended for companies who have contractors service their HFC/PFC containing equipment. This method tracks emissions from equipment operation, servicing, and disposal. The method requires data on the quantity of refrigerant: (a) used to fill new equipment during installation, (b) used to service equipment, and (c) recovered from retiring equipment, as well as the full and proper charges of new and retiring equipment. If notified in advance of the need for this information, the contractor should be able to provide it."]
[null,"Option 3: It is recommended that the Screening Method be used only as a screening tool because the emission factors used in the approach are highly uncertain. Emission factors vary between individual pieces of equipment and over time. Even if the amount of refrigerant added to a piece of equipment has been tracked carefully, permitting the previous leak rate of that equipment to be established, that leak rate can change after a leak is repaired or as the equipment ages. "]
[]
["Items to Note"]
["-","If you are one of many tenants in a facility and you cannot quantify the refrigerant emissions specific to your space, you may estimate them based on the percentage of the floor area that your organization occupies."]
["-","Emissions from refrigerants in an office-based organization are typically less than 2 percent of emissions.  Consider this as you decide which Option is most appropriate.  "]
["-","If your organization uses a refrigerant that is not listed, the user may need to determine the constituent blend.  This website lists common refrigerant compositions:"]
[null,"http://www.epa.gov/ozone/snap/refrigerants/refblend.html"]
["-"," R-134a is the predominantly used refrigerant in vehicle AC systems.  If you are uncertain of which refrigerant \n your vehicles use, you can assume R-134a."]

{"sheet":"Help - Fire Suppression","index":23,"n_rows":20,"n_cols":2,"rows_kept":20,"cut":false,"hidden":false,"merged":[[19,1,19,4],[5,0,5,4],[8,0,8,4],[16,0,16,4],[10,1,10,4],[13,1,13,4],[11,1,11,4],[12,1,12,4]]}
[]
[]
["Scope 1 Emissions from Fire Suppression Equipment - HELP SHEET"]
[]
["DEFINITION"]
["Fire suppression emission sources can range in scale from a small portable fire extinguisher to a large scale fire suppression system for an office building or warehouse.  The emissions are caused by chemicals (e.g., HFCs or CO2) emitted from fire suppression devices during use, maintenance, and disposal."]
[]
["COLLECT"]
["Choose one of three different calculation methods available in the “Fire Suppression” section of the Calculator.  In each method, choose the types of fire suppression gases used and then gather the corresponding emissions data.  Data for these sources is often collected from maintenance and inspection records, work orders, or invoices from contractors that service this equipment. "]
["Data Collection Checklist (by equipment and/or facility)"]
["-","Fire suppressant purchase, inventory, and disposal data"]
["-","Inventory of equipment by facility"]
["-","Fire suppressant capacity of equipment"]
["-","Amount of fire suppressant (HFC and PFC) emitted over the inventory reporting period"]
[]
["QUANTIFY"]
["Enter the data into the appropriate orange colored boxes of the Calculator section titled “Fire Suppression.”  Once the data are entered into the Calculator, the CO2 equivalent emissions are calculated and summarized in the blue colored box. "]
[]
["Items to Note"]
["-","Contact the manufacturer if you cannot find the list of propellants or chemicals used in the fire extinguisher.   "]

{"sheet":"Help - Purchased Gases","index":24,"n_rows":20,"n_cols":2,"rows_kept":20,"cut":false,"hidden":false,"merged":[[19,1,19,4],[5,0,5,4],[8,0,8,4],[16,0,16,4],[11,1,11,4],[12,1,12,4],[13,1,13,4]]}
[]
[]
["Scope 1 Emissions from Purchased Gases - HELP SHEET"]
[]
["DEFINITION"]
["Industrial gases are sometimes used in processes such as manufacturing, testing, or laboratory uses.  For example, CO2 gas is often used in welding operations.  These gases are typically released to the atmosphere after use.  Any releases of the seven major greenhouse gases (CO2, CH4, N2O, PFCs, HFCs, SF6, and NF3) must be included in the GHG inventory.  Ozone depleting substances, such as CFCs and HCFCs, are regulated internationally and are typically excluded from a GHG inventory or reported as a memo item."]
[]
["COLLECT"]
["Determine if CO2, CH4, N2O, PFCs, HFCs,  SF6 or NF3 are used in processes such as those mentioned above.  If so, collect the mass of gas purchased.  If data are not available in mass units, the user may need to convert from volume to mass using the density of the specific gas."]
[]
["Data Collection Checklist (for all applicable facilities)"]
["-","Type of gas purchased"]
["-","Amount of gas purchased"]
["-","Purpose for the gas"]
[]
["QUANTIFY"]
["Enter the data into the appropriate orange colored boxes of the Calculator section titled “Gas.”  Once the data are entered into the Calculator, the CO2 equivalent emissions are calculated and summarized in the blue colored box. "]
[]
["Items to Note"]
["-","If your business makes bulk purchases and plans on using the gas for several years, you should divide the bulk amount by the years of usage and report that amount."]

{"sheet":"Help - Electricity","index":25,"n_rows":51,"n_cols":6,"rows_kept":51,"cut":false,"hidden":false,"merged":[[10,1,10,5],[5,0,5,5],[8,0,8,5],[15,0,15,5],[21,1,21,5],[46,1,46,5],[24,1,24,5],[26,2,26,5],[23,1,23,5],[11,1,11,5],[12,1,12,5],[16,0,16,5],[17,0,17,5],[22,1,22,5]]}
[]
[]
["Scope 2 Emissions from Purchase of Electricity - HELP SHEET"]
[]
["DEFINITION"]
["GHGs are emitted when fossil fuels are combusted to generate electricity.  Companies account for their responsibility for these emissions by reporting them as scope 2 indirect emissions. This Calculator quantifies emissions from both the location-based method and the market-based method, and both totals should be reported.  The location-based method considers average emission factors for the electricity grids that provide electricity.  The market-based method considers contractual arrangements under which the organization procures power from specific sources, such as renewable energy.  Market-based emission factors reflect these arrangements. Examples of market-based emission factors are: renewable energy certificates (RECs), power purchase agreements (PPAs), and supplier-specific factors.  For detailed information on the location-based method and the market-based method review EPA's Indirect Emissions from Purchased Electricity Guidance (link at the bottom of this sheet)."]
[]
["COLLECT"]
["Collect electricity purchase information in units of kWh for each facility.  The best data source is typically its electricity bill or invoice.  In the Calculator, there is a map at the bottom of the “Electricity” section which divides the United States into subregions based on the electric grid.  Select the subregion(s) in which the organization’s facilities are located to determine the correct CO2, CH4, and N2O emission factors to use, since different parts of the country use different fuels to generate electricity. Multiple facility locations can be entered as separate line items in the Calculator.  If a facility is on the border of a subregion, enter the zip code into EPA's Power Profiler (https://oaspub.epa.gov/powpro/ept_pack.charts) to find the correct subregion.  "]
["Data Collection Checklist (for all facilities)"]
["-","Amount of electricity purchased"]
["-","Amount of electricity purchased using contractual arrangements "]
["-","Emission factors (CO2, CH4 and N2O) for contractual arrangements"]
[]
["QUANTIFY"]
["There are two methods to quantify emissions from electricity: location-based and market-based.  Both must be quantified to be in accordance with the Center for Corporate Climate Leadership Greenhouse Gas Inventory Guidance.  "]
["Location-based: Enter the data into the appropriate orange colored boxes (Table 1) of the Calculator section titled \"Electricity.”  Once the data are entered into the Calculator, the CO2 equivalent emissions are calculated and summarized in the blue colored box for the location based method. "]
["Market-based: Enter applicable market-based emission factors (lb/MWh) for the purchased electricity in the yellow cells (Table 1) of the Calculator section titled \"Electricity.”  See the market-based method Help sheet for additional guidance. Once the data are entered into the Calculator, the CO2 equivalent emissions are calculated and summarized in the blue colored box for the market-based method. "]
[]
[]
["Items to Note"]
["-","If you are one of many tenants in a facility and you do not have the actual amount of electricity used in your space, you may estimate your usage by multiplying the electricity usage of the entire facility by the percentage of the floor area that your organization occupies."]
["-","The number off the utility bill to use is the total usage amount (i.e., the difference between the meter reading at the beginning of the month and the end of the month)."]
["-","Companies with home offices can optionally include these spaces in their inventory if the energy use associated with business activities can be reasonably estimated.  "]
["-","The Energy Information Administration conducts a Commercial Building Energy Consumption Survey and provides average energy consumption by building type per square foot.  Use the numbers below to compare against your data or to estimate if no data are available. For example, if you have a 1,000 sq ft office suite in the Northeast multiply by 17.1 to get an estimation of 17,100 kWh electricity for a year.  "]
[]
[null,"Electricity Intensity","kWh electricity / sq ft / year"]
[null,"Principal Building Activity","Northeast","Midwest","South","West"]
[null,"Education",8.6999999999999993,10.3,12.6,10]
[null,"Food sales ",45,50.5,56.2,42.7]
[null,"Food service ",39.700000000000003,43.1,49.7,41.1]
[null,"Health care ",22,25.1,29.5,24.6]
[null,"Inpatient ",26.3,28.9,34.299999999999997,32.5]
[null,"Outpatient ",17.600000000000001,20.100000000000001,21.7,14.3]
[null,"Lodging ",14,15.4,16.600000000000001,14.1]
[null,"Mercantile ",16.3,17.5,19.7,17.600000000000001]
[null,"Retail (other than mall) ",12.8,14.1,16.3,15.8]
[null,"Enclosed and strip malls ",19.899999999999999,21.4,22.5,19.100000000000001]
[null,"Office ",17.100000000000001,15.3,16,14.9]
[null,"Public assembly ",14.1,13.2,16.3,13.2]
[null,"Public order and safety ",15.1,10.3,18.3,"insufficient data"]
[null,"Religious worship ",4.5,4.5,6.1,4.7]
[null,"Service ",6.6,7.3,9.8000000000000007,8.8000000000000007]
[null,"Warehouse and storage ",4.9000000000000004,6.6,8.4,4.8]
[null,"Other ",43.2,20.2,32,20.3]
[null,"Vacant ","insufficient data",5.3,4,5.6]
[null,"Source: Commercial Buildings Energy Consumption Survey (CBECS) 2012, Released May 2016.  Table C15: Electricity consumption and conditional energy intensity by Census region"]
[null,"http://www.eia.gov/consumption/commercial/data/2012/index.cfm?view=consumption#c23-c32"]
[]
["Refer to the Greenhouse Gas Inventory Guidance: Indirect Emissions from Purchased Electricity Guidance for more information. "]
[null,"https://www.epa.gov/climateleadership/scope-1-and-scope-2-inventory-guidance"]

{"sheet":"Help - Market-Based Method","index":26,"n_rows":47,"n_cols":8,"rows_kept":47,"cut":false,"hidden":false,"merged":[[11,1,11,2],[16,9,16,10],[17,0,17,8],[11,3,11,8],[100,0,100,1],[18,0,18,8],[15,0,15,8],[15,9,15,10],[16,0,16,8],[19,0,19,8],[37,5,37,7],[36,5,36,7],[17,9,17,10],[2,0,2,7],[85,0,85,1],[86,0,86,1],[6,1,6,2],[7,1,7,2],[8,1,8,2],[9,1,9,2],[23,1,23,8],[26,0,26,8],[5,0,5,8],[6,3,6,8],[7,3,7,8],[8,3,8,8],[9,3,9,8],[10,3,10,8],[10,1,10,2]]}
[]
[]
["Market-Based Method - HELP SHEET"]
[]
["Market-Based Electricity Emission Factors"]
["The market-based method considers contractual arrangements under which the organization procures electricity from specific sources, such as fossil, renewable, or other generation facilities. Market-based emission factors reflect these arrangements. The following are the types of market-based emission factors available, listed in order of preference based on the precision of the factors.  If any of the first four types of emission factors are applicable, enter the factors in the yellow cells marked as \"<enter factor>\".  If not, leave the yellow cells as is, and eGRID subregion factors will be used for market-based emissions. "]
["(1)","Energy Attribute Certificates",null,"If an energy attribute certificate carries with it an emission factor, that factor can be used to quantify emissions in the market-based method.  Examples are renewable energy certificates (RECs) or Guarantees of Origin (GOs).  The emission factor is based on the specific source that the certificate represents, regardless of the energy resource used.  Typically these certificates represent renewable energy and may have an emission factor of zero, but they may in some cases have a non-zero emission factor (e.g., if there is a fossil-fuel or biomass generation component). "]
["(2)","Contracts",null,"An organization may have a contract, such as a power purchase agreement (PPA), to purchase electricity from a specified generating facility, which may be located at the organization's facility, at a nearby location with a direct line connection to the organization, or located remotely.  If there are no certificates available, the contract itself carries the emission factor associated with the generation facility, regardless of the energy resource used.  If certificates are used, see Energy Attribute Certificates above.  "]
["(3)","Supplier-Specific Emission Factor",null,"An electricity supplier, such as a regulated utility or a deregulated supplier, may provide information to its customers on the emission factor associated with its electricity product.  To be used in the market-based method, the emission factor must include all the electricity delivered by the supplier, including electricity it generates as well as electricity it purchases from others.  "]
["(4)","Residual Mix Factor",null,"A residual mix emission factor represents the emissions and generation that remain after certificates, contracts, and supplier-specific factors have been claimed and removed from the calculation.  Residual mix emission factors are currently not widely available.  Organizations are encouraged to check for available residual mix factors each year when their GHG inventory is completed, if the options above are not available or relevant."]
["(5)","Regional Emission Factor",null,"If residual mix factors are not available, organizations can use a regional grid average emission factor as the default.  This calculator will use eGRID subregion emission factors in this case."]
["(6)","National Emission Factor",null,"This should not be applicable for any companies reporting US based emissions, due to the availability of regional emission factors. "]
[]
["Quality Criteria for Contractual Instruments"]
["All contractual instruments used in the market-based method must meet the following criteria:"]
["  (1)  Convey the direct GHG emission rate attribute associated with the unit of electricity produced."]
["  (2)  Be the only instruments that carry the GHG emission rate attribute claim associated with that quantity of electricity generation.\n        See the \"Items to Note\" section of the Help sheet for suggested estimation approaches. "]
["  (3)  Be tracked and redeemed, retired, or canceled by or on behalf of the reporting entity.  This can be done through a tracking \n       system, an audit of contracts, third-party certification, or other means. "]
["  (4)  Have a vintage that matches as closely as possible to the date of the reporting period to which the instruments are \n        applied.  The vintage of the instrument is based on the date of the energy generation that the instrument represents.  "]
["  (5)  Be sourced from the same market in which the reporting entity’s electricity-consuming operations are located and \n         to which the instrument is applied. A market is defined as a geographical area which has a common system for \n         trading and retiring contractual instruments. For this purpose the U.S. constitutes a single market, despite regional \n        grid boundaries."]
["The Indirect Emissions from Purchased Electricity Guidance defines EPA best-practice quality recommendations that go beyond these minimum requirements. "]
[]
["Items to Note"]
["-","EPA encourages organizations to use renewable energy as a way to reduce the environmental impacts associated with the electricity they purchase. Organizations can reduce their market-based scope 2 emissions by purchasing renewable energy, or “green power.” They can do this by choosing a differentiated electricity product from their utility or electricity supplier, by contracting directly with a renewable energy generator (if the regulatory rules allow), or by purchasing unbundled renewable energy certificates (RECs). In any case, the RECs must be acquired and retired."]
[]
["An Example"]
["In a situation where an organization has procured electricity from a specific source that is relevant to report for the market-based method, but the source supplies less than 100% of the kWh consumed by the facility, it is important to enter the data correctly.  Consider the following scenario: "]
[null,"- 100,000 kWh total facility consumption"]
[null,"- 25,000 kWh purchased with energy attribute certificates such as renewable energy certificates (RECs)."]
[null,"- Emission factors for RECs are zero."]
[null,"- No other market-based emission factors are available. "]
[]
["The table below shows how to enter the data for this example site. There are two rows entered for the facility in order to allocate the market-based emissions to the appropriate kWh."]
["The total Electricity Purchased (kWh) of the two rows adds up to facility's total consumption.  Be careful not to double count kWh."]
["The REC emission factors are entered in the first row.  In the second row, there is no need to enter market-based emission factors, because none are available."]
[]
[null,null,null,null,null,"Market-Based\nUse these cells to enter contractual or supplier specific emission factors"]
["Table 1.  Total Amount of Electricity Purchased by eGRID Subregion",null,null,null,null,"Emission Factors"]
["Source","Source","Source","eGRID Subregion","Electricity","CO2","CH4 ","N2O "]
["ID","Description","Area (sq ft)","where electricity is consumed","Purchased","Emissions","Emissions","Emissions"]
[null,null,null,null,"(kWh)","(lb/MWh)","(lb/MWh)","(lb/MWh)"]
["Building A","Wind Farm RECs",6000,"RFCW (RFC West)",25000,0,0,0]
["Building A","Local Utility ",6000,"RFCW (RFC West)",{"$f":"100000-E42","v":75000},"<enter factor>","<enter factor>","<enter factor>"]
[]
[]
["Refer to the Greenhouse Gas Inventory Guidance: Indirect Emissions from Purchased Electricity Guidance for more information. "]
[null,"https://www.epa.gov/climateleadership/center-corporate-climate-leadership-greenhouse-gas-inventory-guidance"]

{"sheet":"Help - Steam","index":27,"n_rows":20,"n_cols":2,"rows_kept":20,"cut":false,"hidden":false,"merged":[[5,6,5,11],[10,1,10,4],[11,1,11,4],[12,1,12,4],[19,1,19,5],[18,1,18,4],[5,0,5,4],[8,0,8,4],[15,0,15,4]]}
[]
[]
["Scope 2 Emissions from Purchase of Steam - HELP SHEET"]
[]
["DEFINITION"]
["Similar to electricity production, GHGs are emitted when fossil fuels are combusted to generate heat or steam.  If the organization purchases heat or steam, the emissions are accounted for as scope 2 indirect emissions. Also similar to electricity, both the location-based method and the market-based method should be calculated and reported as done in this Calculator. Typically supplier-specific emission factors for steam will apply to both location-based and market-based emissions, and no market-based emission factors need to be entered.  If needed, see the market-based method Help Sheet for more information.  "]
[]
["COLLECT"]
["Determine the amount of steam purchased, the types of fuel that the steam supplier uses to generate the steam, and either the emission factors provided by the steam supplier or the boiler efficiency.  If values for boiler efficiency are unavailable, a default of 80% is provided in the Calculator.  "]
["Data Collection Checklist (for all facilities)"]
["-","Amount of steam purchased "]
["-","Fuel type used to generate steam"]
["-","Boiler efficiency or supplier-specific emission factors"]
[]
["QUANTIFY"]
["Enter the data into the appropriate orange colored boxes (Table 1) of the Calculator section titled “Steam.”  Once the data are entered into the Calculator, the CO2 equivalent emissions are calculated and summarized in the blue colored box.  Enter the market-based emission factors in the yellow cells if applicable."]
[]
["Items to Note"]
["-","Use the heat content sheet to convert units provided on the invoice into the units the Calculator requires. "]
["-","If you are one of many tenants in a facility and you do not have the actual amount of steam used in your space, you may estimate your usage by multiplying the steam usage of the entire facility by the percentage of the floor area that your organization occupies."]

{"sheet":"Help - Business Travel","index":28,"n_rows":15,"n_cols":2,"rows_kept":15,"cut":false,"hidden":false,"merged":[[5,0,5,4],[8,0,8,4],[14,0,14,4],[10,1,10,4],[11,1,11,4]]}
[]
[]
["Scope 3 Emissions from Employee Business Travel - HELP SHEET"]
[]
["DEFINITION"]
["Scope 3 employee business travel emissions differ from the scope 1 mobile source emission reporting in that they account for employee business travel in vehicles not owned or leased by the organization, such as taxis, trains, commercial airplanes, and personal vehicles used for sales. "]
[]
["COLLECT"]
["Collect information about employees’ business travel method. Travel by vehicle-miles is used when the employee is traveling in a personal vehicle.  Travel by passenger-mile is used when the employee is traveling in a vehicle shared with many other people (i.e., bus, train or plane).  For travelers that use a personal vehicle, choose the vehicle type from the Calculator and collect data for the vehicle miles during the reporting period.  For rail, bus, and air travel, the mode of travel should be selected from the Calculator options and an estimate of the passenger mileage data provided for each."]
["Data Collection Checklist (for all employee travel)"]
["-","Type of transport (personal vehicle, train, bus, plane)"]
["-","Miles traveled for each transport type.  For air travel, mileage should ideally be determined considering each flight segment individually.  If you use a travel agent, they may have these data in their records."]
[]
["QUANTIFY"]
["Enter the data into the appropriate orange colored boxes (Tables 1-3) of the Calculator section titled “Business Travel.”  Once the data are entered into the Calculator, the CO2 equivalent emissions are calculated and summarized in the green colored box. The emission factors included for air travel do not include radiative forcing."]

{"sheet":"Help - Commuting","index":29,"n_rows":21,"n_cols":2,"rows_kept":21,"cut":false,"hidden":false,"merged":[[18,1,18,4],[19,1,19,4],[20,1,20,4],[5,0,5,4],[8,0,8,4],[15,0,15,4],[10,1,10,4],[12,1,12,4],[11,1,11,4]]}
[]
[]
["Scope 3 Emissions from Employee Commuting - HELP SHEET"]
[]
["DEFINITION"]
["Employee commuting emissions differ from the required mobile source emission reporting in that they account for employee travel to and from work in vehicles not owned or leased by the organization, including personal vehicles, buses, and trains.  "]
[]
["COLLECT"]
["Collect information about each employee’s commuting method.  If not all employees can provide information on their commuting habits, you can calculate an average per employee and multiply by total employees to estimate. For commuters that use a personal vehicle, the appropriate vehicle type should be selected from the Calculator and data collected for the vehicle-miles during the reporting period.  For rail, bus, and air travel, the mode of transport should be selected from the Calculator options and an estimate of the passenger mileage data provided for each."]
["Data Collection Checklist (per Employee)"]
["-","Commuting days per year (consider vacation, sick time and business travel)"]
["-","Mode of transport (this may be multiple modes of transport)"]
["-","Round trip mileage"]
[]
["QUANTIFY"]
["After the data has been collected, enter the data into the appropriate orange colored boxes (Tables 1-2) of the Calculator section titled “Commuting.”  Once the data are entered into the Calculator, the CO2 equivalent emissions are calculated and summarized in the green colored box."]
[]
["Items to Note"]
["-","Commuting by vehicle-miles is used when the employee is traveling in their own vehicle.  Travel by passenger-mile is used when the employee is traveling in a vehicle shared with many other people (i.e., bus, train or plane).  "]
["-","If employees carpool, only their portion of the mileage should be included in the GHG inventory.  For example, if one of your employees drives 10 miles alone to meet two other people (not employees) to carpool and then drives 30 miles to work then the organization should include 20 miles (10 miles + 30 (1/3)) in the corporate inventory.  "]
["-","If collecting data from all your employees is not possible due to the size of your organization, you may collect data from as many employees as possible, and use that sample to estimate for the rest of the employees.  Make sure the sample size is adequate, and keep in mind this will calculate less accurate results. "]

{"sheet":"Help - Upstream Trans and Dist","index":30,"n_rows":21,"n_cols":2,"rows_kept":21,"cut":false,"hidden":false,"merged":[[18,1,18,4],[20,1,20,4],[5,0,5,4],[8,0,8,4],[15,0,15,4],[10,1,10,4],[11,1,11,4],[12,1,12,4],[19,1,19,4]]}
[]
[]
["Scope 3 Emissions from Upstream Transportation and Distribution - HELP SHEET"]
[]
["DEFINITION"]
["Scope 3 emissions from upstream transportation and distribution include all product transportation between product/materials origin to end customers by vehicles not owned or leased by the organization.  For example, the organization could hire another company to transport product from the manufacturing location to distribution centers or final markets. (Note: If an organization owns or leases the trucks or other transport vehicles, these would be part of its scope 1 mobile source emissions). Another example of product transport is paying a courier to transport documents from one office to another.  While this category does include emissions from warehousing of products, there is not currently a place to account for those emissions in this calculator."]
[]
["COLLECT"]
["Collect information about shipment methods (on-road vehicle, waterborne craft, freight rail, or aircraft).  For road shipments the user may enter data based on vehicle mileage or ton-miles of product transported.  If the vehicle mileage option is chosen, then the organization should select the type of vehicle and enter the total mileage for that vehicle type.  The ton-miles option is only applicable for heavy-duty trucks and the organization need only enter the total ton-miles traveled.  For product transport via freight rail, waterborne, or air transport, the organization should enter the total ton-miles data."]
["Data Collection Checklist"]
["-","All product transport legs (origin and destination) and mileage"]
["-","Mode of transport per leg"]
["-","Weight transported per shipment for ton-mile calculation"]
[]
["QUANTIFY"]
["Enter the data into the appropriate orange colored boxes (Tables 1-2) of the Calculator section titled “Upstream Transpt. and Dist.”  Once the data are entered into the Calculator, the CO2 equivalent emissions are calculated and summarized in the green colored box. "]
[]
["Items to Note"]
["-","To calculate ton-miles, multiply the weight transported (short tons) by the distance (miles) for each individual shipment.  In Table 2, you can enter data either for individual shipments, or for the sum of ton-miles for multiple shipments."]
["-","If you do not have shipment-by-shipment data, you may multiply total tons transported by the average miles per shipment.  You may also multiply average tons transported per shipment times the total miles transported.  Do not multiply total tons by total miles, as this will give an incorrect result. "]
["-","Example: Every week a company ships 10 short tons of product 100 miles.  That equates to 52 shipments per year of 1,000 ton-miles each.  The sum of the individual shipments is 52,000 ton-miles per year.  Multiplying the total tons transported (520 tons) by the average miles per shipment (100 miles) provides the correct result of 52,000 ton-miles.  Multiplying the average tons transported per shipment (10 tons) times the total miles (5,200 miles) also gives the correct result.  Multiplying total tons (520 tons) by total miles (5,200 miles) gives an incorrect result. "]

{"sheet":"Help - Waste","index":31,"n_rows":14,"n_cols":2,"rows_kept":14,"cut":false,"hidden":false,"merged":[[5,0,5,4],[8,0,8,4],[10,1,10,4],[13,0,13,4]]}
[]
[]
["Scope 3 Emissions from Waste - HELP SHEET"]
[]
["DEFINITION"]
["Scope 3 emissions from waste include the disposal and treatment of waste generated in the reporting company’s operations in the reporting year in facilities not owned or controlled by the reporting company. These emission factors align with the requirements of the GHG Protocol Scope 3 Standard. The emission factors do not include any avoided emissions impact from any of the disposal methods. All the factors presented include transportation emissions, which are optional in the Scope 3 Calculation Guidance, with an assumed average distance traveled to the processing facility. AR4 GWPs are used to convert all waste emission factors into CO2e.   "]
[]
["COLLECT"]
["Collect information on the amount of weight disposed at your facilities, by the type of waste (plastics, paper, etc.) and disposal method (recycling, incineration, etc.). Refer to the Emission Factors tab for a complete list of materials and available disposal methods. "]
["Data Collection Checklist"]
["-","Weight of waste disposed by material type and disposal method"]
[]
["QUANTIFY"]
["Enter the data into the appropriate orange colored boxes (Tables 1) of the Calculator section titled “Waste.”  Once the data are entered into the Calculator, the CO2 equivalent emissions are calculated and summarized in the green colored box. "]

{"sheet":"Help - Offsets","index":32,"n_rows":12,"n_cols":1,"rows_kept":12,"cut":false,"hidden":false,"merged":[[5,0,5,4],[8,0,8,4],[11,0,11,4]]}
[]
[]
["Purchased Offsets - HELP SHEET"]
[]
["DEFINITION"]
["Offsets are project-based emission reductions and/or removals that occur outside the organizational boundary of the reporting organization.  Offsets can be purchased by an organization to offset emissions from scope 1, scope 2, and scope 3 sources."]
[]
["COLLECT"]
["Quantity of offsets purchased in metric tons CO2 equivalent for each offset project."]
[]
["QUANTIFY"]
["Enter the data into the appropriate orange colored boxes (Table 1) of the Calculator section titled \"Offsets.”  Once the data are entered into the Calculator, the CO2 equivalent emissions are summarized in the green colored box."]